Workbook

Sheet User Instructions
B2: BREEAM-NOR 6.1 Wat 01 Water consumption: User instructions
B4: Building Details
B6: Building type | C6: Please select | G6: =IF(UI_BT="Please select","Note: the appropriate building type must be selected to enable the relevant calculator tool.","") -> Note: the appropriate building type must be selected to enable the relevant calculator tool.
B8: Building name
B10: BREEAM assessment reference no.
B12: Important information
B13: This version of the BREEAM 2018 Wat 01 calculator is the second release of this calculator tool. This version includes calculators for the following building types: 1) Offices 2) Retail 3) Industrial 4) Education 5) Other buildings* Select the applicable building type above and the appropriate calculator tab will become available at the bottom of the screen. (Macros must be enabled) The BREEAM 2018 Wat01 calculator tool is compatible with Microsoft Excel versions 2010, 2013 and 2016 for Windows. This tool is also compatible with Microsoft Excel version 2016 for Mac. This calculator tool has been designed to be intuitive and as user-friendly as possible. However, if you need help or if you have any suggestions on how we can improve, please email: BREEAM@bre.co.uk
B15: User Instructions
B16: The BREEAM 2018 Wat 01 calculates the number of credits using the standard Wat 01 method. The standard BREEAM water efficiency method determines water efficiency (measured in l/person/day and m3/person/yr) for a building based on the buildings actual component specification and default usage patterns for the building type and its activity areas. This output is compared with the same output for a baseline component specification and the percentage improvement used to determine the number of BREEAM credits achieved. The standard approach is the default method for calculating water efficiency of a BREEAM assessed building and is that used for most of the common building types, where usage data is available, including: 1) Offices 2) Retail 3) Industrial 4) Education Where it is not possible to use the standard approach to determine the buildings water consumption total, and therefore a percentage improvement on the baseline specification, the assessment can be completed using the alternative method. The alternative method is used for any building type not listed above under the standard method. *Other buildings cover all building types not listed 1-4 and does not correspond to the other building types defined in the manual. The alternative calculation method is required for these building types.
B17: Key
C18: Cells that are white with a black border require user input (data entry/option selection)
C19: Cells that are light grey contain fixed data or a formula and do not require any user input
C20: Cells that are dark grey are user input cells which are not applicable due to either building type or user input/option selection or default setting. Note these cells can change to ones requiring user input depending on the users option selection in other cells.
B21: > | C21: A red arrow indicates that option selection or mandatory data entry is required in one of the cells on the row where this arrow appears. Without appropriate selection/data the calculator will not be able to determine the number of BREEAM credits. Where the term "Requires building information" appears check to make sure there are no red arrows indicating an absence of option selection or data entry.
B23: Please select
B24: Office
B25: Retail
B26: Industrial
B27: Education
B28: Other Building*

Sheet NCM act and schedules (hidden)
A1: List of activities and daily schedules per week type
A3: These are the daily schedules for the Activities listed in the activities Database as per 11/08/10.
A4: They correspond to the daily schedule for Mondays.
A5: The Week Type identifies potential differences in Monday schedules for different weeks of the year with different patterns of occupancy (e.g. schools full time and schools summer periods).
A6: Week 1 (WK1) normally identifies standard operation (working weeks)
A8: Activity ID | B8: Activity Name | C8: Building Type | D8: OCCUPANCY_DENS | E8: WEEKLY_SCHEDULE | F8: Week Type | G8: h00 | H8: h01 | I8: h02 | J8: h03 | K8: h04 | L8: h05 | M8: h06 | N8: h07 | O8: h08 | P8: h09 | Q8: h10 | R8: h11 | S8: h12 | T8: h13 | U8: h14 | V8: h15 | W8: h16 | X8: h17 | Y8: h18 | Z8: h19 | AA8: h20 | AB8: h21 | AC8: h22 | AD8: h23
A9: 1000 | B9: Cupboard | C9: B1 Offices and Workshop businesses | D9: 0.11 | E9: Office_Store_Occ_WK1 | F9: =RIGHT(E9,3) -> WK1 | G9: 0 | H9: 0 | I9: 0 | J9: 0 | K9: 0 | L9: 0 | M9: 0 | N9: 0 | O9: 1 | P9: 1 | Q9: 1 | R9: 1 | S9: 1 | T9: 1 | U9: 1 | V9: 1 | W9: 1 | X9: 1 | Y9: 0 | Z9: 0 | AA9: 0 | AB9: 0 | AC9: 0 | AD9: 0
A10: 1001 | B10: Circulation area (corridors and stairways) | C10: B1 Offices and Workshop businesses | D10: 0.1173333333 | E10: Office_Circulation_Occ_WK1 | F10: =RIGHT(E10,3) -> WK1 | G10: 0 | H10: 0 | I10: 0 | J10: 0 | K10: 0 | L10: 0 | M10: 0 | N10: 0.25 | O10: 0.5 | P10: 1 | Q10: 1 | R10: 1 | S10: 0.75 | T10: 0.75 | U10: 1 | V10: 1 | W10: 1 | X10: 0.5 | Y10: 0.25 | Z10: 0 | AA10: 0 | AB10: 0 | AC10: 0 | AD10: 0
A11: 1002 | B11: Toilet | C11: B1 Offices and Workshop businesses | D11: 0.1124444444 | E11: Office_Toilet_Occ_WK1 | F11: WK1 | G11: 0 | H11: 0 | I11: 0 | J11: 0 | K11: 0 | L11: 0 | M11: 0 | N11: 0.25 | O11: 0.5 | P11: 1 | Q11: 1 | R11: 1 | S11: 0.75 | T11: 0.75 | U11: 1 | V11: 1 | W11: 1 | X11: 0.5 | Y11: 0.25 | Z11: 0 | AA11: 0 | AB11: 0 | AC11: 0 | AD11: 0
A12: 1003 | B12: Reception | C12: B1 Offices and Workshop businesses | D12: 0.1008333333 | E12: Office_Reception_Occ_WK1 | F12: WK1 | G12: 0 | H12: 0 | I12: 0 | J12: 0 | K12: 0 | L12: 0 | M12: 0 | N12: 0.25 | O12: 0.5 | P12: 1 | Q12: 1 | R12: 1 | S12: 0.75 | T12: 0.75 | U12: 1 | V12: 1 | W12: 1 | X12: 0.5 | Y12: 0.25 | Z12: 0 | AA12: 0 | AB12: 0 | AC12: 0 | AD12: 0
A13: 1004 | B13: Light plant room | C13: B1 Offices and Workshop businesses | D13: 0.11 | E13: Office_Plant_Occ_WK1 | F13: WK1 | G13: 0 | H13: 0 | I13: 0 | J13: 0 | K13: 0 | L13: 0 | M13: 0 | N13: 0 | O13: 0 | P13: 0 | Q13: 0 | R13: 0 | S13: 0 | T13: 0 | U13: 0 | V13: 0 | W13: 0 | X13: 0 | Y13: 0 | Z13: 0 | AA13: 0 | AB13: 0 | AC13: 0 | AD13: 0
A14: 1005 | B14: Generic Office Area | C14: B1 Offices and Workshop businesses | D14: 0.111 | E14: Office_OpenOff_Occ_WK1 | F14: WK1 | G14: 0 | H14: 0 | I14: 0 | J14: 0 | K14: 0 | L14: 0 | M14: 0 | N14: 0.25 | O14: 0.5 | P14: 1 | Q14: 1 | R14: 1 | S14: 0.75 | T14: 0.75 | U14: 1 | V14: 1 | W14: 1 | X14: 0.5 | Y14: 0.25 | Z14: 0 | AA14: 0 | AB14: 0 | AC14: 0 | AD14: 0
A15: 1006 | B15: Fitness suite/gym | C15: B1 Offices and Workshop businesses | D15: 0.1648484848 | E15: Office_FitGym_Occ_Wk1 | F15: Wk1 | G15: 0 | H15: 0 | I15: 0 | J15: 0 | K15: 0 | L15: 0 | M15: 0.25 | N15: 1 | O15: 1 | P15: 0.25 | Q15: 0 | R15: 0.25 | S15: 1 | T15: 1 | U15: 0.5 | V15: 0 | W15: 0 | X15: 0.5 | Y15: 1 | Z15: 1 | AA15: 0.5 | AB15: 0 | AC15: 0 | AD15: 0
A16: 1007 | B16: Changing facilities with showers | C16: B1 Offices and Workshop businesses | D16: 0.1 | E16: Office_Changing_Occ_WK1 | F16: WK1 | G16: 0 | H16: 0 | I16: 0 | J16: 0 | K16: 0 | L16: 0 | M16: 0 | N16: 1 | O16: 1 | P16: 1 | Q16: 1 | R16: 1 | S16: 1 | T16: 1 | U16: 1 | V16: 1 | W16: 1 | X16: 1 | Y16: 1 | Z16: 1 | AA16: 0 | AB16: 0 | AC16: 0 | AD16: 0
A17: 1008 | B17: Food preparation area | C17: B1 Offices and Workshop businesses | D17: 0.1080357143 | E17: Office_FoodPrep_Occ_WK1 | F17: WK1 | G17: 0 | H17: 0 | I17: 0 | J17: 0 | K17: 0 | L17: 0 | M17: 0.25 | N17: 0.75 | O17: 1 | P17: 1 | Q17: 1 | R17: 1 | S17: 1 | T17: 1 | U17: 0.75 | V17: 0.25 | W17: 0.25 | X17: 0.75 | Y17: 1 | Z17: 1 | AA17: 1 | AB17: 1 | AC17: 0.75 | AD17: 0.25
A18: 1009 | B18: Eating/drinking area | C18: B1 Offices and Workshop businesses | D18: 0.2888888889 | E18: Office_EatDrink_Occ_WK1 | F18: WK1 | G18: 0 | H18: 0 | I18: 0 | J18: 0 | K18: 0 | L18: 0 | M18: 0 | N18: 0 | O18: 0 | P18: 0 | Q18: 0 | R18: 0.25 | S18: 1 | T18: 1 | U18: 0.75 | V18: 0 | W18: 0 | X18: 0 | Y18: 0 | Z18: 0 | AA18: 0 | AB18: 0 | AC18: 0 | AD18: 0
A19: 1010 | B19: Workshop - small scale | C19: B1 Offices and Workshop businesses | D19: 0.06805555556 | E19: Office_WkshpSS_Occ_Wk1 | F19: Wk1 | G19: 0 | H19: 0 | I19: 0 | J19: 0 | K19: 0 | L19: 0 | M19: 0 | N19: 0.25 | O19: 0.5 | P19: 1 | Q19: 1 | R19: 1 | S19: 0.75 | T19: 0.75 | U19: 1 | V19: 1 | W19: 1 | X19: 0.5 | Y19: 0.25 | Z19: 0 | AA19: 0 | AB19: 0 | AC19: 0 | AD19: 0
A20: 1012 | B20: Laundry | C20: A1/A2 Retail and Financial/Professional services | D20: 0.1246666667 | E20: Office_Laund_Occ_Wk1 | F20: Wk1 | G20: 0 | H20: 0 | I20: 0 | J20: 0 | K20: 0 | L20: 0 | M20: 0 | N20: 0.25 | O20: 0.5 | P20: 1 | Q20: 1 | R20: 1 | S20: 0.75 | T20: 0.75 | U20: 1 | V20: 1 | W20: 1 | X20: 0.5 | Y20: 0.25 | Z20: 0 | AA20: 0 | AB20: 0 | AC20: 0 | AD20: 0
A21: 1013 | B21: Assembly areas / halls | C21: C1 Hotels | D21: 0.1833333333 | E21: Hotel_Lecture_Occ_WK1 | F21: WK1 | G21: 0 | H21: 0 | I21: 0 | J21: 0 | K21: 0 | L21: 0 | M21: 0 | N21: 0 | O21: 0 | P21: 1 | Q21: 1 | R21: 1 | S21: 1 | T21: 1 | U21: 1 | V21: 1 | W21: 1 | X21: 1 | Y21: 1 | Z21: 1 | AA21: 1 | AB21: 0 | AC21: 0 | AD21: 0
A22: 1014 | B22: Bedroom unit | C22: C1 Hotels | D22: 0.09443265306 | E22: Hotel_Bed_Occ_WK1 | F22: WK1 | G22: 1 | H22: 1 | I22: 1 | J22: 1 | K22: 1 | L22: 1 | M22: 1 | N22: 0.5 | O22: 0.25 | P22: 0 | Q22: 0 | R22: 0 | S22: 0 | T22: 0 | U22: 0 | V22: 0 | W22: 0 | X22: 0 | Y22: 0 | Z22: 0 | AA22: 0 | AB22: 0 | AC22: 0.25 | AD22: 0.75
A23: 1015 | B23: Changing facilities with showers | C23: C1 Hotels | D23: 0.1190526316 | E23: Hotel_Changing_Occ_WK1 | F23: WK1 | G23: 0 | H23: 0 | I23: 0 | J23: 0 | K23: 0 | L23: 0 | M23: 0 | N23: 0 | O23: 0 | P23: 1 | Q23: 1 | R23: 1 | S23: 1 | T23: 1 | U23: 1 | V23: 1 | W23: 1 | X23: 1 | Y23: 1 | Z23: 1 | AA23: 1 | AB23: 0 | AC23: 0 | AD23: 0
A24: 1016 | B24: Circulation area (corridors and stairways) | C24: C1 Hotels | D24: 0.1147239264 | E24: Hotel_Circulation_Occ_WK1 | F24: WK1 | G24: 0 | H24: 0 | I24: 0 | J24: 0 | K24: 0 | L24: 0 | M24: 0 | N24: 1 | O24: 1 | P24: 1 | Q24: 1 | R24: 1 | S24: 1 | T24: 1 | U24: 1 | V24: 1 | W24: 1 | X24: 1 | Y24: 1 | Z24: 1 | AA24: 1 | AB24: 1 | AC24: 1 | AD24: 0.3
A25: 1017 | B25: Food preparation area | C25: C1 Hotels | D25: 0.1080357143 | E25: Hotel_FoodPrep_Occ_WK1 | F25: WK1 | G25: 0 | H25: 0 | I25: 0 | J25: 0 | K25: 0 | L25: 0 | M25: 0.25 | N25: 0.75 | O25: 1 | P25: 1 | Q25: 1 | R25: 1 | S25: 1 | T25: 1 | U25: 0.75 | V25: 0.25 | W25: 0.25 | X25: 0.75 | Y25: 1 | Z25: 1 | AA25: 1 | AB25: 1 | AC25: 0.75 | AD25: 0.25
A26: 1018 | B26: Eating/drinking area | C26: C1 Hotels | D26: 0.1873873874 | E26: Hotel_EatDrink_Occ_WK1 | F26: WK1 | G26: 0 | H26: 0 | I26: 0 | J26: 0 | K26: 0 | L26: 0 | M26: 0 | N26: 0.25 | O26: 0.25 | P26: 0.5 | Q26: 0.5 | R26: 0.5 | S26: 1 | T26: 1 | U26: 0.5 | V26: 0.25 | W26: 0.25 | X26: 0.25 | Y26: 0.5 | Z26: 1 | AA26: 1 | AB26: 1 | AC26: 0.5 | AD26: 0
A27: 1019 | B27: Fitness suite/gym | C27: C1 Hotels | D27: 0.1401754386 | E27: Hotel_FitGym_Occ_Wk1 | F27: Wk1 | G27: 0 | H27: 0 | I27: 0 | J27: 0 | K27: 0 | L27: 0 | M27: 0 | N27: 0 | O27: 0 | P27: 1 | Q27: 1 | R27: 1 | S27: 1 | T27: 1 | U27: 1 | V27: 1 | W27: 1 | X27: 1 | Y27: 1 | Z27: 1 | AA27: 1 | AB27: 0 | AC27: 0 | AD27: 0
A28: 1020 | B28: Laundry | C28: C1 Hotels | D28: 0.121 | E28: Hotel_Laund_Occ_Wk1 | F28: Wk1 | G28: 0 | H28: 0 | I28: 0 | J28: 0 | K28: 0 | L28: 0 | M28: 0 | N28: 0 | O28: 1 | P28: 1 | Q28: 1 | R28: 1 | S28: 1 | T28: 1 | U28: 1 | V28: 1 | W28: 1 | X28: 1 | Y28: 0 | Z28: 0 | AA28: 0 | AB28: 0 | AC28: 0 | AD28: 0
A29: 1021 | B29: Light plant room | C29: C1 Hotels | D29: 0.11 | E29: Hotel_Plant_Occ_WK1 | F29: WK1 | G29: 0 | H29: 0 | I29: 0 | J29: 0 | K29: 0 | L29: 0 | M29: 0 | N29: 0 | O29: 0 | P29: 0 | Q29: 0 | R29: 0 | S29: 0 | T29: 0 | U29: 0 | V29: 0 | W29: 0 | X29: 0 | Y29: 0 | Z29: 0 | AA29: 0 | AB29: 0 | AC29: 0 | AD29: 0
A30: 1022 | B30: Reception | C30: C1 Hotels | D30: 0.104601227 | E30: Hotel_Reception_Occ_WK1 | F30: WK1 | G30: 0 | H30: 0 | I30: 0 | J30: 0 | K30: 0 | L30: 0 | M30: 0 | N30: 1 | O30: 1 | P30: 1 | Q30: 1 | R30: 1 | S30: 1 | T30: 1 | U30: 1 | V30: 1 | W30: 1 | X30: 1 | Y30: 1 | Z30: 1 | AA30: 1 | AB30: 1 | AC30: 1 | AD30: 0.3
A31: 1023 | B31: Toilet | C31: C1 Hotels | D31: 0.1178571429 | E31: Hotel_Toilet_Occ_WK1 | F31: WK1 | G31: 0 | H31: 0 | I31: 0 | J31: 0 | K31: 0 | L31: 0 | M31: 0 | N31: 1 | O31: 1 | P31: 1 | Q31: 1 | R31: 1 | S31: 1 | T31: 1 | U31: 1 | V31: 1 | W31: 1 | X31: 1 | Y31: 1 | Z31: 1 | AA31: 1 | AB31: 0 | AC31: 0 | AD31: 0
A32: 1024 | B32: Swimming pool | C32: C1 Hotels | D32: 0.1395416667 | E32: Hotel_Swim_Occ_WK1 | F32: WK1 | G32: 0 | H32: 0 | I32: 0 | J32: 0 | K32: 0 | L32: 0 | M32: 0 | N32: 0 | O32: 0 | P32: 1 | Q32: 1 | R32: 1 | S32: 1 | T32: 1 | U32: 1 | V32: 1 | W32: 1 | X32: 1 | Y32: 1 | Z32: 1 | AA32: 1 | AB32: 0 | AC32: 0 | AD32: 0
A33: 1025 | B33: Dry sports hall | C33: C1 Hotels | D33: 0.04122807018 | E33: Hotel_DrySptHall_Occ_WK1 | F33: WK1 | G33: 0 | H33: 0 | I33: 0 | J33: 0 | K33: 0 | L33: 0 | M33: 0 | N33: 0 | O33: 0 | P33: 1 | Q33: 1 | R33: 1 | S33: 1 | T33: 1 | U33: 1 | V33: 1 | W33: 1 | X33: 1 | Y33: 1 | Z33: 1 | AA33: 1 | AB33: 0 | AC33: 0 | AD33: 0
A34: 1026 | B34: Cupboard | C34: C1 Hotels | D34: 0.11 | E34: Hotel_Store_Occ_WK1 | F34: WK1 | G34: 0 | H34: 0 | I34: 0 | J34: 0 | K34: 0 | L34: 0 | M34: 0 | N34: 1 | O34: 1 | P34: 1 | Q34: 1 | R34: 1 | S34: 1 | T34: 1 | U34: 1 | V34: 1 | W34: 1 | X34: 1 | Y34: 1 | Z34: 1 | AA34: 1 | AB34: 0 | AC34: 0 | AD34: 0
A35: 1028 | B35: Generic Office Area | C35: C1 Hotels | D35: 0.1060666667 | E35: Hotel_CellOff_Occ_WK1 | F35: WK1 | G35: 0 | H35: 0 | I35: 0 | J35: 0 | K35: 0 | L35: 0 | M35: 0 | N35: 0.25 | O35: 0.5 | P35: 1 | Q35: 1 | R35: 1 | S35: 0.75 | T35: 0.75 | U35: 1 | V35: 1 | W35: 1 | X35: 0.5 | Y35: 0.25 | Z35: 0 | AA35: 0 | AB35: 0 | AC35: 0 | AD35: 0
A36: 1029 | B36: Circulation area (corridors and stairways) - non public | C36: A3/A4/A5 Restaurant and Cafes/Drinking Establishments and Hot Food takeaways | D36: 0.1276396396 | E36: RestPub_Circulation_Occ_WK1 | F36: WK1 | G36: 0 | H36: 0 | I36: 0 | J36: 0 | K36: 0 | L36: 0 | M36: 0 | N36: 0.25 | O36: 0.25 | P36: 0.5 | Q36: 0.5 | R36: 0.5 | S36: 1 | T36: 1 | U36: 0.5 | V36: 0.25 | W36: 0.25 | X36: 0.25 | Y36: 0.5 | Z36: 1 | AA36: 1 | AB36: 1 | AC36: 0.5 | AD36: 0
A37: 1030 | B37: Eating/drinking area | C37: A3/A4/A5 Restaurant and Cafes/Drinking Establishments and Hot Food takeaways | D37: 0.2 | E37: RestPub_EatDrink_Occ_WK1 | F37: WK1 | G37: 0 | H37: 0 | I37: 0 | J37: 0 | K37: 0 | L37: 0 | M37: 0 | N37: 0.25 | O37: 0.25 | P37: 0.5 | Q37: 0.5 | R37: 0.5 | S37: 1 | T37: 1 | U37: 0.5 | V37: 0.25 | W37: 0.25 | X37: 0.25 | Y37: 0.5 | Z37: 1 | AA37: 1 | AB37: 1 | AC37: 0.5 | AD37: 0
A38: 1031 | B38: Food preparation area | C38: A3/A4/A5 Restaurant and Cafes/Drinking Establishments and Hot Food takeaways | D38: 0.11 | E38: RestPub_FoodPrep_Occ_WK1 | F38: WK1 | G38: 0 | H38: 0 | I38: 0 | J38: 0 | K38: 0 | L38: 0 | M38: 0.25 | N38: 0.75 | O38: 1 | P38: 1 | Q38: 1 | R38: 1 | S38: 1 | T38: 1 | U38: 0.75 | V38: 0.25 | W38: 0.25 | X38: 0.75 | Y38: 1 | Z38: 1 | AA38: 1 | AB38: 1 | AC38: 0.75 | AD38: 0.25
A39: 1032 | B39: Cupboard | C39: A3/A4/A5 Restaurant and Cafes/Drinking Establishments and Hot Food takeaways | D39: 0.12375 | E39: RestPub_Store_Occ_WK1 | F39: WK1 | G39: 0 | H39: 0 | I39: 0 | J39: 0 | K39: 0 | L39: 0 | M39: 0 | N39: 0 | O39: 0 | P39: 0.75 | Q39: 1 | R39: 1 | S39: 0.75 | T39: 0.75 | U39: 1 | V39: 1 | W39: 1 | X39: 0.75 | Y39: 0 | Z39: 0 | AA39: 0 | AB39: 0 | AC39: 0 | AD39: 0
A40: 1033 | B40: Performance area (stage) | C40: A3/A4/A5 Restaurant and Cafes/Drinking Establishments and Hot Food takeaways | D40: 0.03592436975 | E40: RestPub_Stage_Occ_WK1 | F40: WK1 | G40: 0 | H40: 0 | I40: 0 | J40: 0 | K40: 0 | L40: 0 | M40: 0 | N40: 0 | O40: 0 | P40: 0 | Q40: 0 | R40: 0 | S40: 0 | T40: 0 | U40: 0 | V40: 0 | W40: 0.5 | X40: 0.5 | Y40: 1 | Z40: 1 | AA40: 1 | AB40: 1 | AC40: 0.666666667 | AD40: 0
A41: 1034 | B41: Light plant room | C41: A3/A4/A5 Restaurant and Cafes/Drinking Establishments and Hot Food takeaways | D41: 0.11 | E41: RestPub_Plant_Occ_WK1 | F41: WK1 | G41: 0 | H41: 0 | I41: 0 | J41: 0 | K41: 0 | L41: 0 | M41: 0 | N41: 0 | O41: 0 | P41: 0 | Q41: 0 | R41: 0 | S41: 0 | T41: 0 | U41: 0 | V41: 0 | W41: 0 | X41: 0 | Y41: 0 | Z41: 0 | AA41: 0 | AB41: 0 | AC41: 0 | AD41: 0
A42: 1036 | B42: Toilet | C42: A3/A4/A5 Restaurant and Cafes/Drinking Establishments and Hot Food takeaways | D42: 0.08840490798 | E42: RestPub_Toilet_Occ_WK1 | F42: WK1 | G42: 0 | H42: 0 | I42: 0 | J42: 0 | K42: 0 | L42: 0 | M42: 0 | N42: 1 | O42: 1 | P42: 1 | Q42: 1 | R42: 1 | S42: 1 | T42: 1 | U42: 1 | V42: 1 | W42: 1 | X42: 1 | Y42: 1 | Z42: 1 | AA42: 1 | AB42: 1 | AC42: 1 | AD42: 0.3
A43: 1038 | B43: Generic Office Area | C43: A3/A4/A5 Restaurant and Cafes/Drinking Establishments and Hot Food takeaways | D43: 0.1094366197 | E43: RestPub_CellOff_Occ_WK1 | F43: WK1 | G43: 0 | H43: 0 | I43: 0 | J43: 0 | K43: 0 | L43: 0 | M43: 0 | N43: 0.1 | O43: 0.25 | P43: 0.75 | Q43: 1 | R43: 1 | S43: 0.5 | T43: 0.5 | U43: 1 | V43: 1 | W43: 0.5 | X43: 0.5 | Y43: 0 | Z43: 0 | AA43: 0 | AB43: 0 | AC43: 0 | AD43: 0
A44: 1039 | B44: Circulation area (corridors and stairways) | C44: B2 to B7 General Industrial and Special Industrial Groups | D44: 0.12375 | E44: Indust_Circulation_Occ_WK1 | F44: WK1 | G44: 0 | H44: 0 | I44: 0 | J44: 0 | K44: 0 | L44: 0 | M44: 0 | N44: 0 | O44: 0 | P44: 1 | Q44: 1 | R44: 1 | S44: 1 | T44: 1 | U44: 1 | V44: 1 | W44: 1 | X44: 0 | Y44: 0 | Z44: 0 | AA44: 0 | AB44: 0 | AC44: 0 | AD44: 0
A45: 1040 | B45: Eating/drinking area | C45: B2 to B7 General Industrial and Special Industrial Groups | D45: 0.1777777777 | E45: Indust_EatDrink_Occ_WK1 | F45: WK1 | G45: 0 | H45: 0 | I45: 0 | J45: 0 | K45: 0 | L45: 0 | M45: 0 | N45: 0 | O45: 0 | P45: 0 | Q45: 0 | R45: 0.25 | S45: 1 | T45: 1 | U45: 0.75 | V45: 0 | W45: 0 | X45: 0 | Y45: 0 | Z45: 0 | AA45: 0 | AB45: 0 | AC45: 0 | AD45: 0
A46: 1041 | B46: Food preparation area | C46: B2 to B7 General Industrial and Special Industrial Groups | D46: 0.2126666667 | E46: Indust_FoodPrep_Occ_WK1 | F46: WK1 | G46: 0 | H46: 0 | I46: 0 | J46: 0 | K46: 0 | L46: 0 | M46: 0 | N46: 0 | O46: 0 | P46: 0 | Q46: 0 | R46: 0.25 | S46: 1 | T46: 1 | U46: 0.75 | V46: 0 | W46: 0 | X46: 0 | Y46: 0 | Z46: 0 | AA46: 0 | AB46: 0 | AC46: 0 | AD46: 0
A47: 1042 | B47: Industrial process area | C47: B2 to B7 General Industrial and Special Industrial Groups | D47: 0.02245901639 | E47: Indust_IndProcess_Occ_Wk1 | F47: Wk1 | G47: 0 | H47: 0 | I47: 0 | J47: 0 | K47: 0 | L47: 0 | M47: 0 | N47: 0.25 | O47: 0.5 | P47: 1 | Q47: 1 | R47: 1 | S47: 0.75 | T47: 0.75 | U47: 1 | V47: 1 | W47: 1 | X47: 0.5 | Y47: 0.25 | Z47: 0 | AA47: 0 | AB47: 0 | AC47: 0 | AD47: 0
A48: 1043 | B48: Laboratory | C48: B2 to B7 General Industrial and Special Industrial Groups | D48: 0.1069444444 | E48: Indust_Lab_Occ_WK1 | F48: WK1 | G48: 0 | H48: 0 | I48: 0 | J48: 0 | K48: 0 | L48: 0 | M48: 0 | N48: 0.25 | O48: 0.5 | P48: 1 | Q48: 1 | R48: 1 | S48: 0.75 | T48: 0.75 | U48: 1 | V48: 1 | W48: 1 | X48: 0.5 | Y48: 0.25 | Z48: 0 | AA48: 0 | AB48: 0 | AC48: 0 | AD48: 0
A49: 1044 | B49: Light plant room | C49: B2 to B7 General Industrial and Special Industrial Groups | D49: 0.11 | E49: Indust_Plant_Occ_WK1 | F49: WK1 | G49: 0 | H49: 0 | I49: 0 | J49: 0 | K49: 0 | L49: 0 | M49: 0 | N49: 0 | O49: 0 | P49: 0 | Q49: 0 | R49: 0 | S49: 0 | T49: 0 | U49: 0 | V49: 0 | W49: 0 | X49: 0 | Y49: 0 | Z49: 0 | AA49: 0 | AB49: 0 | AC49: 0 | AD49: 0
A50: 1045 | B50: Reception | C50: B2 to B7 General Industrial and Special Industrial Groups | D50: 0.11 | E50: Indust_Reception_Occ_WK1 | F50: WK1 | G50: 0 | H50: 0 | I50: 0 | J50: 0 | K50: 0 | L50: 0 | M50: 0 | N50: 0 | O50: 0 | P50: 1 | Q50: 1 | R50: 1 | S50: 1 | T50: 1 | U50: 1 | V50: 1 | W50: 1 | X50: 0 | Y50: 0 | Z50: 0 | AA50: 0 | AB50: 0 | AC50: 0 | AD50: 0
A51: 1046 | B51: Cupboard | C51: B2 to B7 General Industrial and Special Industrial Groups | D51: 0.12375 | E51: Indust_Store_Occ_WK1 | F51: WK1 | G51: 0 | H51: 0 | I51: 0 | J51: 0 | K51: 0 | L51: 0 | M51: 0 | N51: 0 | O51: 0 | P51: 1 | Q51: 1 | R51: 1 | S51: 1 | T51: 1 | U51: 1 | V51: 1 | W51: 1 | X51: 0 | Y51: 0 | Z51: 0 | AA51: 0 | AB51: 0 | AC51: 0 | AD51: 0
A52: 1049 | B52: Toilet | C52: B2 to B7 General Industrial and Special Industrial Groups | D52: 0.12375 | E52: Indust_Toilet_Occ_WK1 | F52: WK1 | G52: 0 | H52: 0 | I52: 0 | J52: 0 | K52: 0 | L52: 0 | M52: 0 | N52: 0 | O52: 0 | P52: 1 | Q52: 1 | R52: 1 | S52: 1 | T52: 1 | U52: 1 | V52: 1 | W52: 1 | X52: 0 | Y52: 0 | Z52: 0 | AA52: 0 | AB52: 0 | AC52: 0 | AD52: 0
A53: 1050 | B53: Warehouse storage | C53: B2 to B7 General Industrial and Special Industrial Groups | D53: 0.009012345679 | E53: Indust_WareStore_Occ_Wk1 | F53: Wk1 | G53: 0 | H53: 0 | I53: 0 | J53: 0 | K53: 0 | L53: 0 | M53: 0 | N53: 1 | O53: 1 | P53: 1 | Q53: 1 | R53: 1 | S53: 1 | T53: 1 | U53: 1 | V53: 1 | W53: 1 | X53: 1 | Y53: 1 | Z53: 1 | AA53: 0 | AB53: 0 | AC53: 0 | AD53: 0
A54: 1052 | B54: Generic Office Area | C54: B2 to B7 General Industrial and Special Industrial Groups | D54: 0.1079166667 | E54: Indust_CellOff_Occ_WK1 | F54: WK1 | G54: 0 | H54: 0 | I54: 0 | J54: 0 | K54: 0 | L54: 0 | M54: 0 | N54: 0.25 | O54: 0.5 | P54: 1 | Q54: 1 | R54: 1 | S54: 0.75 | T54: 0.75 | U54: 1 | V54: 1 | W54: 1 | X54: 0.5 | Y54: 0.25 | Z54: 0 | AA54: 0 | AB54: 0 | AC54: 0 | AD54: 0
A55: 1053 | B55: Circulation area (corridors and stairways) | C55: B8 Storage or Distribution | D55: 0.09428571429 | E55: Ware_Circulation_Occ_Wk1 | F55: Wk1 | G55: 0 | H55: 0 | I55: 0 | J55: 0 | K55: 0 | L55: 0 | M55: 0 | N55: 0 | O55: 1 | P55: 1 | Q55: 1 | R55: 1 | S55: 1 | T55: 1 | U55: 1 | V55: 1 | W55: 1 | X55: 1 | Y55: 0 | Z55: 0 | AA55: 0 | AB55: 0 | AC55: 0 | AD55: 0
A56: 1054 | B56: Food preparation area | C56: B8 Storage or Distribution | D56: 0.1240030675 | E56: Ware_FoodPrep_Occ_Wk1 | F56: Wk1 | G56: 0 | H56: 0 | I56: 0 | J56: 0 | K56: 0 | L56: 0 | M56: 0 | N56: 0 | O56: 0 | P56: 0.5 | Q56: 1 | R56: 1 | S56: 1 | T56: 0.75 | U56: 1 | V56: 0.75 | W56: 0 | X56: 0 | Y56: 0 | Z56: 0 | AA56: 0 | AB56: 0 | AC56: 0 | AD56: 0
A57: 1055 | B57: Eating/drinking area | C57: B8 Storage or Distribution | D57: 0.3579661016 | E57: Ware_EatDrink_Occ_Wk1 Ware_EatDrink_Wk1 | F57: Wk1 | G57: 0 | H57: 0 | I57: 0 | J57: 0 | K57: 0 | L57: 0 | M57: 0 | N57: 0 | O57: 0 | P57: 0 | Q57: 0 | R57: 0.25 | S57: 1 | T57: 1 | U57: 0.75 | V57: 0 | W57: 0 | X57: 0 | Y57: 0 | Z57: 0 | AA57: 0 | AB57: 0 | AC57: 0 | AD57: 0
A58: 1056 | B58: Light plant room | C58: B8 Storage or Distribution | D58: 0.1060714286 | E58: Ware_Plant_Occ_Wk1 | F58: Wk1 | G58: 0 | H58: 0 | I58: 0 | J58: 0 | K58: 0 | L58: 0 | M58: 0 | N58: 0 | O58: 0 | P58: 0 | Q58: 0 | R58: 0 | S58: 0 | T58: 0 | U58: 0 | V58: 0 | W58: 0 | X58: 0 | Y58: 0 | Z58: 0 | AA58: 0 | AB58: 0 | AC58: 0 | AD58: 0
A59: 1057 | B59: Reception | C59: B8 Storage or Distribution | D59: 0.1128139535 | E59: Ware_Reception_Occ_WK1 | F59: WK1 | G59: 0 | H59: 0 | I59: 0 | J59: 0 | K59: 0 | L59: 0 | M59: 0 | N59: 0 | O59: 0 | P59: 1 | Q59: 1 | R59: 1 | S59: 1 | T59: 1 | U59: 1 | V59: 1 | W59: 1 | X59: 0 | Y59: 0 | Z59: 0 | AA59: 0 | AB59: 0 | AC59: 0 | AD59: 0
A60: 1059 | B60: Cupboard | C60: B8 Storage or Distribution | D60: 0.1037142857 | E60: Ware_Store_Occ_Wk1 | F60: Wk1 | G60: 0 | H60: 0 | I60: 0 | J60: 0 | K60: 0 | L60: 0 | M60: 0 | N60: 0 | O60: 1 | P60: 1 | Q60: 1 | R60: 1 | S60: 1 | T60: 1 | U60: 1 | V60: 1 | W60: 1 | X60: 1 | Y60: 0 | Z60: 0 | AA60: 0 | AB60: 0 | AC60: 0 | AD60: 0
A61: 1060 | B61: Toilet | C61: B8 Storage or Distribution | D61: 0.1037142857 | E61: Ware_Toilet_Occ_Wk1 | F61: Wk1 | G61: 0 | H61: 0 | I61: 0 | J61: 0 | K61: 0 | L61: 0 | M61: 0 | N61: 0 | O61: 1 | P61: 1 | Q61: 1 | R61: 1 | S61: 1 | T61: 1 | U61: 1 | V61: 1 | W61: 1 | X61: 1 | Y61: 0 | Z61: 0 | AA61: 0 | AB61: 0 | AC61: 0 | AD61: 0
A62: 1063 | B62: Warehouse storage | C62: B8 Storage or Distribution | D62: 0.01085714286 | E62: Ware_WareStore_Occ_Wk1 | F62: Wk1 | G62: 0 | H62: 0 | I62: 0 | J62: 0 | K62: 0 | L62: 0 | M62: 0 | N62: 0 | O62: 1 | P62: 1 | Q62: 1 | R62: 1 | S62: 1 | T62: 1 | U62: 1 | V62: 1 | W62: 1 | X62: 1 | Y62: 0 | Z62: 0 | AA62: 0 | AB62: 0 | AC62: 0 | AD62: 0
A63: 1064 | B63: Changing facilities with showers | C63: B8 Storage or Distribution | D63: 0.325 | E63: Ware_Changing_Occ_WK1 | F63: WK1 | G63: 0 | H63: 0 | I63: 0 | J63: 0 | K63: 0 | L63: 0 | M63: 0 | N63: 0 | O63: 0 | P63: 0.25 | Q63: 0.25 | R63: 0.25 | S63: 0.25 | T63: 0.25 | U63: 0.25 | V63: 0.25 | W63: 0.25 | X63: 0 | Y63: 0 | Z63: 0 | AA63: 0 | AB63: 0 | AC63: 0 | AD63: 0
A64: 1066 | B64: Generic Office Area | C64: B8 Storage or Distribution | D64: 0.09514285714 | E64: Ware_CellOff_Occ_Wk1 | F64: Wk1 | G64: 0 | H64: 0 | I64: 0 | J64: 0 | K64: 0 | L64: 0 | M64: 0 | N64: 0 | O64: 1 | P64: 1 | Q64: 1 | R64: 1 | S64: 1 | T64: 1 | U64: 1 | V64: 1 | W64: 1 | X64: 1 | Y64: 0 | Z64: 0 | AA64: 0 | AB64: 0 | AC64: 0 | AD64: 0
A65: 1067 | B65: Circulation area (corridors and stairways) - non public | C65: A1/A2 Retail and Financial/Professional services | D65: 0.1037142857 | E65: Ret_Circulation_Occ_Wk1 | F65: Wk1 | G65: 0 | H65: 0 | I65: 0 | J65: 0 | K65: 0 | L65: 0 | M65: 0 | N65: 0 | O65: 1 | P65: 1 | Q65: 1 | R65: 1 | S65: 1 | T65: 1 | U65: 1 | V65: 1 | W65: 1 | X65: 1 | Y65: 0 | Z65: 0 | AA65: 0 | AB65: 0 | AC65: 0 | AD65: 0
A66: 1068 | B66: Food preparation area | C66: A1/A2 Retail and Financial/Professional services | D66: 0.108 | E66: Ret_FoodPrep_Occ_Wk1 | F66: Wk1 | G66: 0 | H66: 0 | I66: 0 | J66: 0 | K66: 0 | L66: 0 | M66: 0 | N66: 0 | O66: 0 | P66: 0.5 | Q66: 1 | R66: 1 | S66: 1 | T66: 0.75 | U66: 1 | V66: 0.75 | W66: 0 | X66: 0 | Y66: 0 | Z66: 0 | AA66: 0 | AB66: 0 | AC66: 0 | AD66: 0
A67: 1069 | B67: Eating/drinking area | C67: A1/A2 Retail and Financial/Professional services | D67: 0.3305084746 | E67: Ret_EatDrink_Occ_Wk1 Ret_EatDrink_Wk1 | F67: Wk1 | G67: 0 | H67: 0 | I67: 0 | J67: 0 | K67: 0 | L67: 0 | M67: 0 | N67: 0 | O67: 0 | P67: 0 | Q67: 0 | R67: 0.25 | S67: 1 | T67: 1 | U67: 0.75 | V67: 0 | W67: 0 | X67: 0 | Y67: 0 | Z67: 0 | AA67: 0 | AB67: 0 | AC67: 0 | AD67: 0
A68: 1070 | B68: Light plant room | C68: A1/A2 Retail and Financial/Professional services | D68: 0.1060714286 | E68: Ret_Plant_Occ_Wk1 | F68: Wk1 | G68: 0 | H68: 0 | I68: 0 | J68: 0 | K68: 0 | L68: 0 | M68: 0 | N68: 0 | O68: 0 | P68: 0 | Q68: 0 | R68: 0 | S68: 0 | T68: 0 | U68: 0 | V68: 0 | W68: 0 | X68: 0 | Y68: 0 | Z68: 0 | AA68: 0 | AB68: 0 | AC68: 0 | AD68: 0
A69: 1071 | B69: Small Shop Unit Sales area - general | C69: A1/A2 Retail and Financial/Professional services | D69: 0.116875 | E69: Ret_Sales_Occ_Wk1 | F69: Wk1 | G69: 0 | H69: 0 | I69: 0 | J69: 0 | K69: 0 | L69: 0 | M69: 0 | N69: 0 | O69: 0 | P69: 0.75 | Q69: 1 | R69: 1 | S69: 0.75 | T69: 0.75 | U69: 1 | V69: 1 | W69: 1 | X69: 0.75 | Y69: 0 | Z69: 0 | AA69: 0 | AB69: 0 | AC69: 0 | AD69: 0
A70: 1072 | B70: Small Shop Unit Sales area - chilled | C70: A1/A2 Retail and Financial/Professional services | D70: 0.116875 | E70: Ret_SalesChill_Occ_Wk1 | F70: Wk1 | G70: 0 | H70: 0 | I70: 0 | J70: 0 | K70: 0 | L70: 0 | M70: 0 | N70: 0 | O70: 0 | P70: 0.75 | Q70: 1 | R70: 1 | S70: 0.75 | T70: 0.75 | U70: 1 | V70: 1 | W70: 1 | X70: 0.75 | Y70: 0 | Z70: 0 | AA70: 0 | AB70: 0 | AC70: 0 | AD70: 0
A71: 1073 | B71: Small Shop Unit Sales area - electrical | C71: A1/A2 Retail and Financial/Professional services | D71: 0.116875 | E71: Ret_SalesElectric_Occ_Wk1 | F71: Wk1 | G71: 0 | H71: 0 | I71: 0 | J71: 0 | K71: 0 | L71: 0 | M71: 0 | N71: 0 | O71: 0 | P71: 0.75 | Q71: 1 | R71: 1 | S71: 0.75 | T71: 0.75 | U71: 1 | V71: 1 | W71: 1 | X71: 0.75 | Y71: 0 | Z71: 0 | AA71: 0 | AB71: 0 | AC71: 0 | AD71: 0
A72: 1074 | B72: Cupboard | C72: A1/A2 Retail and Financial/Professional services | D72: 0.1037142857 | E72: Ret_Store_Occ_Wk1 | F72: Wk1 | G72: 0 | H72: 0 | I72: 0 | J72: 0 | K72: 0 | L72: 0 | M72: 0 | N72: 0 | O72: 1 | P72: 1 | Q72: 1 | R72: 1 | S72: 1 | T72: 1 | U72: 1 | V72: 1 | W72: 1 | X72: 1 | Y72: 0 | Z72: 0 | AA72: 0 | AB72: 0 | AC72: 0 | AD72: 0
A73: 1077 | B73: Toilet | C73: A1/A2 Retail and Financial/Professional services | D73: 0.1037142857 | E73: Ret_Toilet_Occ_Wk1 | F73: Wk1 | G73: 0 | H73: 0 | I73: 0 | J73: 0 | K73: 0 | L73: 0 | M73: 0 | N73: 0 | O73: 1 | P73: 1 | Q73: 1 | R73: 1 | S73: 1 | T73: 1 | U73: 1 | V73: 1 | W73: 1 | X73: 1 | Y73: 0 | Z73: 0 | AA73: 0 | AB73: 0 | AC73: 0 | AD73: 0
A74: 1078 | B74: Generic Office Area | C74: A1/A2 Retail and Financial/Professional services | D74: 0.09514285714 | E74: Ret_CellOff_Occ_Wk1 | F74: =RIGHT(E74,3) -> Wk1 | G74: 0 | H74: 0 | I74: 0 | J74: 0 | K74: 0 | L74: 0 | M74: 0 | N74: 0 | O74: 1 | P74: 1 | Q74: 1 | R74: 1 | S74: 1 | T74: 1 | U74: 1 | V74: 1 | W74: 1 | X74: 1 | Y74: 0 | Z74: 0 | AA74: 0 | AB74: 0 | AC74: 0 | AD74: 0
A75: 1079 | B75: Domestic Lounge | C75: Residential spaces | D75: 0.01875630252 | E75: Dwell_DomLounge_Occ_Wk1 | F75: Wk1 | G75: 0 | H75: 0 | I75: 0 | J75: 0 | K75: 0 | L75: 0 | M75: 0 | N75: 0 | O75: 0 | P75: 0 | Q75: 0 | R75: 0 | S75: 0 | T75: 0 | U75: 0 | V75: 0 | W75: 0.5 | X75: 0.5 | Y75: 1 | Z75: 1 | AA75: 1 | AB75: 1 | AC75: 0.666666667 | AD75: 0
A76: 1080 | B76: Domestic Bedroom | C76: Residential spaces | D76: 0.02293877551 | E76: Dwell_DomBed_Occ_Wk1 | F76: Wk1 | G76: 1 | H76: 1 | I76: 1 | J76: 1 | K76: 1 | L76: 1 | M76: 1 | N76: 0.5 | O76: 0.25 | P76: 0 | Q76: 0 | R76: 0 | S76: 0 | T76: 0 | U76: 0 | V76: 0 | W76: 0 | X76: 0 | Y76: 0 | Z76: 0 | AA76: 0 | AB76: 0 | AC76: 0.25 | AD76: 0.75
A77: 1081 | B77: Domestic Dining room | C77: Residential spaces | D77: 0.01691629956 | E77: Dwell_DomDining_Occ_Wk1 | F77: Wk1 | G77: 0 | H77: 0 | I77: 0 | J77: 0 | K77: 0 | L77: 0 | M77: 0.25 | N77: 1 | O77: 1 | P77: 0.25 | Q77: 0 | R77: 0 | S77: 0 | T77: 0 | U77: 0 | V77: 0 | W77: 0 | X77: 0 | Y77: 0.5 | Z77: 1 | AA77: 1 | AB77: 0.3 | AC77: 0 | AD77: 0
A78: 1082 | B78: Domestic Toilet | C78: Residential spaces | D78: 0.02431718062 | E78: Dwell_DomToilet_Occ_Wk1 | F78: Wk1 | G78: 0 | H78: 0 | I78: 0 | J78: 0 | K78: 0 | L78: 0 | M78: 0.25 | N78: 1 | O78: 1 | P78: 0.25 | Q78: 0 | R78: 0 | S78: 0 | T78: 0 | U78: 0 | V78: 0 | W78: 0 | X78: 0 | Y78: 0.5 | Z78: 1 | AA78: 1 | AB78: 0.3 | AC78: 0 | AD78: 0
A79: 1083 | B79: Domestic Kitchen | C79: Residential spaces | D79: 0.0237037037 | E79: Dwell_DomKitchen_Occ_Wk1 | F79: Wk1 | G79: 0 | H79: 0 | I79: 0 | J79: 0 | K79: 0 | L79: 0 | M79: 0 | N79: 1 | O79: 1 | P79: 1 | Q79: 0 | R79: 0 | S79: 0 | T79: 0 | U79: 0 | V79: 0 | W79: 0 | X79: 0 | Y79: 0 | Z79: 0.2 | AA79: 0.2 | AB79: 0.2 | AC79: 0.2 | AD79: 0
A80: 1084 | B80: Domestic Circulation | C80: Residential spaces | D80: 0.01550387597 | E80: Dwell_DomCirculation_Occ_Wk1 | F80: Wk1 | G80: 0 | H80: 0 | I80: 0 | J80: 0 | K80: 0 | L80: 0 | M80: 0 | N80: 1 | O80: 1 | P80: 1 | Q80: 0 | R80: 0 | S80: 0 | T80: 0 | U80: 0 | V80: 0 | W80: 0 | X80: 0 | Y80: 0 | Z80: 0.2 | AA80: 0.2 | AB80: 0.2 | AC80: 0.2 | AD80: 0
A81: 1085 | B81: Domestic Bathroom | C81: Residential spaces | D81: 0.01873684211 | E81: Dwell_DomBath_Occ_Wk1 | F81: Wk1 | G81: 0 | H81: 0 | I81: 0 | J81: 0 | K81: 0 | L81: 0 | M81: 0 | N81: 1 | O81: 1 | P81: 1 | Q81: 0 | R81: 0 | S81: 0 | T81: 0 | U81: 0 | V81: 0 | W81: 0 | X81: 0 | Y81: 0 | Z81: 0.2 | AA81: 0.2 | AB81: 0.2 | AC81: 0.2 | AD81: 0
A82: 1086 | B82: Common circulation areas | C82: Residential spaces | D82: 0.0196460177 | E82: Dwell_DomCommonAreas_Occ_Wk1 | F82: Wk1 | G82: 0 | H82: 0 | I82: 0 | J82: 0 | K82: 0 | L82: 0 | M82: 0 | N82: 0.5 | O82: 1 | P82: 0.5 | Q82: 0 | R82: 0 | S82: 0 | T82: 0 | U82: 0 | V82: 0 | W82: 0 | X82: 0.25 | Y82: 0.5 | Z82: 0.75 | AA82: 1 | AB82: 1 | AC82: 0.75 | AD82: 0.25
A83: 1087 | B83: Cupboard | C83: C2 Residential Institutions - Hospitals and Care Homes | D83: 0.1015384615 | E83: Hosp_Store_Occ_WK1 | F83: WK1 | G83: 0 | H83: 0 | I83: 0 | J83: 0 | K83: 0 | L83: 0 | M83: 0 | N83: 1 | O83: 1 | P83: 1 | Q83: 1 | R83: 1 | S83: 1 | T83: 1 | U83: 1 | V83: 1 | W83: 1 | X83: 1 | Y83: 1 | Z83: 1 | AA83: 0 | AB83: 0 | AC83: 0 | AD83: 0
A84: 1088 | B84: Circulation area (corridors and stairways) - non-public/restricted | C84: C2 Residential Institutions - Hospitals and Care Homes | D84: 0.1135483871 | E84: Hosp_Circulation_Occ_WK1 | F84: WK1 | G84: 0 | H84: 0 | I84: 0 | J84: 0 | K84: 0 | L84: 0 | M84: 0 | N84: 1 | O84: 1 | P84: 1 | Q84: 1 | R84: 1 | S84: 1 | T84: 1 | U84: 1 | V84: 1 | W84: 1 | X84: 1 | Y84: 1 | Z84: 1 | AA84: 0 | AB84: 0 | AC84: 0 | AD84: 0
A85: 1089 | B85: Toilet | C85: C2 Residential Institutions - Hospitals and Care Homes | D85: 0.1177 | E85: Hosp_Toilet_Occ_WK1 | F85: WK1 | G85: 0 | H85: 0 | I85: 0 | J85: 0 | K85: 0 | L85: 0 | M85: 0 | N85: 0 | O85: 1 | P85: 1 | Q85: 1 | R85: 1 | S85: 1 | T85: 1 | U85: 1 | V85: 1 | W85: 1 | X85: 1 | Y85: 0 | Z85: 0 | AA85: 0 | AB85: 0 | AC85: 0 | AD85: 0
A86: 1090 | B86: Reception | C86: C2 Residential Institutions - Hospitals and Care Homes | D86: 0.1516666667 | E86: Hosp_Reception_Occ_WK1 | F86: WK1 | G86: 0 | H86: 0 | I86: 0 | J86: 0 | K86: 0 | L86: 0 | M86: 0 | N86: 0.25 | O86: 0.5 | P86: 1 | Q86: 1 | R86: 1 | S86: 0.75 | T86: 0.75 | U86: 1 | V86: 1 | W86: 1 | X86: 0.5 | Y86: 0.25 | Z86: 0 | AA86: 0 | AB86: 0 | AC86: 0 | AD86: 0
A87: 1093 | B87: Post Mortem Facility | C87: C2 Residential Institutions - Hospitals and Care Homes | D87: 0.05 | E87: Hosp_PostMortem_Occ_WK1 | F87: WK1 | G87: 0 | H87: 0 | I87: 0 | J87: 0 | K87: 0 | L87: 0 | M87: 0 | N87: 1 | O87: 1 | P87: 1 | Q87: 1 | R87: 1 | S87: 1 | T87: 1 | U87: 1 | V87: 1 | W87: 1 | X87: 1 | Y87: 1 | Z87: 1 | AA87: 1 | AB87: 0 | AC87: 0 | AD87: 0
A88: 1094 | B88: Eating/drinking area | C88: C2 Residential Institutions - Hospitals and Care Homes | D88: 0.35 | E88: Hosp_EatDrink_Occ_WK1 | F88: WK1 | G88: 0 | H88: 0 | I88: 0 | J88: 0 | K88: 0 | L88: 0 | M88: 0.25 | N88: 1 | O88: 1 | P88: 0.25 | Q88: 0 | R88: 0.25 | S88: 1 | T88: 1 | U88: 0.5 | V88: 0 | W88: 0 | X88: 0.5 | Y88: 1 | Z88: 1 | AA88: 0.5 | AB88: 0 | AC88: 0 | AD88: 0
A89: 1095 | B89: Food preparation area | C89: C2 Residential Institutions - Hospitals and Care Homes | D89: 0.161 | E89: Hosp_FoodPrep_Occ_WK1 | F89: WK1 | G89: 0 | H89: 0 | I89: 0 | J89: 0 | K89: 0 | L89: 0 | M89: 0 | N89: 0 | O89: 1 | P89: 1 | Q89: 1 | R89: 1 | S89: 1 | T89: 1 | U89: 1 | V89: 1 | W89: 1 | X89: 1 | Y89: 0 | Z89: 0 | AA89: 0 | AB89: 0 | AC89: 0 | AD89: 0
A90: 1096 | B90: Light plant room | C90: C2 Residential Institutions - Hospitals and Care Homes | D90: 0.1015384615 | E90: Hosp_Plant_Occ_WK1 | F90: WK1 | G90: 0 | H90: 0 | I90: 0 | J90: 0 | K90: 0 | L90: 0 | M90: 0 | N90: 0 | O90: 0 | P90: 0 | Q90: 0 | R90: 0 | S90: 0 | T90: 0 | U90: 0 | V90: 0 | W90: 0 | X90: 0 | Y90: 0 | Z90: 0 | AA90: 0 | AB90: 0 | AC90: 0 | AD90: 0
A91: 1097 | B91: Physiotherapy Studio | C91: C2 Residential Institutions - Hospitals and Care Homes | D91: 0.2 | E91: Hosp_Physiotherapy_Occ_Wk1 | F91: Wk1 | G91: 0 | H91: 0 | I91: 0 | J91: 0 | K91: 0 | L91: 0 | M91: 0 | N91: 0 | O91: 0 | P91: 0.75 | Q91: 1 | R91: 1 | S91: 0.75 | T91: 0.75 | U91: 1 | V91: 1 | W91: 1 | X91: 0.75 | Y91: 0 | Z91: 0 | AA91: 0 | AB91: 0 | AC91: 0 | AD91: 0
A92: 1098 | B92: Bedroom Unit | C92: C2 Residential Institutions - Hospitals and Care Homes | D92: 0.1046857143 | E92: Hosp_Bed_Occ_WK1 | F92: WK1 | G92: 1 | H92: 1 | I92: 1 | J92: 1 | K92: 1 | L92: 1 | M92: 1 | N92: 0.5 | O92: 0.25 | P92: 0 | Q92: 0 | R92: 0 | S92: 0 | T92: 0 | U92: 0 | V92: 0 | W92: 0 | X92: 0 | Y92: 0 | Z92: 0 | AA92: 0 | AB92: 0 | AC92: 0.25 | AD92: 0.75
A93: 1099 | B93: Laundry | C93: C2 Residential Institutions - Hospitals and Care Homes | D93: 0.1173333333 | E93: Hosp_Laund_Occ_Wk1 | F93: Wk1 | G93: 0 | H93: 0 | I93: 0 | J93: 0 | K93: 0 | L93: 0 | M93: 0 | N93: 0.25 | O93: 0.5 | P93: 1 | Q93: 1 | R93: 1 | S93: 0.75 | T93: 0.75 | U93: 1 | V93: 1 | W93: 1 | X93: 0.5 | Y93: 0.25 | Z93: 0 | AA93: 0 | AB93: 0 | AC93: 0 | AD93: 0
A94: 1100 | B94: 24 hrs Consulting/treatment areas | C94: C2 Residential Institutions - Hospitals and Care Homes | D94: 0 | E94: Hosp_AEConsRm_Occ_WK1 | F94: WK1 | G94: 1 | H94: 1 | I94: 1 | J94: 1 | K94: 1 | L94: 1 | M94: 1 | N94: 1 | O94: 1 | P94: 1 | Q94: 1 | R94: 1 | S94: 1 | T94: 1 | U94: 1 | V94: 1 | W94: 1 | X94: 1 | Y94: 1 | Z94: 1 | AA94: 1 | AB94: 1 | AC94: 1 | AD94: 1
A95: 1101 | B95: Assembly areas / halls | C95: C2 Residential Institutions - Hospitals and Care Homes | D95: 1 | E95: Hosp_Lecture_Occ_WK1 | F95: WK1 | G95: 0 | H95: 0 | I95: 0 | J95: 0 | K95: 0 | L95: 0 | M95: 0 | N95: 0 | O95: 0 | P95: 1 | Q95: 1 | R95: 1 | S95: 1 | T95: 1 | U95: 1 | V95: 1 | W95: 1 | X95: 0 | Y95: 0 | Z95: 0 | AA95: 0 | AB95: 0 | AC95: 0 | AD95: 0
A96: 1102 | B96: Hydrotherapy pool hall | C96: C2 Residential Institutions - Hospitals and Care Homes | D96: 0.1 | E96: Hosp_Hydrotherapy_Occ_WK1 | F96: WK1 | G96: 0 | H96: 0 | I96: 0 | J96: 0 | K96: 0 | L96: 0 | M96: 0 | N96: 0 | O96: 0 | P96: 1 | Q96: 1 | R96: 1 | S96: 1 | T96: 1 | U96: 1 | V96: 1 | W96: 1 | X96: 0 | Y96: 0 | Z96: 0 | AA96: 0 | AB96: 0 | AC96: 0 | AD96: 0
A97: 1103 | B97: Industrial process area | C97: C2 Residential Institutions - Hospitals and Care Homes | D97: 0.1235245902 | E97: Hosp_IndProcess_Occ_Wk1 | F97: Wk1 | G97: 0 | H97: 0 | I97: 0 | J97: 0 | K97: 0 | L97: 0 | M97: 0 | N97: 0.25 | O97: 0.5 | P97: 1 | Q97: 1 | R97: 1 | S97: 0.75 | T97: 0.75 | U97: 1 | V97: 1 | W97: 1 | X97: 0.5 | Y97: 0.25 | Z97: 0 | AA97: 0 | AB97: 0 | AC97: 0 | AD97: 0
A98: 1104 | B98: Laboratory | C98: C2 Residential Institutions - Hospitals and Care Homes | D98: 0.08 | E98: Hosp_Lab_Occ_WK1 | F98: WK1 | G98: 0 | H98: 0 | I98: 0 | J98: 0 | K98: 0 | L98: 0 | M98: 0 | N98: 0.25 | O98: 0.5 | P98: 1 | Q98: 1 | R98: 1 | S98: 0.75 | T98: 0.75 | U98: 1 | V98: 1 | W98: 1 | X98: 0.5 | Y98: 0.25 | Z98: 0 | AA98: 0 | AB98: 0 | AC98: 0 | AD98: 0
A99: 1105 | B99: Operating theatre | C99: C2 Residential Institutions - Hospitals and Care Homes | D99: 0.125 | E99: Hosp_OpTheatre_Occ_WK1 | F99: WK1 | N99: 1 | O99: 1 | P99: 1 | Q99: 1 | R99: 1 | S99: 1 | T99: 1 | U99: 1 | V99: 1 | W99: 1 | X99: 1 | Y99: 1 | Z99: 1 | AA99: 1
A100: 1106 | B100: Changing facilities with showers | C100: C2 Residential Institutions - Hospitals and Care Homes | D100: 0.5 | E100: Hosp_Changing_Occ_WK1 | F100: WK1 | G100: 0 | H100: 0 | I100: 0 | J100: 0 | K100: 0 | L100: 0 | M100: 0 | N100: 0 | O100: 1 | P100: 1 | Q100: 1 | R100: 1 | S100: 1 | T100: 1 | U100: 1 | V100: 1 | W100: 1 | X100: 1 | Y100: 0 | Z100: 0 | AA100: 0 | AB100: 0 | AC100: 0 | AD100: 0
A101: 1107 | B101: Classroom | C101: C2 Residential Institutions - Hospitals and Care Homes | D101: 1 | E101: Hosp_ClassRm_Occ_Wk1 | F101: Wk1 | G101: 0 | H101: 0 | I101: 0 | J101: 0 | K101: 0 | L101: 0 | M101: 0 | N101: 0 | O101: 0 | P101: 1 | Q101: 1 | R101: 1 | S101: 1 | T101: 1 | U101: 1 | V101: 1 | W101: 1 | X101: 0 | Y101: 0 | Z101: 0 | AA101: 0 | AB101: 0 | AC101: 0 | AD101: 0
A102: 1108 | B102: Diagnostic Imaging | C102: C2 Residential Institutions - Hospitals and Care Homes | D102: 0.1 | E102: Hosp_Diagnostic_Occ_WK1 | F102: WK1 | G102: 0 | H102: 0 | I102: 0 | J102: 0 | K102: 0 | L102: 0 | M102: 0 | N102: 1 | O102: 1 | P102: 1 | Q102: 1 | R102: 1 | S102: 1 | T102: 1 | U102: 1 | V102: 1 | W102: 1 | X102: 1 | Y102: 1 | Z102: 1 | AA102: 1 | AB102: 0 | AC102: 0 | AD102: 0
A103: 1109 | B103: Bathroom | C103: C2 Residential Institutions - Hospitals and Care Homes | D103: 0.2341162878 | E103: Hosp_Bath_Occ_WK1 | F103: WK1 | G103: 0 | H103: 0 | I103: 0 | J103: 0 | K103: 0 | L103: 0 | M103: 0.25 | N103: 1 | O103: 1 | P103: 0.25 | Q103: 0 | R103: 0 | S103: 0 | T103: 0 | U103: 0 | V103: 0 | W103: 0 | X103: 0 | Y103: 0.5 | Z103: 1 | AA103: 1 | AB103: 0.3 | AC103: 0 | AD103: 0
A104: 1110 | B104: Generic Ward | C104: C2 Residential Institutions - Hospitals and Care Homes | D104: 0.1751538462 | E104: Hosp_WardPatients_Occ_WK1 | F104: WK1 | G104: 0 | H104: 0 | I104: 0 | J104: 0 | K104: 0 | L104: 0 | M104: 0 | N104: 1 | O104: 1 | P104: 1 | Q104: 1 | R104: 1 | S104: 1 | T104: 1 | U104: 1 | V104: 1 | W104: 1 | X104: 1 | Y104: 1 | Z104: 1 | AA104: 0 | AB104: 0 | AC104: 0 | AD104: 0
A105: 1111 | B105: Office and consulting areas | C105: C2 Residential Institutions - Hospitals and Care Homes | D105: 0.195 | E105: Hosp_CellOff_Occ_WK1 | F105: WK1 | G105: 0 | H105: 0 | I105: 0 | J105: 0 | K105: 0 | L105: 0 | M105: 0 | N105: 0.25 | O105: 0.5 | P105: 1 | Q105: 1 | R105: 1 | S105: 0.75 | T105: 0.75 | U105: 1 | V105: 1 | W105: 1 | X105: 0.5 | Y105: 0.25 | Z105: 0 | AA105: 0 | AB105: 0 | AC105: 0 | AD105: 0
A106: 1112 | B106: Circulation area (corridors and stairways) - non public | C106: Others - Passenger terminals | D106: 0.1161111111 | E106: Terminal_Circulation_Occ_WK1 | F106: WK1 | G106: 0 | H106: 0 | I106: 0 | J106: 0 | K106: 0 | L106: 0 | M106: 0 | N106: 0.25 | O106: 0.5 | P106: 1 | Q106: 1 | R106: 1 | S106: 0.75 | T106: 0.75 | U106: 1 | V106: 1 | W106: 1 | X106: 0.5 | Y106: 0.25 | Z106: 0 | AA106: 0 | AB106: 0 | AC106: 0 | AD106: 0
A107: 1113 | B107: Light plant room | C107: Others - Passenger terminals | D107: 0.11 | E107: Terminal_Plant_Occ_WK1 | F107: WK1 | G107: 0 | H107: 0 | I107: 0 | J107: 0 | K107: 0 | L107: 0 | M107: 0 | N107: 0 | O107: 0 | P107: 0 | Q107: 0 | R107: 0 | S107: 0 | T107: 0 | U107: 0 | V107: 0 | W107: 0 | X107: 0 | Y107: 0 | Z107: 0 | AA107: 0 | AB107: 0 | AC107: 0 | AD107: 0
A108: 1114 | B108: Reception | C108: Others - Passenger terminals | D108: 0.121 | E108: Terminal_Reception_Occ_WK1 | F108: WK1 | G108: 0 | H108: 0 | I108: 0 | J108: 0 | K108: 0 | L108: 0 | M108: 0 | N108: 0 | O108: 1 | P108: 1 | Q108: 1 | R108: 1 | S108: 1 | T108: 1 | U108: 1 | V108: 1 | W108: 1 | X108: 1 | Y108: 0 | Z108: 0 | AA108: 0 | AB108: 0 | AC108: 0 | AD108: 0
A109: 1115 | B109: Cupboard | C109: Others - Passenger terminals | D109: 0.1184615385 | E109: Terminal_Store_Occ_WK1 | F109: WK1 | G109: 0 | H109: 0 | I109: 0 | J109: 0 | K109: 0 | L109: 0 | M109: 0 | N109: 1 | O109: 1 | P109: 1 | Q109: 1 | R109: 1 | S109: 1 | T109: 1 | U109: 1 | V109: 1 | W109: 1 | X109: 1 | Y109: 1 | Z109: 1 | AA109: 0 | AB109: 0 | AC109: 0 | AD109: 0
A110: 1118 | B110: Toilet | C110: Others - Passenger terminals | D110: 0.1188888889 | E110: Terminal_Toilet_Occ_WK1 | F110: WK1 | G110: 0 | H110: 0 | I110: 0 | J110: 0 | K110: 0 | L110: 0 | M110: 0 | N110: 0.25 | O110: 0.5 | P110: 1 | Q110: 1 | R110: 1 | S110: 0.75 | T110: 0.75 | U110: 1 | V110: 1 | W110: 1 | X110: 0.5 | Y110: 0.25 | Z110: 0 | AA110: 0 | AB110: 0 | AC110: 0 | AD110: 0
A111: 1118 | B111: Toilet | C111: Others - Passenger terminals | D111: 0.1188888889 | E111: Terminal_Toilet_Occ_Wk2 | F111: Wk2 | G111: 0 | H111: 0 | I111: 0 | J111: 0 | K111: 0 | L111: 0 | M111: 0 | N111: 0.25 | O111: 0.5 | P111: 1 | Q111: 1 | R111: 1 | S111: 0.75 | T111: 0.75 | U111: 1 | V111: 1 | W111: 1 | X111: 0.5 | Y111: 0.25 | Z111: 0 | AA111: 0 | AB111: 0 | AC111: 0 | AD111: 0
A112: 1119 | B112: Waiting Rooms | C112: Others - Passenger terminals | D112: 0.1846153846 | E112: Terminal_WaitRm_Occ_WK1 | F112: WK1 | G112: 0 | H112: 0 | I112: 0 | J112: 0 | K112: 0 | L112: 0 | M112: 0 | N112: 1 | O112: 1 | P112: 1 | Q112: 1 | R112: 1 | S112: 1 | T112: 1 | U112: 1 | V112: 1 | W112: 1 | X112: 1 | Y112: 1 | Z112: 1 | AA112: 0 | AB112: 0 | AC112: 0 | AD112: 0
A113: 1120 | B113: Lounges | C113: Others - Passenger terminals | D113: 0.2049319728 | E113: Terminal_Lounge_Occ_Wk1 | F113: Wk1 | G113: 0 | H113: 0 | I113: 0 | J113: 0 | K113: 0 | L113: 0 | M113: 0 | N113: 1 | O113: 1 | P113: 1 | Q113: 1 | R113: 1 | S113: 1 | T113: 1 | U113: 1 | V113: 1 | W113: 1 | X113: 1 | Y113: 1 | Z113: 1 | AA113: 1 | AB113: 0 | AC113: 0 | AD113: 0
A114: 1120 | B114: Lounges | C114: Others - Passenger terminals | D114: 0.2049319728 | E114: Terminal_Lounge_Occ_Wk2 | F114: Wk2 | G114: 0 | H114: 0 | I114: 0 | J114: 0 | K114: 0 | L114: 0 | M114: 0 | N114: 1 | O114: 1 | P114: 1 | Q114: 1 | R114: 1 | S114: 1 | T114: 1 | U114: 1 | V114: 1 | W114: 1 | X114: 1 | Y114: 1 | Z114: 1 | AA114: 1 | AB114: 0 | AC114: 0 | AD114: 0
A115: 1121 | B115: Food preparation area | C115: Others - Passenger terminals | D115: 0.1184615385 | E115: Terminal_FoodPrep_Occ_WK1 | F115: WK1 | G115: 0 | H115: 0 | I115: 0 | J115: 0 | K115: 0 | L115: 0 | M115: 0 | N115: 1 | O115: 1 | P115: 1 | Q115: 1 | R115: 1 | S115: 1 | T115: 1 | U115: 1 | V115: 1 | W115: 1 | X115: 1 | Y115: 1 | Z115: 1 | AA115: 0 | AB115: 0 | AC115: 0 | AD115: 0
A116: 1122 | B116: Eating/drinking area | C116: Others - Passenger terminals | D116: 0.2142857143 | E116: Terminal_EatDrink_Occ_WK1 | F116: WK1 | G116: 0 | H116: 0 | I116: 0 | J116: 0 | K116: 0 | L116: 0 | M116: 0 | N116: 1 | O116: 1 | P116: 1 | Q116: 1 | R116: 1 | S116: 1 | T116: 1 | U116: 1 | V116: 1 | W116: 1 | X116: 1 | Y116: 1 | Z116: 1 | AA116: 1 | AB116: 0 | AC116: 0 | AD116: 0
A117: 1123 | B117: Generic Office Area | C117: Others - Passenger terminals | D117: 0.1226481481 | E117: Terminal_CellOff_Occ_WK1 | F117: WK1 | G117: 0 | H117: 0 | I117: 0 | J117: 0 | K117: 0 | L117: 0 | M117: 0 | N117: 0.25 | O117: 0.5 | P117: 1 | Q117: 1 | R117: 1 | S117: 0.75 | T117: 0.75 | U117: 1 | V117: 1 | W117: 1 | X117: 0.5 | Y117: 0.25 | Z117: 0 | AA117: 0 | AB117: 0 | AC117: 0 | AD117: 0
A118: 1124 | B118: Generic Checkin areas | C118: Others - Passenger terminals | D118: 0.3414351852 | E118: Terminal_Check_Occ_Wk1 | F118: Wk1 | G118: 0 | H118: 0 | I118: 0 | J118: 0 | K118: 0 | L118: 0 | M118: 0 | N118: 0 | O118: 0 | P118: 0.25 | Q118: 0.25 | R118: 0.25 | S118: 0.25 | T118: 0.25 | U118: 0.25 | V118: 0.25 | W118: 0.25 | X118: 0 | Y118: 0 | Z118: 0 | AA118: 0 | AB118: 0 | AC118: 0 | AD118: 0
A119: 1124 | B119: Generic Checkin areas | C119: Others - Passenger terminals | D119: 0.3414351852 | E119: Terminal_Check_Occ_Wk2 | F119: Wk2 | G119: 0 | H119: 0 | I119: 0 | J119: 0 | K119: 0 | L119: 0 | M119: 0 | N119: 1 | O119: 1 | P119: 1 | Q119: 1 | R119: 1 | S119: 1 | T119: 1 | U119: 1 | V119: 1 | W119: 1 | X119: 1 | Y119: 1 | Z119: 1 | AA119: 1 | AB119: 0 | AC119: 0 | AD119: 0
A120: 1125 | B120: Cupboard | C120: Others - Emergency services | D120: 0.121 | E120: EmgcySvc_Store_Occ_WK1 | F120: WK1 | G120: 0 | H120: 0 | I120: 0 | J120: 0 | K120: 0 | L120: 0 | M120: 0 | N120: 0 | O120: 1 | P120: 1 | Q120: 1 | R120: 1 | S120: 1 | T120: 1 | U120: 1 | V120: 1 | W120: 1 | X120: 1 | Y120: 0 | Z120: 0 | AA120: 0 | AB120: 0 | AC120: 0 | AD120: 0
A121: 1126 | B121: Circulation area (corridors and stairways) | C121: Others - Emergency services | D121: 0.121 | E121: EmgcySvc_Circulation_Occ_WK1 | F121: WK1 | G121: 0 | H121: 0 | I121: 0 | J121: 0 | K121: 0 | L121: 0 | M121: 0 | N121: 0 | O121: 1 | P121: 1 | Q121: 1 | R121: 1 | S121: 1 | T121: 1 | U121: 1 | V121: 1 | W121: 1 | X121: 1 | Y121: 0 | Z121: 0 | AA121: 0 | AB121: 0 | AC121: 0 | AD121: 0
A122: 1127 | B122: Toilet | C122: Others - Emergency services | D122: 0.121 | E122: EmgcySvc_Toilet_Occ_WK1 | F122: WK1 | G122: 0 | H122: 0 | I122: 0 | J122: 0 | K122: 0 | L122: 0 | M122: 0 | N122: 0 | O122: 1 | P122: 1 | Q122: 1 | R122: 1 | S122: 1 | T122: 1 | U122: 1 | V122: 1 | W122: 1 | X122: 1 | Y122: 0 | Z122: 0 | AA122: 0 | AB122: 0 | AC122: 0 | AD122: 0
A123: 1128 | B123: Reception | C123: Others - Emergency services | D123: 0.1201851852 | E123: EmgcySvc_Reception_Occ_WK1 | F123: WK1 | G123: 0 | H123: 0 | I123: 0 | J123: 0 | K123: 0 | L123: 0 | M123: 0 | N123: 0.25 | O123: 0.5 | P123: 1 | Q123: 1 | R123: 1 | S123: 0.75 | T123: 0.75 | U123: 1 | V123: 1 | W123: 1 | X123: 0.5 | Y123: 0.25 | Z123: 0 | AA123: 0 | AB123: 0 | AC123: 0 | AD123: 0
A124: 1129 | B124: Changing facilities with showers | C124: Others - Emergency services | D124: 0.13 | E124: EmgcySvc_Changing_Occ_WK1 | F124: WK1 | G124: 0 | H124: 0 | I124: 0 | J124: 0 | K124: 0 | L124: 0 | M124: 0 | N124: 1 | O124: 1 | P124: 1 | Q124: 1 | R124: 1 | S124: 1 | T124: 1 | U124: 1 | V124: 1 | W124: 1 | X124: 1 | Y124: 1 | Z124: 1 | AA124: 0 | AB124: 0 | AC124: 0 | AD124: 0
A125: 1130 | B125: Food preparation area | C125: Others - Emergency services | D125: 0.2153389831 | E125: EmgcySvc_FoodPrep_Occ_WK1 | F125: WK1 | G125: 0 | H125: 0 | I125: 0 | J125: 0 | K125: 0 | L125: 0 | M125: 0 | N125: 0 | O125: 0 | P125: 0 | Q125: 0 | R125: 0.25 | S125: 1 | T125: 1 | U125: 0.75 | V125: 0 | W125: 0 | X125: 0 | Y125: 0 | Z125: 0 | AA125: 0 | AB125: 0 | AC125: 0 | AD125: 0
A126: 1131 | B126: Dry sports hall | C126: Others - Emergency services | D126: 0.05 | E126: EmgcySvc_DrySpt_Occ_WK1 | F126: WK1 | G126: 0 | H126: 0 | I126: 0 | J126: 0 | K126: 0 | L126: 0 | M126: 0 | N126: 0 | O126: 0 | P126: 1 | Q126: 1 | R126: 1 | S126: 1 | T126: 1 | U126: 1 | V126: 1 | W126: 1 | X126: 1 | Y126: 1 | Z126: 1 | AA126: 1 | AB126: 0 | AC126: 0 | AD126: 0
A127: 1132 | B127: Eating/drinking area | C127: Others - Emergency services | D127: 0.4128813559 | E127: EmgcySvc_EatDrink_Occ_WK1 | F127: WK1 | G127: 0 | H127: 0 | I127: 0 | J127: 0 | K127: 0 | L127: 0 | M127: 0 | N127: 0 | O127: 0 | P127: 0 | Q127: 0 | R127: 0.25 | S127: 1 | T127: 1 | U127: 0.75 | V127: 0 | W127: 0 | X127: 0 | Y127: 0 | Z127: 0 | AA127: 0 | AB127: 0 | AC127: 0 | AD127: 0
A128: 1133 | B128: Light plant room | C128: Others - Emergency services | D128: 0.11 | E128: EmgcySvc_Plant_Occ_WK1 | F128: WK1 | G128: 0 | H128: 0 | I128: 0 | J128: 0 | K128: 0 | L128: 0 | M128: 0 | N128: 0 | O128: 0 | P128: 0 | Q128: 0 | R128: 0 | S128: 0 | T128: 0 | U128: 0 | V128: 0 | W128: 0 | X128: 0 | Y128: 0 | Z128: 0 | AA128: 0 | AB128: 0 | AC128: 0 | AD128: 0
A129: 1134 | B129: Cell (police/prison) | C129: Others - Emergency services | D129: 0.2228571429 | E129: EmgcySvc_Cell_Occ_WK1 | F129: WK1 | G129: 1 | H129: 1 | I129: 1 | J129: 1 | K129: 1 | L129: 1 | M129: 1 | N129: 0.5 | O129: 0.25 | P129: 0 | Q129: 0 | R129: 0 | S129: 0 | T129: 0 | U129: 0 | V129: 0 | W129: 0 | X129: 0 | Y129: 0 | Z129: 0 | AA129: 0 | AB129: 0 | AC129: 0.25 | AD129: 0.75
A130: 1135 | B130: Bedroom | C130: Others - Emergency services | D130: 0.09142857143 | E130: EmgcySvc_Bed_Occ_WK1 | F130: WK1 | G130: 1 | H130: 1 | I130: 1 | J130: 1 | K130: 1 | L130: 1 | M130: 1 | N130: 0.5 | O130: 0.25 | P130: 0 | Q130: 0 | R130: 0 | S130: 0 | T130: 0 | U130: 0 | V130: 0 | W130: 0 | X130: 0 | Y130: 0 | Z130: 0 | AA130: 0 | AB130: 0 | AC130: 0.25 | AD130: 0.75
A131: 1136 | B131: Bathroom | C131: Others - Emergency services | D131: 0.1660377358 | E131: EmgcySvc_Bath_Occ_WK1 | F131: WK1 | G131: 0 | H131: 0 | I131: 0 | J131: 0 | K131: 0 | L131: 0 | M131: 0.25 | N131: 1 | O131: 1 | P131: 0.25 | Q131: 0 | R131: 0 | S131: 0 | T131: 0 | U131: 0 | V131: 0 | W131: 0 | X131: 0 | Y131: 0.5 | Z131: 1 | AA131: 1 | AB131: 0.3 | AC131: 0 | AD131: 0
A132: 1137 | B132: Fitness suite/gym | C132: Others - Emergency services | D132: 0.17 | E132: EmgcySvc_DrySpt_Occ_WK1 | F132: WK1 | G132: 0 | H132: 0 | I132: 0 | J132: 0 | K132: 0 | L132: 0 | M132: 0 | N132: 0 | O132: 0 | P132: 1 | Q132: 1 | R132: 1 | S132: 1 | T132: 1 | U132: 1 | V132: 1 | W132: 1 | X132: 1 | Y132: 1 | Z132: 1 | AA132: 1 | AB132: 0 | AC132: 0 | AD132: 0
A133: 1138 | B133: Generic Office Area | C133: Others - Emergency services | D133: 0.12765 | E133: EmgcySvc_CellOff_Occ_WK1 | F133: WK1 | G133: 0 | H133: 0 | I133: 0 | J133: 0 | K133: 0 | L133: 0 | M133: 0 | N133: 0.25 | O133: 0.5 | P133: 1 | Q133: 1 | R133: 1 | S133: 0.75 | T133: 0.75 | U133: 1 | V133: 1 | W133: 1 | X133: 0.5 | Y133: 0.25 | Z133: 0 | AA133: 0 | AB133: 0 | AC133: 0 | AD133: 0
A134: 1139 | B134: Circulation area (corridors and stairways) | C134: Others -Telephone exchanges | D134: 0.1067961165 | E134: TelExchg_Circulation_Occ_WK1 | F134: WK1 | G134: 0 | H134: 0 | I134: 0 | J134: 0 | K134: 0 | L134: 0 | M134: 0 | N134: 0.1 | O134: 0.25 | P134: 0.75 | Q134: 1 | R134: 1 | S134: 0.5 | T134: 0.5 | U134: 1 | V134: 1 | W134: 0.5 | X134: 0.5 | Y134: 0 | Z134: 0 | AA134: 0 | AB134: 0 | AC134: 0 | AD134: 0
A135: 1140 | B135: Toilet | C135: Others -Telephone exchanges | D135: 0.2005882353 | E135: TelExchg_Toilet_Occ_WK1 | F135: WK1 | G135: 0 | H135: 0 | I135: 0 | J135: 0 | K135: 0 | L135: 0 | M135: 0 | N135: 0 | O135: 0 | P135: 0 | Q135: 0 | R135: 0.25 | S135: 1 | T135: 1 | U135: 0.75 | V135: 0 | W135: 0 | X135: 0 | Y135: 0 | Z135: 0 | AA135: 0 | AB135: 0 | AC135: 0 | AD135: 0
A136: 1141 | B136: Reception | C136: Others -Telephone exchanges | D136: 0.12375 | E136: TelExchg_Reception_Occ_WK1 | F136: WK1 | G136: 0 | H136: 0 | I136: 0 | J136: 0 | K136: 0 | L136: 0 | M136: 0 | N136: 0 | O136: 0 | P136: 1 | Q136: 1 | R136: 1 | S136: 1 | T136: 1 | U136: 1 | V136: 1 | W136: 1 | X136: 0 | Y136: 0 | Z136: 0 | AA136: 0 | AB136: 0 | AC136: 0 | AD136: 0
A137: 1142 | B137: Light plant room | C137: Others -Telephone exchanges | D137: 0.11 | E137: TelExchg_Plant_Occ_WK1 | F137: WK1 | G137: 0 | H137: 0 | I137: 0 | J137: 0 | K137: 0 | L137: 0 | M137: 0 | N137: 0 | O137: 0 | P137: 0 | Q137: 0 | R137: 0 | S137: 0 | T137: 0 | U137: 0 | V137: 0 | W137: 0 | X137: 0 | Y137: 0 | Z137: 0 | AA137: 0 | AB137: 0 | AC137: 0 | AD137: 0
A138: 1143 | B138: Cupboard | C138: Others -Telephone exchanges | D138: 0.09333333333 | E138: TelExchg_Store_Occ_WK1 | F138: =RIGHT(E138,3) -> WK1 | G138: 0 | H138: 0 | I138: 0 | J138: 0 | K138: 0 | L138: 0 | M138: 0 | N138: 0 | O138: 1 | P138: 1 | Q138: 1 | R138: 1 | S138: 1 | T138: 1 | U138: 1 | V138: 1 | W138: 1 | X138: 1 | Y138: 0 | Z138: 0 | AA138: 0 | AB138: 0 | AC138: 0 | AD138: 0
A139: 1144 | B139: Generic Office Area | C139: Others -Telephone exchanges | D139: 0.09962704918 | E139: TelExchg_CellOff_Occ_WK1 | F139: WK1 | G139: 0 | H139: 0 | I139: 0 | J139: 0 | K139: 0 | L139: 0 | M139: 0 | N139: 0.25 | O139: 0.5 | P139: 1 | Q139: 1 | R139: 1 | S139: 0.75 | T139: 0.75 | U139: 1 | V139: 1 | W139: 1 | X139: 0.5 | Y139: 0.25 | Z139: 0 | AA139: 0 | AB139: 0 | AC139: 0 | AD139: 0
A140: 1145 | B140: Data Centre | C140: Others - Miscellaneous 24hr activities | D140: 0.09625 | E140: Misc24Hr_DataCentre_Occ_Wk1 | F140: Wk1 | G140: 0 | H140: 0 | I140: 0 | J140: 0 | K140: 0 | L140: 0 | M140: 0 | N140: 0 | O140: 0 | P140: 1 | Q140: 1 | R140: 1 | S140: 1 | T140: 1 | U140: 1 | V140: 1 | W140: 1 | X140: 0 | Y140: 0 | Z140: 0 | AA140: 0 | AB140: 0 | AC140: 0 | AD140: 0
A141: 1146 | B141: Server Room | C141: Others - Miscellaneous 24hr activities | D141: 0.09625 | E141: Misc24Hr_ServerRoom_Occ_Wk1 | F141: Wk1 | G141: 0 | H141: 0 | I141: 0 | J141: 0 | K141: 0 | L141: 0 | M141: 0 | N141: 0 | O141: 0 | P141: 1 | Q141: 1 | R141: 1 | S141: 1 | T141: 1 | U141: 1 | V141: 1 | W141: 1 | X141: 0 | Y141: 0 | Z141: 0 | AA141: 0 | AB141: 0 | AC141: 0 | AD141: 0
A142: 1147 | B142: Cupboard | C142: D1 Non-residential Institutions - Libraries Museums and Galleries | D142: 0.12375 | E142: LibMusGall_Store_Occ_WK1 | F142: WK1 | G142: 0 | H142: 0 | I142: 0 | J142: 0 | K142: 0 | L142: 0 | M142: 0 | N142: 0 | O142: 0 | P142: 1 | Q142: 1 | R142: 1 | S142: 1 | T142: 1 | U142: 1 | V142: 1 | W142: 1 | X142: 0 | Y142: 0 | Z142: 0 | AA142: 0 | AB142: 0 | AC142: 0 | AD142: 0
A143: 1148 | B143: Circulation area (corridors and stairways) - non public | C143: D1 Non-residential Institutions - Libraries Museums and Galleries | D143: 0.12375 | E143: LibMusGall_Circulation_Occ_WK1 | F143: WK1 | G143: 0 | H143: 0 | I143: 0 | J143: 0 | K143: 0 | L143: 0 | M143: 0 | N143: 0 | O143: 0 | P143: 1 | Q143: 1 | R143: 1 | S143: 1 | T143: 1 | U143: 1 | V143: 1 | W143: 1 | X143: 0 | Y143: 0 | Z143: 0 | AA143: 0 | AB143: 0 | AC143: 0 | AD143: 0
A144: 1149 | B144: Toilet | C144: D1 Non-residential Institutions - Libraries Museums and Galleries | D144: 0.12375 | E144: LibMusGall_Toilet_Occ_WK1 | F144: WK1 | G144: 0 | H144: 0 | I144: 0 | J144: 0 | K144: 0 | L144: 0 | M144: 0 | N144: 0 | O144: 0 | P144: 1 | Q144: 1 | R144: 1 | S144: 1 | T144: 1 | U144: 1 | V144: 1 | W144: 1 | X144: 0 | Y144: 0 | Z144: 0 | AA144: 0 | AB144: 0 | AC144: 0 | AD144: 0
A145: 1150 | B145: Reception | C145: D1 Non-residential Institutions - Libraries Museums and Galleries | D145: 0.09472222222 | E145: LibMusGall_Reception_Occ_WK1 | F145: WK1 | G145: 0 | H145: 0 | I145: 0 | J145: 0 | K145: 0 | L145: 0 | M145: 0 | N145: 0.25 | O145: 0.5 | P145: 1 | Q145: 1 | R145: 1 | S145: 0.75 | T145: 0.75 | U145: 1 | V145: 1 | W145: 1 | X145: 0.5 | Y145: 0.25 | Z145: 0 | AA145: 0 | AB145: 0 | AC145: 0 | AD145: 0
A146: 1151 | B146: Food preparation area | C146: D1 Non-residential Institutions - Libraries Museums and Galleries | D146: 0.1759999999 | E146: LibMusGall_FoodPrep_Occ_WK1 | F146: WK1 | G146: 0 | H146: 0 | I146: 0 | J146: 0 | K146: 0 | L146: 0 | M146: 0 | N146: 0 | O146: 0 | P146: 0 | Q146: 0 | R146: 0.25 | S146: 1 | T146: 1 | U146: 0.75 | V146: 0 | W146: 0 | X146: 0 | Y146: 0 | Z146: 0 | AA146: 0 | AB146: 0 | AC146: 0 | AD146: 0
A147: 1152 | B147: Hall/lecture theatre/assembly area | C147: D1 Non-residential Institutions - Libraries Museums and Galleries | D147: 0.15 | E147: LibMusGall_Lecture_Occ_WK1 | F147: WK1 | G147: 0 | H147: 0 | I147: 0 | J147: 0 | K147: 0 | L147: 0 | M147: 0 | N147: 0 | O147: 0 | P147: 1 | Q147: 1 | R147: 1 | S147: 1 | T147: 1 | U147: 1 | V147: 1 | W147: 1 | X147: 0 | Y147: 0 | Z147: 0 | AA147: 0 | AB147: 0 | AC147: 0 | AD147: 0
A148: 1153 | B148: Laboratory | C148: D1 Non-residential Institutions - Libraries Museums and Galleries | D148: 0.09777777778 | E148: LibMusGall_Lab_Occ_WK1 | F148: WK1 | G148: 0 | H148: 0 | I148: 0 | J148: 0 | K148: 0 | L148: 0 | M148: 0 | N148: 0.25 | O148: 0.5 | P148: 1 | Q148: 1 | R148: 1 | S148: 0.75 | T148: 0.75 | U148: 1 | V148: 1 | W148: 1 | X148: 0.5 | Y148: 0.25 | Z148: 0 | AA148: 0 | AB148: 0 | AC148: 0 | AD148: 0
A149: 1154 | B149: Eating/drinking area | C149: D1 Non-residential Institutions - Libraries Museums and Galleries | D149: 0.3199999999 | E149: LibMusGall_EatDrink_Occ_WK1 | F149: WK1 | G149: 0 | H149: 0 | I149: 0 | J149: 0 | K149: 0 | L149: 0 | M149: 0 | N149: 0 | O149: 0 | P149: 0 | Q149: 0 | R149: 0.25 | S149: 1 | T149: 1 | U149: 0.75 | V149: 0 | W149: 0 | X149: 0 | Y149: 0 | Z149: 0 | AA149: 0 | AB149: 0 | AC149: 0 | AD149: 0
A150: 1155 | B150: Light plant room | C150: D1 Non-residential Institutions - Libraries Museums and Galleries | D150: 0.11 | E150: LibMusGall_Plant_Occ_WK1 | F150: WK1 | G150: 0 | H150: 0 | I150: 0 | J150: 0 | K150: 0 | L150: 0 | M150: 0 | N150: 0 | O150: 0 | P150: 0 | Q150: 0 | R150: 0 | S150: 0 | T150: 0 | U150: 0 | V150: 0 | W150: 0 | X150: 0 | Y150: 0 | Z150: 0 | AA150: 0 | AB150: 0 | AC150: 0 | AD150: 0
A151: 1156 | B151: Workshop - small scale | C151: D1 Non-residential Institutions - Libraries Museums and Galleries | D151: 0.06222222222 | E151: LibMusGall_WkshpSS_Occ_WK1 | F151: WK1 | G151: 0 | H151: 0 | I151: 0 | J151: 0 | K151: 0 | L151: 0 | M151: 0 | N151: 0.25 | O151: 0.5 | P151: 1 | Q151: 1 | R151: 1 | S151: 0.75 | T151: 0.75 | U151: 1 | V151: 1 | W151: 1 | X151: 0.5 | Y151: 0.25 | Z151: 0 | AA151: 0 | AB151: 0 | AC151: 0 | AD151: 0
A152: 1157 | B152: Display and Public areas | C152: D1 Non-residential Institutions - Libraries Museums and Galleries | D152: 0.1497023153 | E152: LibMusGall_CirculationPub_Occ_Wk1 | F152: Wk1 | G152: 0 | H152: 0 | I152: 0 | J152: 0 | K152: 0 | L152: 0 | M152: 0 | N152: 0.25 | O152: 0.5 | P152: 1 | Q152: 1 | R152: 1 | S152: 0.75 | T152: 0.75 | U152: 1 | V152: 1 | W152: 1 | X152: 0.5 | Y152: 0.25 | Z152: 0 | AA152: 0 | AB152: 0 | AC152: 0 | AD152: 0
A153: 1158 | B153: Generic Office Area | C153: D1 Non-residential Institutions - Libraries Museums and Galleries | D153: 0.09866666667 | E153: LibMusGall_CellOff_Occ_WK1 | F153: WK1 | G153: 0 | H153: 0 | I153: 0 | J153: 0 | K153: 0 | L153: 0 | M153: 0 | N153: 0.25 | O153: 0.5 | P153: 1 | Q153: 1 | R153: 1 | S153: 0.75 | T153: 0.75 | U153: 1 | V153: 1 | W153: 1 | X153: 0.5 | Y153: 0.25 | Z153: 0 | AA153: 0 | AB153: 0 | AC153: 0 | AD153: 0
A154: 1159 | B154: Cupboard | C154: D1 Non-residential Institutions - Community/Day Centre | D154: 0.11 | E154: DayCtr_Store_Occ_WK1 | F154: WK1 | G154: 0 | H154: 0 | I154: 0 | J154: 0 | K154: 0 | L154: 0 | M154: 0 | N154: 0 | O154: 1 | P154: 1 | Q154: 1 | R154: 1 | S154: 1 | T154: 1 | U154: 1 | V154: 1 | W154: 1 | X154: 1 | Y154: 0 | Z154: 0 | AA154: 0 | AB154: 0 | AC154: 0 | AD154: 0
A155: 1160 | B155: Circulation area (corridors and stairways) | C155: D1 Non-residential Institutions - Community/Day Centre | D155: 0.11 | E155: DayCtr_Circulation_Occ_WK1 | F155: WK1 | G155: 0 | H155: 0 | I155: 0 | J155: 0 | K155: 0 | L155: 0 | M155: 0 | N155: 0 | O155: 1 | P155: 1 | Q155: 1 | R155: 1 | S155: 1 | T155: 1 | U155: 1 | V155: 1 | W155: 1 | X155: 1 | Y155: 0 | Z155: 0 | AA155: 0 | AB155: 0 | AC155: 0 | AD155: 0
A156: 1161 | B156: Toilet | C156: D1 Non-residential Institutions - Community/Day Centre | D156: 0.11 | E156: DayCtr_Toilet_Occ_WK1 | F156: WK1 | G156: 0 | H156: 0 | I156: 0 | J156: 0 | K156: 0 | L156: 0 | M156: 0 | N156: 0 | O156: 1 | P156: 1 | Q156: 1 | R156: 1 | S156: 1 | T156: 1 | U156: 1 | V156: 1 | W156: 1 | X156: 1 | Y156: 0 | Z156: 0 | AA156: 0 | AB156: 0 | AC156: 0 | AD156: 0
A157: 1162 | B157: Reception | C157: D1 Non-residential Institutions - Community/Day Centre | D157: 0.1084507042 | E157: DayCtr_Reception_Occ_WK1 | F157: WK1 | G157: 0 | H157: 0 | I157: 0 | J157: 0 | K157: 0 | L157: 0 | M157: 0 | N157: 0.1 | O157: 0.25 | P157: 0.75 | Q157: 1 | R157: 1 | S157: 0.5 | T157: 0.5 | U157: 1 | V157: 1 | W157: 0.5 | X157: 0.5 | Y157: 0 | Z157: 0 | AA157: 0 | AB157: 0 | AC157: 0 | AD157: 0
A158: 1163 | B158: Dry sports hall | C158: D1 Non-residential Institutions - Community/Day Centre | D158: 0.046875 | E158: DayCtr_DrySptHall_Occ_WK1 | F158: WK1 | G158: 0 | H158: 0 | I158: 0 | J158: 0 | K158: 0 | L158: 0 | M158: 0 | N158: 0 | O158: 0 | P158: 0.75 | Q158: 1 | R158: 1 | S158: 0.75 | T158: 0.75 | U158: 1 | V158: 1 | W158: 1 | X158: 0.75 | Y158: 0 | Z158: 0 | AA158: 0 | AB158: 0 | AC158: 0 | AD158: 0
A159: 1164 | B159: Food preparation area | C159: D1 Non-residential Institutions - Community/Day Centre | D159: 0.143 | E159: DayCtr_FoodPrep_Occ_WK1 | F159: WK1 | G159: 0 | H159: 0 | I159: 0 | J159: 0 | K159: 0 | L159: 0 | M159: 0 | N159: 0 | O159: 0 | P159: 0 | Q159: 0 | R159: 0.25 | S159: 1 | T159: 1 | U159: 0.75 | V159: 0 | W159: 0 | X159: 0 | Y159: 0 | Z159: 0 | AA159: 0 | AB159: 0 | AC159: 0 | AD159: 0
A160: 1165 | B160: Eating/drinking area | C160: D1 Non-residential Institutions - Community/Day Centre | D160: 0.3 | E160: DayCtr_EatDrink_Occ_WK1 | F160: WK1 | G160: 0 | H160: 0 | I160: 0 | J160: 0 | K160: 0 | L160: 0 | M160: 0 | N160: 0 | O160: 0 | P160: 0 | Q160: 0 | R160: 0.25 | S160: 1 | T160: 1 | U160: 0.75 | V160: 0 | W160: 0 | X160: 0 | Y160: 0 | Z160: 0 | AA160: 0 | AB160: 0 | AC160: 0 | AD160: 0
A161: 1166 | B161: Light plant room | C161: D1 Non-residential Institutions - Community/Day Centre | D161: 0.11 | E161: DayCtr_Plant_Occ_WK1 | F161: WK1 | G161: 0 | H161: 0 | I161: 0 | J161: 0 | K161: 0 | L161: 0 | M161: 0 | N161: 0 | O161: 0 | P161: 0 | Q161: 0 | R161: 0 | S161: 0 | T161: 0 | U161: 0 | V161: 0 | W161: 0 | X161: 0 | Y161: 0 | Z161: 0 | AA161: 0 | AB161: 0 | AC161: 0 | AD161: 0
A162: 1167 | B162: Changing facilities with showers | C162: D1 Non-residential Institutions - Community/Day Centre | D162: 0.11375 | E162: DayCtr_Changing_Occ_WK1 | F162: WK1 | G162: 0 | H162: 0 | I162: 0 | J162: 0 | K162: 0 | L162: 0 | M162: 0 | N162: 0 | O162: 0 | P162: 0.75 | Q162: 1 | R162: 1 | S162: 0.75 | T162: 0.75 | U162: 1 | V162: 1 | W162: 1 | X162: 0.75 | Y162: 0 | Z162: 0 | AA162: 0 | AB162: 0 | AC162: 0 | AD162: 0
A163: 1168 | B163: Workshop - small scale | C163: D1 Non-residential Institutions - Community/Day Centre | D163: 0.06416666667 | E163: DayCtr_WkshpSS_Occ_Wk1 | F163: Wk1 | G163: 0 | H163: 0 | I163: 0 | J163: 0 | K163: 0 | L163: 0 | M163: 0 | N163: 0 | O163: 0 | P163: 1 | Q163: 1 | R163: 1 | S163: 1 | T163: 1 | U163: 1 | V163: 1 | W163: 1 | X163: 1 | Y163: 1 | Z163: 1 | AA163: 1 | AB163: 0 | AC163: 0 | AD163: 0
A164: 1169 | B164: Hall/lecture theatre/assembly area | C164: D1 Non-residential Institutions - Community/Day Centre | D164: 0.1690140845 | E164: DayCtr_Lecture_Occ_WK1 | F164: WK1 | G164: 0 | H164: 0 | I164: 0 | J164: 0 | K164: 0 | L164: 0 | M164: 0 | N164: 0.1 | O164: 0.25 | P164: 0.75 | Q164: 1 | R164: 1 | S164: 0.5 | T164: 0.5 | U164: 1 | V164: 1 | W164: 0.5 | X164: 0.5 | Y164: 0 | Z164: 0 | AA164: 0 | AB164: 0 | AC164: 0 | AD164: 0
A165: 1170 | B165: Office and consulting areas | C165: D1 Non-residential Institutions - Community/Day Centre | D165: 0.1058802817 | E165: DayCtr_CellOff_Occ_WK1 | F165: WK1 | G165: 0 | H165: 0 | I165: 0 | J165: 0 | K165: 0 | L165: 0 | M165: 0 | N165: 0.1 | O165: 0.25 | P165: 0.75 | Q165: 1 | R165: 1 | S165: 0.5 | T165: 0.5 | U165: 1 | V165: 1 | W165: 0.5 | X165: 0.5 | Y165: 0 | Z165: 0 | AA165: 0 | AB165: 0 | AC165: 0 | AD165: 0
A166: 1171 | B166: Cupboard | C166: D1 Non-residential Institutions - Primary Health Care Building | D166: 0.121 | E166: PrmHlthCare_Store_Occ_WK1 | F166: WK1 | G166: 0 | H166: 0 | I166: 0 | J166: 0 | K166: 0 | L166: 0 | M166: 0 | N166: 0 | O166: 1 | P166: 1 | Q166: 1 | R166: 1 | S166: 1 | T166: 1 | U166: 1 | V166: 1 | W166: 1 | X166: 1 | Y166: 0 | Z166: 0 | AA166: 0 | AB166: 0 | AC166: 0 | AD166: 0
A167: 1172 | B167: Circulation area (corridors and stairways) | C167: D1 Non-residential Institutions - Primary Health Care Building | D167: 0.121 | E167: PrmHlthCare_Circulation_Occ_WK1 | F167: WK1 | G167: 0 | H167: 0 | I167: 0 | J167: 0 | K167: 0 | L167: 0 | M167: 0 | N167: 0 | O167: 1 | P167: 1 | Q167: 1 | R167: 1 | S167: 1 | T167: 1 | U167: 1 | V167: 1 | W167: 1 | X167: 1 | Y167: 0 | Z167: 0 | AA167: 0 | AB167: 0 | AC167: 0 | AD167: 0
A168: 1173 | B168: Toilet | C168: D1 Non-residential Institutions - Primary Health Care Building | D168: 0.121 | E168: PrmHlthCare_Toilet_Occ_WK1 | F168: WK1 | G168: 0 | H168: 0 | I168: 0 | J168: 0 | K168: 0 | L168: 0 | M168: 0 | N168: 0 | O168: 1 | P168: 1 | Q168: 1 | R168: 1 | S168: 1 | T168: 1 | U168: 1 | V168: 1 | W168: 1 | X168: 1 | Y168: 0 | Z168: 0 | AA168: 0 | AB168: 0 | AC168: 0 | AD168: 0
A169: 1174 | B169: Reception | C169: D1 Non-residential Institutions - Primary Health Care Building | D169: 0.11 | E169: PrmHlthCare_Reception_Occ_WK1 | F169: WK1 | G169: 0 | H169: 0 | I169: 0 | J169: 0 | K169: 0 | L169: 0 | M169: 0 | N169: 0.25 | O169: 0.5 | P169: 1 | Q169: 1 | R169: 1 | S169: 0.75 | T169: 0.75 | U169: 1 | V169: 1 | W169: 1 | X169: 0.5 | Y169: 0.25 | Z169: 0 | AA169: 0 | AB169: 0 | AC169: 0 | AD169: 0
A170: 1175 | B170: Light plant room | C170: D1 Non-residential Institutions - Primary Health Care Building | D170: 0.11 | E170: PrmHlthCare_Plant_Occ_WK1 | F170: WK1 | G170: 0 | H170: 0 | I170: 0 | J170: 0 | K170: 0 | L170: 0 | M170: 0 | N170: 0 | O170: 0 | P170: 0 | Q170: 0 | R170: 0 | S170: 0 | T170: 0 | U170: 0 | V170: 0 | W170: 0 | X170: 0 | Y170: 0 | Z170: 0 | AA170: 0 | AB170: 0 | AC170: 0 | AD170: 0
A171: 1176 | B171: Office and consulting areas | C171: D1 Non-residential Institutions - Primary Health Care Building | D171: 0.082 | E171: PrmHlthCare_CellOff_Occ_WK1 | F171: WK1 | G171: 0 | H171: 0 | I171: 0 | J171: 0 | K171: 0 | L171: 0 | M171: 0 | N171: 0.25 | O171: 0.5 | P171: 1 | Q171: 1 | R171: 1 | S171: 0.75 | T171: 0.75 | U171: 1 | V171: 1 | W171: 1 | X171: 0.5 | Y171: 0.25 | Z171: 0 | AA171: 0 | AB171: 0 | AC171: 0 | AD171: 0
A172: 1177 | B172: Cupboard | C172: D1 Non-residential Institutions - Crown and County Courts | D172: 0.12375 | E172: Court_Store_Occ_WK1 | F172: WK1 | G172: 0 | H172: 0 | I172: 0 | J172: 0 | K172: 0 | L172: 0 | M172: 0 | N172: 0 | O172: 0 | P172: 0.75 | Q172: 1 | R172: 1 | S172: 0.75 | T172: 0.75 | U172: 1 | V172: 1 | W172: 1 | X172: 0.75 | Y172: 0 | Z172: 0 | AA172: 0 | AB172: 0 | AC172: 0 | AD172: 0
A173: 1178 | B173: Circulation area (corridors and stairways) | C173: D1 Non-residential Institutions - Crown and County Courts | D173: 0.1124444444 | E173: Court_Circulation_Occ_WK1 | F173: WK1 | G173: 0 | H173: 0 | I173: 0 | J173: 0 | K173: 0 | L173: 0 | M173: 0 | N173: 0.25 | O173: 0.5 | P173: 1 | Q173: 1 | R173: 1 | S173: 0.75 | T173: 0.75 | U173: 1 | V173: 1 | W173: 1 | X173: 0.5 | Y173: 0.25 | Z173: 0 | AA173: 0 | AB173: 0 | AC173: 0 | AD173: 0
A174: 1179 | B174: Toilet | C174: D1 Non-residential Institutions - Crown and County Courts | D174: 0.1124444444 | E174: Court_Toilet_Occ_WK1 | F174: WK1 | G174: 0 | H174: 0 | I174: 0 | J174: 0 | K174: 0 | L174: 0 | M174: 0 | N174: 0.25 | O174: 0.5 | P174: 1 | Q174: 1 | R174: 1 | S174: 0.75 | T174: 0.75 | U174: 1 | V174: 1 | W174: 1 | X174: 0.5 | Y174: 0.25 | Z174: 0 | AA174: 0 | AB174: 0 | AC174: 0 | AD174: 0
A175: 1180 | B175: Reception | C175: D1 Non-residential Institutions - Crown and County Courts | D175: 0.1038888889 | E175: Court_Reception_Occ_WK1 | F175: WK1 | G175: 0 | H175: 0 | I175: 0 | J175: 0 | K175: 0 | L175: 0 | M175: 0 | N175: 0.25 | O175: 0.5 | P175: 1 | Q175: 1 | R175: 1 | S175: 0.75 | T175: 0.75 | U175: 1 | V175: 1 | W175: 1 | X175: 0.5 | Y175: 0.25 | Z175: 0 | AA175: 0 | AB175: 0 | AC175: 0 | AD175: 0
A176: 1181 | B176: Food preparation area | C176: D1 Non-residential Institutions - Crown and County Courts | D176: 0.1833333333 | E176: Court_FoodPrep_Occ_WK1 | F176: WK1 | G176: 0 | H176: 0 | I176: 0 | J176: 0 | K176: 0 | L176: 0 | M176: 0 | N176: 0 | O176: 0 | P176: 0 | Q176: 0 | R176: 0.25 | S176: 1 | T176: 1 | U176: 0.75 | V176: 0 | W176: 0 | X176: 0 | Y176: 0 | Z176: 0 | AA176: 0 | AB176: 0 | AC176: 0 | AD176: 0
A177: 1182 | B177: Hall/lecture theatre/assembly area | C177: D1 Non-residential Institutions - Crown and County Courts | D177: 0.1625 | E177: Court_Lecture_Occ_WK1 | F177: WK1 | G177: 0 | H177: 0 | I177: 0 | J177: 0 | K177: 0 | L177: 0 | M177: 0 | N177: 0 | O177: 0 | P177: 0.75 | Q177: 1 | R177: 1 | S177: 0.75 | T177: 0.75 | U177: 1 | V177: 1 | W177: 1 | X177: 0.75 | Y177: 0 | Z177: 0 | AA177: 0 | AB177: 0 | AC177: 0 | AD177: 0
A178: 1183 | B178: Eating/drinking area | C178: D1 Non-residential Institutions - Crown and County Courts | D178: 0.2577777777 | E178: Court_EatDrink_Occ_WK1 | F178: WK1 | G178: 0 | H178: 0 | I178: 0 | J178: 0 | K178: 0 | L178: 0 | M178: 0 | N178: 0 | O178: 0 | P178: 0 | Q178: 0 | R178: 0.25 | S178: 1 | T178: 1 | U178: 0.75 | V178: 0 | W178: 0 | X178: 0 | Y178: 0 | Z178: 0 | AA178: 0 | AB178: 0 | AC178: 0 | AD178: 0
A179: 1184 | B179: Light plant room | C179: D1 Non-residential Institutions - Crown and County Courts | D179: 0.11 | E179: Court_Plant_Occ_WK1 | F179: WK1 | G179: 0 | H179: 0 | I179: 0 | J179: 0 | K179: 0 | L179: 0 | M179: 0 | N179: 0 | O179: 0 | P179: 0 | Q179: 0 | R179: 0 | S179: 0 | T179: 0 | U179: 0 | V179: 0 | W179: 0 | X179: 0 | Y179: 0 | Z179: 0 | AA179: 0 | AB179: 0 | AC179: 0 | AD179: 0
A180: 1185 | B180: Cell (police/prison) | C180: D1 Non-residential Institutions - Crown and County Courts | D180: 0.143 | E180: Court_Cell_Occ_WK1 | F180: WK1 | G180: 0 | H180: 0 | I180: 0 | J180: 0 | K180: 0 | L180: 0 | M180: 0 | N180: 0 | O180: 1 | P180: 1 | Q180: 1 | R180: 1 | S180: 1 | T180: 1 | U180: 1 | V180: 1 | W180: 1 | X180: 1 | Y180: 0 | Z180: 0 | AA180: 0 | AB180: 0 | AC180: 0 | AD180: 0
A181: 1186 | B181: Generic Office Area | C181: D1 Non-residential Institutions - Crown and County Courts | D181: 0.1211619718 | E181: DayCtr_CellOff_Occ_WK1 | F181: WK1 | G181: 0 | H181: 0 | I181: 0 | J181: 0 | K181: 0 | L181: 0 | M181: 0 | N181: 0.1 | O181: 0.25 | P181: 0.75 | Q181: 1 | R181: 1 | S181: 0.5 | T181: 0.5 | U181: 1 | V181: 1 | W181: 0.5 | X181: 0.5 | Y181: 0 | Z181: 0 | AA181: 0 | AB181: 0 | AC181: 0 | AD181: 0
A182: 1187 | B182: Changing facilities with showers | C182: D2 General Assembly and Leisure plus Night Clubs and Theatres | D182: 0.1258730159 | E182: D2_Changing_Occ_WK1 | F182: WK1 | G182: 0 | H182: 0 | I182: 0 | J182: 0 | K182: 0 | L182: 0 | M182: 0 | N182: 0 | O182: 0 | P182: 1 | Q182: 1 | R182: 1 | S182: 1 | T182: 1 | U182: 1 | V182: 1 | W182: 1 | X182: 1 | Y182: 1 | Z182: 1 | AA182: 1 | AB182: 0 | AC182: 0 | AD182: 0
A183: 1188 | B183: Circulation area (corridors and stairways) - non public | C183: D2 General Assembly and Leisure plus Night Clubs and Theatres | D183: 0.1008333333 | E183: D2_Circulation_Occ_WK1 | F183: WK1 | G183: 0 | H183: 0 | I183: 0 | J183: 0 | K183: 0 | L183: 0 | M183: 0 | N183: 0 | O183: 0 | P183: 1 | Q183: 1 | R183: 1 | S183: 1 | T183: 1 | U183: 1 | V183: 1 | W183: 1 | X183: 1 | Y183: 1 | Z183: 1 | AA183: 1 | AB183: 0 | AC183: 0 | AD183: 0
A184: 1189 | B184: Dry sports hall | C184: D2 General Assembly and Leisure plus Night Clubs and Theatres | D184: 0.04671052632 | E184: D2_DrySptHall_Occ_WK1 | F184: WK1 | G184: 0 | H184: 0 | I184: 0 | J184: 0 | K184: 0 | L184: 0 | M184: 0 | N184: 0 | O184: 0 | P184: 1 | Q184: 1 | R184: 1 | S184: 1 | T184: 1 | U184: 1 | V184: 1 | W184: 1 | X184: 1 | Y184: 1 | Z184: 1 | AA184: 1 | AB184: 0 | AC184: 0 | AD184: 0
A185: 1190 | B185: Eating/drinking area | C185: D2 General Assembly and Leisure plus Night Clubs and Theatres | D185: 0.2183050846 | E185: D2_EatDrink_Occ_WK1 | F185: WK1 | G185: 0 | H185: 0 | I185: 0 | J185: 0 | K185: 0 | L185: 0 | M185: 0 | N185: 0 | O185: 0 | P185: 0 | Q185: 0 | R185: 0.25 | S185: 1 | T185: 1 | U185: 0.75 | V185: 0 | W185: 0 | X185: 0 | Y185: 0 | Z185: 0 | AA185: 0 | AB185: 0 | AC185: 0 | AD185: 0
A186: 1191 | B186: Fitness Studio | C186: D2 General Assembly and Leisure plus Night Clubs and Theatres | D186: 0.1322222222 | E186: D2_FitStud_Occ_Wk1 | F186: Wk1 | G186: 0 | H186: 0 | I186: 0 | J186: 0 | K186: 0 | L186: 0 | M186: 0 | N186: 0 | O186: 0 | P186: 1 | Q186: 1 | R186: 1 | S186: 1 | T186: 1 | U186: 1 | V186: 1 | W186: 1 | X186: 1 | Y186: 1 | Z186: 1 | AA186: 1 | AB186: 0 | AC186: 0 | AD186: 0
A187: 1192 | B187: Fitness suite/gym | C187: D2 General Assembly and Leisure plus Night Clubs and Theatres | D187: 0.17 | E187: D2_FitGym_Occ_Wk1 | F187: Wk1 | G187: 0 | H187: 0 | I187: 0 | J187: 0 | K187: 0 | L187: 0 | M187: 0.25 | N187: 1 | O187: 1 | P187: 0.25 | Q187: 0 | R187: 0.25 | S187: 1 | T187: 1 | U187: 0.5 | V187: 0 | W187: 0 | X187: 0.5 | Y187: 1 | Z187: 1 | AA187: 0.5 | AB187: 0 | AC187: 0 | AD187: 0
A188: 1193 | B188: Food preparation area | C188: D2 General Assembly and Leisure plus Night Clubs and Theatres | D188: 0.1305084745 | E188: D2_FoodPrep_Occ_WK1 | F188: WK1 | G188: 0 | H188: 0 | I188: 0 | J188: 0 | K188: 0 | L188: 0 | M188: 0 | N188: 0 | O188: 0 | P188: 0 | Q188: 0 | R188: 0.25 | S188: 1 | T188: 1 | U188: 0.75 | V188: 0 | W188: 0 | X188: 0 | Y188: 0 | Z188: 0 | AA188: 0 | AB188: 0 | AC188: 0 | AD188: 0
A189: 1194 | B189: Hall/lecture theatre/assembly area | C189: D2 General Assembly and Leisure plus Night Clubs and Theatres | D189: 0.175 | E189: D2_Lecture_Occ_WK1 | F189: WK1 | G189: 0 | H189: 0 | I189: 0 | J189: 0 | K189: 0 | L189: 0 | M189: 0 | N189: 0 | O189: 0 | P189: 0.75 | Q189: 1 | R189: 1 | S189: 0.75 | T189: 0.75 | U189: 1 | V189: 1 | W189: 1 | X189: 0.75 | Y189: 0 | Z189: 0 | AA189: 0 | AB189: 0 | AC189: 0 | AD189: 0
A190: 1195 | B190: Auditoria | C190: D2 General Assembly and Leisure plus Night Clubs and Theatres | D190: 0.3411764705 | E190: D2_Auditoria_Occ_WK1 | F190: WK1 | G190: 0 | H190: 0 | I190: 0 | J190: 0 | K190: 0 | L190: 0 | M190: 0 | N190: 0 | O190: 0 | P190: 0 | Q190: 0 | R190: 0 | S190: 0 | T190: 0 | U190: 0 | V190: 0 | W190: 0.5 | X190: 0.5 | Y190: 1 | Z190: 1 | AA190: 1 | AB190: 1 | AC190: 0.666666667 | AD190: 0
A191: 1196 | B191: Ice rink | C191: D2 General Assembly and Leisure plus Night Clubs and Theatres | D191: 0.225 | E191: D2_IceRink_Occ_WK1 | F191: WK1 | G191: 0 | H191: 0 | I191: 0 | J191: 0 | K191: 0 | L191: 0 | M191: 0 | N191: 0 | O191: 0 | P191: 0.75 | Q191: 1 | R191: 1 | S191: 0.75 | T191: 0.75 | U191: 1 | V191: 1 | W191: 1 | X191: 0.75 | Y191: 0 | Z191: 0 | AA191: 0 | AB191: 0 | AC191: 0 | AD191: 0
A192: 1197 | B192: Laundry | C192: D2 General Assembly and Leisure plus Night Clubs and Theatres | D192: 0.09625 | E192: D2_Laund_Occ_Wk1 | F192: Wk1 | G192: 0 | H192: 0 | I192: 0 | J192: 0 | K192: 0 | L192: 0 | M192: 0 | N192: 0 | O192: 0 | P192: 1 | Q192: 1 | R192: 1 | S192: 1 | T192: 1 | U192: 1 | V192: 1 | W192: 1 | X192: 0 | Y192: 0 | Z192: 0 | AA192: 0 | AB192: 0 | AC192: 0 | AD192: 0
A193: 1198 | B193: Performance area (stage) | C193: D2 General Assembly and Leisure plus Night Clubs and Theatres | D193: 0.04941176471 | E193: D2_Stage_Occ_WK1 | F193: WK1 | G193: 0 | H193: 0 | I193: 0 | J193: 0 | K193: 0 | L193: 0 | M193: 0 | N193: 0 | O193: 0 | P193: 0 | Q193: 0 | R193: 0 | S193: 0 | T193: 0 | U193: 0 | V193: 0 | W193: 0.5 | X193: 0.5 | Y193: 1 | Z193: 1 | AA193: 1 | AB193: 1 | AC193: 0.666666667 | AD193: 0
A194: 1199 | B194: Light plant room | C194: D2 General Assembly and Leisure plus Night Clubs and Theatres | D194: 0.11 | E194: D2_Plant_Occ_WK1 | F194: WK1 | G194: 0 | H194: 0 | I194: 0 | J194: 0 | K194: 0 | L194: 0 | M194: 0 | N194: 0 | O194: 0 | P194: 0 | Q194: 0 | R194: 0 | S194: 0 | T194: 0 | U194: 0 | V194: 0 | W194: 0 | X194: 0 | Y194: 0 | Z194: 0 | AA194: 0 | AB194: 0 | AC194: 0 | AD194: 0
A195: 1200 | B195: Public circulation areas | C195: D2 General Assembly and Leisure plus Night Clubs and Theatres | D195: 0.2411764706 | E195: D2_CirculationPub_Occ_Wk1 | F195: Wk1 | G195: 0 | H195: 0 | I195: 0 | J195: 0 | K195: 0 | L195: 0 | M195: 0 | N195: 0 | O195: 0 | P195: 0 | Q195: 0 | R195: 0 | S195: 0 | T195: 0 | U195: 0 | V195: 0 | W195: 0.5 | X195: 0.5 | Y195: 1 | Z195: 1 | AA195: 1 | AB195: 1 | AC195: 0.666666667 | AD195: 0
A196: 1201 | B196: Reception | C196: D2 General Assembly and Leisure plus Night Clubs and Theatres | D196: 0.1255833333 | E196: D2_Reception_Occ_WK1 | F196: WK1 | G196: 0 | H196: 0 | I196: 0 | J196: 0 | K196: 0 | L196: 0 | M196: 0 | N196: 0 | O196: 0 | P196: 0.75 | Q196: 1 | R196: 1 | S196: 0.75 | T196: 0.75 | U196: 1 | V196: 1 | W196: 1 | X196: 0.75 | Y196: 0 | Z196: 0 | AA196: 0 | AB196: 0 | AC196: 0 | AD196: 0
A197: 1202 | B197: Sales area - general | C197: D2 General Assembly and Leisure plus Night Clubs and Theatres | D197: 0.1022535211 | E197: D2_Sales_Occ_WK1 | F197: WK1 | G197: 0 | H197: 0 | I197: 0 | J197: 0 | K197: 0 | L197: 0 | M197: 0 | N197: 0.1 | O197: 0.25 | P197: 0.75 | Q197: 1 | R197: 1 | S197: 0.5 | T197: 0.5 | U197: 1 | V197: 1 | W197: 0.5 | X197: 0.5 | Y197: 0 | Z197: 0 | AA197: 0 | AB197: 0 | AC197: 0 | AD197: 0
A198: 1203 | B198: Cupboard | C198: D2 General Assembly and Leisure plus Night Clubs and Theatres | D198: 0.11 | E198: D2_Store_Occ_WK1 | F198: WK1 | G198: 0 | H198: 0 | I198: 0 | J198: 0 | K198: 0 | L198: 0 | M198: 0 | N198: 1 | O198: 1 | P198: 1 | Q198: 1 | R198: 1 | S198: 1 | T198: 1 | U198: 1 | V198: 1 | W198: 1 | X198: 1 | Y198: 1 | Z198: 1 | AA198: 0 | AB198: 0 | AC198: 0 | AD198: 0
A199: 1204 | B199: Swimming pool | C199: D2 General Assembly and Leisure plus Night Clubs and Theatres | D199: 0.1630534106 | E199: D2_Swim_Occ_WK1 | F199: WK1 | G199: 0 | H199: 0 | I199: 0 | J199: 0 | K199: 0 | L199: 0 | M199: 0 | N199: 0 | O199: 0 | P199: 1 | Q199: 1 | R199: 1 | S199: 1 | T199: 1 | U199: 1 | V199: 1 | W199: 1 | X199: 1 | Y199: 1 | Z199: 1 | AA199: 1 | AB199: 0 | AC199: 0 | AD199: 0
A200: 1204 | B200: Swimming pool | C200: D2 General Assembly and Leisure plus Night Clubs and Theatres | D200: 0.1630534106 | E200: D2_Swim_Occ_Wk2 | F200: Wk2 | G200: 0 | H200: 0 | I200: 0 | J200: 0 | K200: 0 | L200: 0 | M200: 0 | N200: 1 | O200: 1 | P200: 1 | Q200: 1 | R200: 1 | S200: 1 | T200: 1 | U200: 1 | V200: 1 | W200: 1 | X200: 1 | Y200: 1 | Z200: 1 | AA200: 0 | AB200: 0 | AC200: 0 | AD200: 0
A201: 1205 | B201: Toilet | C201: D2 General Assembly and Leisure plus Night Clubs and Theatres | D201: 0.1008333333 | E201: D2_Toilet_Occ_WK1 | F201: WK1 | G201: 0 | H201: 0 | I201: 0 | J201: 0 | K201: 0 | L201: 0 | M201: 0 | N201: 0 | O201: 0 | P201: 1 | Q201: 1 | R201: 1 | S201: 1 | T201: 1 | U201: 1 | V201: 1 | W201: 1 | X201: 1 | Y201: 1 | Z201: 1 | AA201: 1 | AB201: 0 | AC201: 0 | AD201: 0
A202: 1206 | B202: Workshop - small scale | C202: D2 General Assembly and Leisure plus Night Clubs and Theatres | D202: 0.06708333334 | E202: D2_WkshpSS_Occ_WK1 | F202: =RIGHT(E202,3) -> WK1 | G202: 0 | H202: 0 | I202: 0 | J202: 0 | K202: 0 | L202: 0 | M202: 0 | N202: 0 | O202: 0 | P202: 0.75 | Q202: 1 | R202: 1 | S202: 0.75 | T202: 0.75 | U202: 1 | V202: 1 | W202: 1 | X202: 0.75 | Y202: 0 | Z202: 0 | AA202: 0 | AB202: 0 | AC202: 0 | AD202: 0
... 157 more rows

Sheet Activity database (hidden)
A1: 1 | B1: 2 | C1: 3 | D1: 4 | E1: 5 | F1: 6 | G1: 7 | H1: 8 | I1: 9 | J1: 10 | K1: 11 | L1: 12 | M1: 13 | N1: 14 | O1: 15 | P1: 16 | Q1: 17 | R1: 18 | S1: 19 | T1: 20 | U1: 21 | V1: 22 | W1: 23 | X1: 24 | Y1: 25 | Z1: 26 | AA1: 27 | AB1: 28 | AC1: 29 | AD1: 30 | AE1: 31 | AF1: 32 | AG1: 33 | AH1: 34 | AI1: 35 | AJ1: 36 | AK1: 37 | AL1: 38 | AM1: 39 | AN1: 40 | AO1: 41 | AP1: 42 | AQ1: 43 | AR1: 44 | AT1: 1 | AU1: 2 | AV1: 3 | AW1: 4 | AX1: 5 | AY1: 6 | AZ1: 7 | BA1: 8
C2: Building occupation data | F2: User | G2: Gender ratio | I2: Component uses/person/day (unless stated differently for specific uses or activity areas) | AA2: Usage factors | AQ2: Adjustment factors | AT2: Microcomponent Performance Levels for BREEAM water consumption method benchmarking
A3: Building category and main activity area/function | B3: Description | C3: Occupant density (person/m2) | D3: No. days/yr building occupied | E3: default daily hrs of operation | F3: Type | G3: Ratio male users | H3: Ratio female users | I3: WC - male (urinals installed) | J3: WC - male (no urinals installed) | K3: WC - female | L3: Urinal | M3: Wash hand basin taps | N3: Shower use | O3: Shower use (bath present) | P3: Bath use (no shower present) | Q3: Bath use (shower present) | R3: Kitchen taps - kitchenette | S3: Kitchen taps - pre-rinse nozzle | T3: blank column | U3: Dishwasher | V3: Washing machine | W3: Waste disposal unit | X3: Fixed use - vessel filling | Y3: Fixed use - food preparation | Z3: Fixed use - kitchen cleaning | AA3: WC (factor of use | AB3: Urinals (factor of use) | AC3: Wash hand basin taps (mins/use) | AD3: Showers (no bath present) - mins/use | AE3: Showers (bath present) mins/use | AF3: Bath (No shower present) ratio | AG3: Bath (shower present) ratio | AH3: Kitchen taps - kitchenette mins/day | AI3: Kitchen taps - pre-rinse nozzle | AJ3: blank | AK3: Dishwasher | AL3: Washing machine | AM3: Waste dispoal unit | AN3: Fixed use - vessel filling | AO3: Fixed use - food preparation | AP3: Fixed use - kitchen cleaning | AQ3: Baths | AR3: Taps | AT3: Component | AU3: Baseline | AV3: Level 1 | AW3: Level 2 | AX3: Level 3 | AY3: Level 4 | AZ3: Level 5 | BA3: Unit | BC3: BREEAM credit benchmarks | BF3: Sources of data/information
A4: Office | B4: Offices and workshop business (including those with a basic (category 1) laboratory area) | C4: - | D4: 253 | E4: 10 | F4: Staff | G4: 0.5 | H4: 0.5 | I4: 1 | J4: 4 | K4: 4 | L4: 3 | M4: 4 | N4: 0.03 | O4: N/A | P4: N/A | Q4: N/A | R4: - | S4: - | T4: - | U4: - | V4: N/A | W4: - | X4: 1.58 | Y4: - | Z4: - | AA4: 1 | AB4: 1 | AC4: 0.25 | AD4: 5.6 | AE4: 4.37 | AF4: 1 | AG4: 1 | AH4: - | AI4: - | AJ4: - | AK4: - | AL4: - | AM4: - | AN4: 1 | AO4: - | AP4: - | AQ4: 0.4 | AR4: 0.677 | AT4: WC - male (urinals installed) | AU4: 6 | AV4: 4.5 | AW4: 4 | AX4: 3.75 | AY4: 3.5 | AZ4: 3 | BA4: Effective flush volume (litres) | BC4: 0 | BD4: 0 credits | BF4: SD129: Certification and Listing of Low Flush WC appliances
A5: Office - Office areas | B5: Cellular or open plan office space, including staff kitchen where present/adjacent and reception areas. Exlcude meeting rooms, visitor waiting or circulation areas. | C5: 0.111 | R5: 1 | U5: 0.04 | AH5: 0.67 | AK5: 1 | AL5: N/A | AT5: WC - male (no urinals installed) | AU5: 6 | AV5: 4.5 | AW5: 4 | AX5: 3.75 | AY5: 3.5 | AZ5: 3 | BA5: Effective flush volume (litres) | BC5: 0.125 | BD5: 1 credit | BF5: Waterwise
A6: Office - Staff canteen dining area | B6: Seated dining areas that accompany a permanently staffed kitchen preparing food for consumption on the premises (excludes small un-staffed kitchen's used by office staff to re-heat food, make tea etc.) | C6: 0.0433 | S6: see usage factor | U6: see usage factor | V6: N/A | W6: see usage factor | Y6: =IF('Office calculator'!F16="yes",'Office calculator'!G16*0.868*2.674,"see note") -> see note | Z6: =IF('Office calculator'!F16="yes",'Office calculator'!G16*6.314*0.868,"See note") -> See note | AI6: 60 | AK6: 0.217 | AL6: N/A | AM6: 30 | AO6: 1 | AP6: 1 | AT6: WC - female | AU6: 6 | AV6: 4.5 | AW6: 4 | AX6: 3.75 | AY6: 3.5 | AZ6: 3 | BA6: Effective flush volume (litres) | BC6: 0.25 | BD6: 2 credits | BF6: Water efficient product labelling scheme
A7: Office - Small workshop / laboratory space | B7: Small scale workshop or category 1 laboratory area | C7: 0.068 | AT7: Wash hand basin taps | AU7: 10 | AV7: 8 | AW7: 6 | AX7: 5 | AY7: 3.75 | AZ7: 3 | BA7: Volume (litres/min) | BC7: 0.4 | BD7: 3 credits | BF7: Water Supply (water fittings) Regulations 1999: WC Suite Performance Specifications
A8: Office - Fitness suite/gym (with changing facility and showers) | B8: A fitness suite or gym that is part of the office building/development and used by the building's employees only. The gym will have its own changing facility with showers. | C8: 0 | N8: 0.154 | X8: 0.05 | AT8: Showers | AU8: 12 | AV8: 10 | AW8: 8 | AX8: 6 | AY8: 4 | AZ8: 3.5 | BA8: Volume (litres/min) | BC8: 0.5 | BD8: 4 credits | BF8: (Very early) Draft BS8542
A9: Industrial - 24hr x 7 day operation | B9: General and specialist industrail and warehouse and storage units operating 24 hours a day 7 days a week. | C9: - | D9: 365 | E9: 24 | F9: Staff | G9: 0.5 | H9: 0.5 | I9: 1 | J9: 4 | K9: 4 | L9: 3 | M9: 4 | N9: 0.03 | O9: N/A | P9: N/A | Q9: N/A | R9: - | S9: - | T9: - | U9: - | V9: N/A | W9: - | X9: 1.58 | Y9: - | Z9: - | AA9: 1 | AB9: 1 | AC9: 0.25 | AD9: 5.6 | AE9: 4.37 | AF9: 1 | AG9: 1 | AH9: - | AI9: - | AJ9: - | AK9: - | AL9: - | AM9: - | AN9: 1 | AO9: - | AP9: - | AQ9: 0.4 | AR9: 0.677 | AT9: Baths | AU9: 200 | AV9: 180 | AW9: 160 | AX9: 140 | AY9: 120 | AZ9: 100 | BA9: Volume (litres) | BC9: 0.55 | BD9: 5 credits | BF9: SD174: Certification and Listing of Water Efficient Terminal Fittings (table 2.0)
A10: Industrial - typical business hours of operation | B10: General and specialist industrial and warehouse and storage units operating 24 hours a day 7 days a week. | C10: - | D10: 253 | E10: 10 | F10: Staff | G10: 0.5 | H10: 0.5 | I10: 1 | J10: 4 | K10: 4 | L10: 3 | M10: 4 | N10: 0.03 | O10: N/A | P10: N/A | Q10: N/A | R10: - | S10: - | T10: - | U10: - | V10: N/A | W10: - | X10: 1.58 | Y10: - | Z10: - | AA10: 1 | AB10: 1 | AC10: 0.25 | AD10: 5.6 | AE10: 4.37 | AF10: 1 | AG10: 1 | AH10: - | AI10: - | AJ10: - | AK10: - | AL10: - | AM10: - | AN10: 1 | AO10: - | AP10: - | AQ10: 0.4 | AR10: 0.677 | AT10: Urinal (2 or more urinals) - Automatically operated flushing cistern | AU10: 7.5 | AV10: 6 | AW10: 3 | AX10: 1.5 | AY10: 0.75 | AZ10: 0 | BA10: Volume (litres/bowl/hour) | BC10: 0.65 | BD10: Exemplary level | BF10: CLG Water Calculation Method for New Dwelling
A11: Industrial - process area | B11: Main process based operational/manufacturing/workshop area | C11: 0.0224 | AT11: Urinal (1 urinal only) - Automatically operated flushing cistern | AU11: 10 | AV11: 8 | AW11: 4 | AX11: 2 | AY11: 1 | AZ11: 0 | BA11: Volume (litres/bowl/hour) | BC11: 0.55 | BD11: 5 credits | BF11: Conserving Water in Buildings - Environment Agency
A12: Industrial - Laboratory area | B12: Large or small category 1 laboratory area. | C12: 0.1069 | AT12: Urinal - Manual/automatic operated pressure flushing valve | AU12: 1 | AV12: - | AW12: - | AX12: - | AY12: - | AZ12: - | BA12: Volume (Litres/flush/bowl) | BF12: SD175 Certification and Listing of Water Efficient Baths
A13: Industrial - Warehouse storage | B13: Permanently or intermittently occupied warehouse storage areas. | C13: 0.0108 | AT13: Greywater/rainwater system | AU13: 0 | AV13: 0 | AW13: 0 | AX13: 0.25 | AY13: 0.5 | AZ13: 0.75 | BA13: % of WC/urinal flushing demand (generated by same level microcomponent specification) met by specified grey/rainwater system | BF13: BNWAT07: Baths - water efficiency performance tests Version 2.0
A14: Industrial - Office areas | B14: Cellular or open plan office space, including staff kitchen where present/adjacent and reception areas. Exlcude meeting rooms, visitor waiting or circulation areas. | C14: 0.0994 | R14: 1 | U14: 0.04 | AH14: 0.67 | AK14: 1 | AL14: N/A | AT14: Kitchen taps - kitchenette | AU14: 10 | AV14: 8 | AW14: 7 | AX14: 6 | AY14: 5 | AZ14: 5 | BA14: Volume (litres/min) | BF14: CLG Research to Assess the Costs and Benefits of Improvements to the Water Efficiency of New Non-household Buildings (BD2683), 2009.
A15: Industrial - Staff canteen dining area | B15: Seated dining areas that accompany a permanently staffed kitchen preparing food for consumption on the premises (excludes small un-staffed kitchen's used by office staff to re-heat food, make tea etc.) | C15: =0.0402 -> 0.0402 | S15: see usage factor | U15: see usage factor | V15: N/A | W15: see usage factor | Y15: =IF(AND('Industrial calculator'!F18='Industrial calculator'!Q137,Ind_act='Industrial calculator'!R142,'Industrial calculator'!G20='Industrial calculator'!Q137),'Industrial calculator'!G18*'Industrial calculator'!G12*0.804*2.674,IF('Industrial calculator'!F18="yes",'Industrial calculator'!G18*0.804*2.674,"see note")) -> see note | Z15: =IF('Industrial calculator'!F18="yes",'Industrial calculator'!G18*6.314*0.804,"See note") -> See note | AI15: 60 | AK15: 0.201 | AL15: N/A | AM15: 30 | AO15: 1 | AP15: 1 | AT15: Kitchen taps - pre-rinse nozzle | AU15: 10.3 | AV15: 9 | AW15: 8.3 | AX15: 7.3 | AY15: 6.3 | AZ15: 6 | BA15: Volume (litres/min) | BF15: Waterwise 2007 Dishwasher rankings
A16: Industrial - Fitness suite/gym (with changing facility and showers) | B16: A fitness suite or gym that is part of the office building/development and used by the building's employees only. The gym will have its own changing facility with showers. | C16: 0 | N16: 0.154 | X16: 0.05 | AT16: Domestic sized dishwashers | AU16: 17 | AV16: 13 | AW16: 13 | AX16: 12 | AY16: 11 | AZ16: 10 | BA16: Volume (litres/cycle) | BF16: Waterwise 2007 Washing machine rankings
A17: Education - pre-school or primary school | B17: Non-residential pre-school and primary schools. | C17: - | D17: 195 | E17: 10 | F17: Pupils/staff | G17: 0.5 | H17: 0.5 | I17: 0.36 | J17: 2.1 | K17: 2.1 | L17: 1.74 | M17: 2.1 | N17: =IF('Education calculator'!F18='Education calculator'!Q136,0.4,0.0014) -> 0.0014 | O17: N/A | P17: N/A | Q17: N/A | R17: 0.05 | S17: - | T17: - | U17: - | V17: N/A | W17: - | X17: 1.98 | Y17: - | Z17: - | AA17: 1 | AB17: 1 | AC17: 0.25 | AD17: =IF('Education calculator'!F18='Education calculator'!Q136,1.4,5.6) -> 5.6 | AE17: N/A | AF17: 1 | AG17: 1 | AH17: - | AI17: - | AJ17: - | AK17: - | AL17: - | AM17: - | AN17: 1 | AO17: - | AP17: - | AQ17: 0.4 | AR17: 0.677 | AT17: Domestic sized washing machines | AU17: 90 | AV17: 60 | AW17: 50 | AX17: 40 | AY17: 35 | AZ17: 30 | BA17: Volume (litres/use) | BF17: Water UK - Macerators, the impact on sewers http://www.water.org.uk/home/policy/positions/waste-macerators-position-paper
A18: Education - secondary school or academy | B18: Non-residential secondary schools, academies and all-age range schools | C18: - | D18: 195 | E18: 10 | F18: Pupils/staff | G18: 0.5 | H18: 0.5 | I18: 0.37 | J18: 2.13 | K18: 2.1 | L18: 1.76 | M18: 2.13 | N18: =IF('Education calculator'!F18='Education calculator'!Q136,0.4,0.002) -> 0.002 | O18: N/A | P18: N/A | Q18: N/A | R18: 0.06 | S18: - | T18: - | U18: - | V18: N/A | W18: - | X18: 1.97 | Y18: - | Z18: - | AA18: 1 | AB18: 1 | AC18: 0.25 | AD18: =IF('Education calculator'!F18='Education calculator'!Q136,1.2,5.6) -> 5.6 | AE18: 1.4 | AF18: 1 | AG18: 1 | AH18: - | AI18: - | AJ18: - | AK18: - | AL18: - | AM18: - | AN18: 1 | AO18: - | AP18: - | AQ18: 0.4 | AR18: 0.677 | AT18: =W3 -> Waste disposal unit | AU18: 17 | AV18: 17 | AW18: 0 | AX18: 0 | AY18: 0 | AZ18: 0 | BA18: Volume (litres/min) | BF18: Water Efficient Buildings, water and planning, guidance for planners http://www.water-efficient-buildings.org.uk/
A19: Education - sixth form or further education college | B19: Non-residential sixth form and further education colleges | C19: - | D19: 195 | E19: 10 | F19: Staff/students | G19: 0.5 | H19: 0.5 | I19: 1 | J19: 4 | K19: 4 | L19: 3 | M19: 4 | N19: =IF('Education calculator'!F18='Education calculator'!Q136,'Activity database'!N8,'Activity database'!N4) -> 0.03 | O19: N/A | P19: N/A | Q19: N/A | R19: 0.051 | S19: - | T19: - | U19: - | V19: N/A | W19: - | X19: 1.58 | Y19: - | Z19: - | AA19: 1 | AB19: 1 | AC19: 0.25 | AD19: 5.6 | AE19: 4.37 | AF19: 1 | AG19: 1 | AH19: - | AI19: - | AJ19: - | AK19: - | AL19: - | AM19: - | AN19: 1 | AO19: - | AP19: - | AQ19: 0.4 | AR19: 0.677 | AT19: Commercial sized dishwashers | AU19: 8 | AV19: 7 | AW19: 6 | AX19: 5 | AY19: 4 | AZ19: 3 | BA19: Volume (litres/rack) | BF19: AECB Water Standards vol 2.
A20: Education - higher education college | B20: Non-residential higher education learning resource centres/teaching facility only. | C20: - | D20: 195 | E20: 10 | F20: Staff/students | G20: 0.5 | H20: 0.5 | I20: 1 | J20: 4 | K20: 4 | L20: 3 | M20: 4 | N20: =IF('Education calculator'!F18='Education calculator'!Q136,'Activity database'!N8,'Activity database'!N4) -> 0.03 | O20: N/A | P20: N/A | Q20: N/A | R20: 0.061 | S20: - | T20: - | U20: - | V20: N/A | W20: - | X20: 1.58 | Y20: - | Z20: - | AA20: 1 | AB20: 1 | AC20: 0.25 | AD20: 5.6 | AE20: 4.37 | AF20: 1 | AG20: 1 | AH20: - | AI20: - | AJ20: - | AK20: - | AL20: - | AM20: - | AN20: 1 | AO20: - | AP20: - | AQ20: 0.4 | AR20: 0.677 | AT20: Commercial/Industrial sized washing machines | AU20: 14 | AV20: 12 | AW20: 10 | AX20: 7.5 | AY20: 5 | AZ20: 4.5 | BA20: Volume (litres/kg) | BF20: Enahnced Capital Allowance Water Technology List criteria
A21: =IF(OR('Education calculator'!B11='Education calculator'!R142,'Education calculator'!B11='Education calculator'!R143),"Education - Classroom areas",IF(OR('Education calculator'!B11='Education calculator'!R144,'Education calculator'!B11='Education calculator'!R145),"Education - Seminar rooms/areas","Requires building type definition in calculator")) -> Requires building type definition in calculator | B21: =IF(OR('Education calculator'!B11='Education calculator'!R142,'Education calculator'!B11='Education calculator'!R143),"Include basic classroom areas only. Exclude halls, specialist practical classrooms, i.e. ICT, and learning resource/library areas.",IF(OR('Education calculator'!B11='Education calculator'!R144,'Education calculator'!B11='Education calculator'!R145),"Include seminar rooms/spaces and write-up rooms/spaces i.e. areas where students and lecturers gather for seminars/write-up. Exclude lecture theatres, labs, workshops and library/learning resource area.")) -> FALSE | C21: =IF('Education calculator'!B11='Education calculator'!R142,0.524,IF('Education calculator'!B11='Education calculator'!R143,0.532,IF('Education calculator'!B11='Education calculator'!R144,0.391,IF('Education calculator'!B11='Education calculator'!R145,0.395)))) -> FALSE | BF21: BNWAT22: Domestic water consumption in domestic and non-domestic properties
A22: Education - Staff office and adminstration areas | B22: Cellular or open plan office space, including staff rooms and staff kitchen where present/adjacent and reception areas (including library reception desk areas if present). Exlcudes meeting rooms, visitor waiting or circulation areas and other such spaces not permanently occupied. | C22: 0.103 | U22: =IF('Education calculator'!B11='Education calculator'!R142,0.0019,IF('Education calculator'!B11='Education calculator'!R143,0.0026,IF('Education calculator'!B11='Education calculator'!R144,0.002,IF('Education calculator'!B11='Education calculator'!R145,0.0025,"Requires Building Type Definition")))) -> Requires Building Type Definition | AH22: 0.67 | AK22: 1 | AL22: N/A | BF22: National Statistics, DfE: School Workforce in England, November 2010 (statistical first release)
A23: Education - Common room | B23: Student common room. | C23: 0.103 | BF23: Building Bulletin 99 (2nd Edition), Briefing Framework for Primary School Projects
A24: Education - dining area | B24: Seated dining areas that accompany a permanently staffed kitchen preparing food for consumption on the premises (excludes small un-staffed kitchen's used by staff to re-heat food, make tea etc.) | C24: =IF(OR('Education calculator'!B11='Education calculator'!R144,'Education calculator'!B11='Education calculator'!R145),0.03,"See note") -> See note | S24: see usage factor | U24: see usage factor | V24: N/A | W24: see usage factor | Y24: =IF('Education calculator'!F17='Education calculator'!Q136,IF(AND('Education calculator'!O137<300,OR('Education calculator'!B11='Education calculator'!R142,'Education calculator'!B11='Education calculator'!R143)),'Education calculator'!G17*0.9*2*2.674,IF(AND('Education calculator'!O137>=300,OR('Education calculator'!B11='Education calculator'!R142,'Education calculator'!B11='Education calculator'!R143)),'Education calculator'!G17*0.9*3*2.674,IF(OR('Education calculator'!B11='Education calculator'!R144,'Education calculator'!B11='Education calculator'!R145),'Education calculator'!G17*0.6*2.674,"Requires building type/area definition")))) -> FALSE | Z24: =IF(OR('Education calculator'!B11='Education calculator'!R144,'Education calculator'!B11='Education calculator'!R145),'Education calculator'!G17*6.314*0.6,IF(OR('Education calculator'!B11='Education calculator'!R142,'Education calculator'!B11='Education calculator'!R143),IF('Education calculator'!O137<300,'Education calculator'!G17*0.9*2*6.314,'Education calculator'!G17*0.9*3*6.314))) -> FALSE | AI24: 60 | AK24: =IF(OR('Education calculator'!B11='Education calculator'!R144,'Education calculator'!B11='Education calculator'!R145),0.248,IF('Education calculator'!O149>=300,0.675,IF('Education calculator'!O149<300,0.45,'Education calculator'!Q145))) -> 0.45 | AL24: N/A | AM24: 30 | AO24: 1 | AP24: 1 | BF24: Building Bulletin 98 (2nd Edition), Briefing Framework for Secondary School Projects
A25: =IF(OR('Education calculator'!B11='Education calculator'!R142,'Education calculator'!B11='Education calculator'!R143),"Education - Changing facilities with showers ",IF(OR('Education calculator'!B11='Education calculator'!R144,'Education calculator'!B11='Education calculator'!R145),"Sporting facility with changing rooms and showers","Requires building type definition in calculator")) -> Requires building type definition in calculator | B25: =IF(OR('Education calculator'!B11='Education calculator'!R142,'Education calculator'!B11='Education calculator'!R143),"Changing facility with showers to be used by pupils ",IF(OR('Education calculator'!B11='Education calculator'!R144,'Education calculator'!B11='Education calculator'!R145),"Changing facility with showers, used by students and/or staff, linked to a sporting/fitness facility e.g. gym, that is part of the assessed building.")) -> FALSE | C25: 0 | X25: =IF(OR('Education calculator'!B11='Education calculator'!R142,'Education calculator'!B11='Education calculator'!R143),0.12,IF(OR('Education calculator'!B11='Education calculator'!R144,'Education calculator'!B11='Education calculator'!R145),0.05,"Requires building type definition")) -> Requires building type definition | BF25: The Building Regulations 2000 Approved Document B Fire Safety
A26: Education - Lecture theatre | B26: Lecture theatre with permanent seating and/or stage used by lecturers and/or for staged performances. | C26: 0.2183098592 | BF26: Employment Densities, a full guide, Arup Economics and Planning, 2001 (produced for English Partnerships and Regional Development Agencies)
A27: Education - Study area | B27: Study/write-up area in sixth form, further and/or Higer Education colleges. | C27: 0.625
A28: Education - Workshop | B28: Small scale workshop type space used for practical/vocational demonstrations/learning. | C28: 0.06325925926
A29: Education - Information Technology space | B29: Laboratory/room containing I.T equipment and used for teaching/research related to information technology | C29: 0.231
A30: Education - Laboratory | B30: Laboratory space for teaching/learning related to science based subjects. | C30: 0.10625
A31: Retail - Shop / retail unit(s) / retail warehouse | B31: Shops: shop/retail unit(s)/retail warehouse(s). | C31: - | D31: 362 | E31: 8.5 | F31: - | G31: =IF(ISERROR((('Retail calculator'!$P$146/'Retail calculator'!$O$147)*'Activity database'!G32)+(('Retail calculator'!$O$146/'Retail calculator'!$O$147)*'Activity database'!G33)),"Requires building information",(('Retail calculator'!$P$146/'Retail calculator'!$O$147)*'Activity database'!G32)+(('Retail calculator'!$O$146/'Retail calculator'!$O$147)*'Activity database'!G33)) -> Requires building information | H31: =IF(ISERROR((('Retail calculator'!$P$146/'Retail calculator'!$O$147)*'Activity database'!H32)+(('Retail calculator'!$O$146/'Retail calculator'!$O$147)*'Activity database'!H33)),"Requires building information",(('Retail calculator'!$P$146/'Retail calculator'!$O$147)*'Activity database'!H32)+(('Retail calculator'!$O$146/'Retail calculator'!$O$147)*'Activity database'!H33)) -> Requires building information | I31: =IF(ISERROR((('Retail calculator'!$P$146/'Retail calculator'!$O$147)*'Activity database'!I32)+(('Retail calculator'!$O$146/'Retail calculator'!$O$147)*'Activity database'!I33)),"Requires building information",(('Retail calculator'!$P$146/'Retail calculator'!$O$147)*'Activity database'!I32)+(('Retail calculator'!$O$146/'Retail calculator'!$O$147)*'Activity database'!I33)) -> Requires building information | J31: =IF(ISERROR((('Retail calculator'!$P$146/'Retail calculator'!$O$147)*'Activity database'!J32)+(('Retail calculator'!$O$146/'Retail calculator'!$O$147)*'Activity database'!J33)),"Requires building information",(('Retail calculator'!$P$146/'Retail calculator'!$O$147)*'Activity database'!J32)+(('Retail calculator'!$O$146/'Retail calculator'!$O$147)*'Activity database'!J33)) -> Requires building information | K31: =IF(ISERROR((('Retail calculator'!$P$146/'Retail calculator'!$O$147)*'Activity database'!K32)+(('Retail calculator'!$O$146/'Retail calculator'!$O$147)*'Activity database'!K33)),"Requires building information",(('Retail calculator'!$P$146/'Retail calculator'!$O$147)*'Activity database'!K32)+(('Retail calculator'!$O$146/'Retail calculator'!$O$147)*'Activity database'!K33)) -> Requires building information | L31: =IF(ISERROR((('Retail calculator'!$P$146/'Retail calculator'!$O$147)*'Activity database'!L32)+(('Retail calculator'!$O$146/'Retail calculator'!$O$147)*'Activity database'!L33)),"Requires building information",(('Retail calculator'!$P$146/'Retail calculator'!$O$147)*'Activity database'!L32)+(('Retail calculator'!$O$146/'Retail calculator'!$O$147)*'Activity database'!L33)) -> Requires building information | M31: =IF(ISERROR((('Retail calculator'!$P$146/'Retail calculator'!$O$147)*'Activity database'!M32)+(('Retail calculator'!$O$146/'Retail calculator'!$O$147)*'Activity database'!M33)),"Requires building information",(('Retail calculator'!$P$146/'Retail calculator'!$O$147)*'Activity database'!M32)+(('Retail calculator'!$O$146/'Retail calculator'!$O$147)*'Activity database'!M33)) -> Requires building information | N31: =IF(ISERROR('Retail calculator'!$P$146/'Retail calculator'!$O$147)*'Activity database'!N32,"Requires building information",('Retail calculator'!$P$146/'Retail calculator'!$O$147)*'Activity database'!N32) -> Requires building information | O31: N/A | P31: N/A | Q31: N/A | R31: - | S31: - | T31: - | U31: - | V31: N/A | W31: - | X31: =IF(ISERROR('Retail calculator'!$P$146/'Retail calculator'!$O$147)*'Activity database'!X32,"Requires building information",('Retail calculator'!$P$146/'Retail calculator'!$O$147)*'Activity database'!X32) -> Requires building information | Y31: - | Z31: - | AA31: 1 | AB31: 1 | AC31: 0.25 | AD31: 5.6 | AE31: 4.37 | AF31: 1 | AG31: 1 | AH31: - | AI31: - | AJ31: - | AK31: - | AL31: - | AM31: - | AN31: =AN32 -> 1 | AO31: - | AP31: - | AQ31: 0.4 | AR31: 0.677
C32: - | D32: - | E32: - | F32: Staff | G32: 0.5 | H32: 0.5 | I32: 1 | J32: 4 | K32: 4 | L32: 3 | M32: 4 | N32: 0.03 | O32: N/A | P32: N/A | Q32: N/A | R32: - | S32: - | T32: - | U32: - | V32: N/A | W32: - | X32: 1.58 | Y32: - | Z32: - | AA32: - | AB32: - | AC32: - | AD32: - | AE32: - | AF32: - | AG32: - | AH32: - | AI32: - | AJ32: - | AK32: - | AL32: - | AM32: - | AN32: 1 | AO32: - | AP32: - | AQ32: - | AR32: -
C33: - | D33: - | E33: - | F33: Customer | G33: 0.35 | H33: 0.65 | I33: 0.1333 | J33: 0.8 | K33: 0.8 | L33: 0.667 | M33: 0.8 | N33: - | O33: N/A | P33: N/A | Q33: N/A | R33: - | S33: - | T33: - | U33: - | V33: N/A | W33: - | X33: - | Y33: - | Z33: - | AA33: - | AB33: - | AC33: - | AD33: - | AE33: - | AF33: - | AG33: - | AH33: - | AI33: - | AJ33: - | AK33: - | AL33: - | AM33: - | AN33: - | AO33: - | AP33: - | AQ33: - | AR33: -
A34: Retail - Supermarket | B34: Shops: supermarket | C34: - | D34: 362 | E34: 13 | F34: - | G34: =IF(ISERROR((('Retail calculator'!$P$146/'Retail calculator'!$O$147)*'Activity database'!G35)+(('Retail calculator'!$O$146/'Retail calculator'!$O$147)*'Activity database'!G36)),"Requires building information",(('Retail calculator'!$P$146/'Retail calculator'!$O$147)*'Activity database'!G35)+(('Retail calculator'!$O$146/'Retail calculator'!$O$147)*'Activity database'!G36)) -> Requires building information | H34: =IF(ISERROR((('Retail calculator'!$P$146/'Retail calculator'!$O$147)*'Activity database'!H35)+(('Retail calculator'!$O$146/'Retail calculator'!$O$147)*'Activity database'!H36)),"Requires building information",(('Retail calculator'!$P$146/'Retail calculator'!$O$147)*'Activity database'!H35)+(('Retail calculator'!$O$146/'Retail calculator'!$O$147)*'Activity database'!H36)) -> Requires building information | I34: =IF(ISERROR((('Retail calculator'!$P$146/'Retail calculator'!$O$147)*'Activity database'!I35)+(('Retail calculator'!$O$146/'Retail calculator'!$O$147)*'Activity database'!I36)),"Requires building information",(('Retail calculator'!$P$146/'Retail calculator'!$O$147)*'Activity database'!I35)+(('Retail calculator'!$O$146/'Retail calculator'!$O$147)*'Activity database'!I36)) -> Requires building information | J34: =IF(ISERROR((('Retail calculator'!$P$146/'Retail calculator'!$O$147)*'Activity database'!J35)+(('Retail calculator'!$O$146/'Retail calculator'!$O$147)*'Activity database'!J36)),"Requires building information",(('Retail calculator'!$P$146/'Retail calculator'!$O$147)*'Activity database'!J35)+(('Retail calculator'!$O$146/'Retail calculator'!$O$147)*'Activity database'!J36)) -> Requires building information | K34: =IF(ISERROR((('Retail calculator'!$P$146/'Retail calculator'!$O$147)*'Activity database'!K35)+(('Retail calculator'!$O$146/'Retail calculator'!$O$147)*'Activity database'!K36)),"Requires building information",(('Retail calculator'!$P$146/'Retail calculator'!$O$147)*'Activity database'!K35)+(('Retail calculator'!$O$146/'Retail calculator'!$O$147)*'Activity database'!K36)) -> Requires building information | L34: =IF(ISERROR((('Retail calculator'!$P$146/'Retail calculator'!$O$147)*'Activity database'!L35)+(('Retail calculator'!$O$146/'Retail calculator'!$O$147)*'Activity database'!L36)),"Requires building information",(('Retail calculator'!$P$146/'Retail calculator'!$O$147)*'Activity database'!L35)+(('Retail calculator'!$O$146/'Retail calculator'!$O$147)*'Activity database'!L36)) -> Requires building information | M34: =IF(ISERROR((('Retail calculator'!$P$146/'Retail calculator'!$O$147)*'Activity database'!M35)+(('Retail calculator'!$O$146/'Retail calculator'!$O$147)*'Activity database'!M36)),"Requires building information",(('Retail calculator'!$P$146/'Retail calculator'!$O$147)*'Activity database'!M35)+(('Retail calculator'!$O$146/'Retail calculator'!$O$147)*'Activity database'!M36)) -> Requires building information | N34: =IF(ISERROR('Retail calculator'!$P$146/'Retail calculator'!$O$147)*'Activity database'!N35,"Requires building information",('Retail calculator'!$P$146/'Retail calculator'!$O$147)*'Activity database'!N35) -> Requires building information | O34: N/A | P34: N/A | Q34: N/A | R34: - | S34: - | T34: - | U34: - | V34: N/A | W34: - | X34: =IF(ISERROR('Retail calculator'!$P$146/'Retail calculator'!$O$147)*'Activity database'!X35,"Requires building information",('Retail calculator'!$P$146/'Retail calculator'!$O$147)*'Activity database'!X35) -> Requires building information | Y34: - | Z34: - | AA34: 1 | AB34: 1 | AC34: 0.25 | AD34: 5.6 | AE34: 4.37 | AF34: 1 | AG34: 1 | AH34: - | AI34: - | AJ34: - | AK34: - | AL34: - | AM34: - | AN34: =AN35 -> 1 | AO34: - | AP34: - | AQ34: 0.4 | AR34: 0.677
C35: - | D35: - | E35: - | F35: Staff | G35: 0.5 | H35: 0.5 | I35: 1 | J35: 4 | K35: 4 | L35: 3 | M35: 4 | N35: 0.03 | O35: N/A | P35: N/A | Q35: N/A | R35: - | S35: - | T35: - | U35: - | V35: N/A | W35: - | X35: 1.58 | Y35: - | Z35: - | AA35: - | AB35: - | AC35: - | AD35: - | AE35: - | AF35: - | AG35: - | AH35: - | AI35: - | AJ35: - | AK35: - | AL35: - | AM35: - | AN35: 1 | AO35: - | AP35: - | AQ35: - | AR35: -
C36: - | D36: - | E36: - | F36: Customers | G36: 0.35 | H36: 0.65 | I36: 0.1333 | J36: 0.8 | K36: 0.8 | L36: 0.667 | M36: 0.8 | N36: - | O36: N/A | P36: N/A | Q36: N/A | R36: - | S36: - | T36: - | U36: - | V36: N/A | W36: - | X36: - | Y36: - | Z36: - | AA36: - | AB36: - | AC36: - | AD36: - | AE36: - | AF36: - | AG36: - | AH36: - | AI36: - | AJ36: - | AK36: - | AL36: - | AM36: - | AN36: - | AO36: - | AP36: - | AQ36: - | AR36: -
A37: Retail - Service provider | B37: Financial and professional services - Financial services such as banks and building societies, professional services (other than health and medical services) including estate and employment agencies and betting offices. | C37: - | D37: 304 | E37: 8 | F37: - | G37: =IF(ISERROR((('Retail calculator'!$P$146/'Retail calculator'!$O$147)*'Activity database'!G38)+(('Retail calculator'!$O$146/'Retail calculator'!$O$147)*'Activity database'!G39)),"Requires building information",(('Retail calculator'!$P$146/'Retail calculator'!$O$147)*'Activity database'!G38)+(('Retail calculator'!$O$146/'Retail calculator'!$O$147)*'Activity database'!G39)) -> Requires building information | H37: =IF(ISERROR((('Retail calculator'!$P$146/'Retail calculator'!$O$147)*'Activity database'!H38)+(('Retail calculator'!$O$146/'Retail calculator'!$O$147)*'Activity database'!H39)),"Requires building information",(('Retail calculator'!$P$146/'Retail calculator'!$O$147)*'Activity database'!H38)+(('Retail calculator'!$O$146/'Retail calculator'!$O$147)*'Activity database'!H39)) -> Requires building information | I37: =IF(ISERROR((('Retail calculator'!$P$146/'Retail calculator'!$O$147)*'Activity database'!I38)+(('Retail calculator'!$O$146/'Retail calculator'!$O$147)*'Activity database'!I39)),"Requires building information",(('Retail calculator'!$P$146/'Retail calculator'!$O$147)*'Activity database'!I38)+(('Retail calculator'!$O$146/'Retail calculator'!$O$147)*'Activity database'!I39)) -> Requires building information | J37: =IF(ISERROR((('Retail calculator'!$P$146/'Retail calculator'!$O$147)*'Activity database'!J38)+(('Retail calculator'!$O$146/'Retail calculator'!$O$147)*'Activity database'!J39)),"Requires building information",(('Retail calculator'!$P$146/'Retail calculator'!$O$147)*'Activity database'!J38)+(('Retail calculator'!$O$146/'Retail calculator'!$O$147)*'Activity database'!J39)) -> Requires building information | K37: =IF(ISERROR((('Retail calculator'!$P$146/'Retail calculator'!$O$147)*'Activity database'!K38)+(('Retail calculator'!$O$146/'Retail calculator'!$O$147)*'Activity database'!K39)),"Requires building information",(('Retail calculator'!$P$146/'Retail calculator'!$O$147)*'Activity database'!K38)+(('Retail calculator'!$O$146/'Retail calculator'!$O$147)*'Activity database'!K39)) -> Requires building information | L37: =IF(ISERROR((('Retail calculator'!$P$146/'Retail calculator'!$O$147)*'Activity database'!L38)+(('Retail calculator'!$O$146/'Retail calculator'!$O$147)*'Activity database'!L39)),"Requires building information",(('Retail calculator'!$P$146/'Retail calculator'!$O$147)*'Activity database'!L38)+(('Retail calculator'!$O$146/'Retail calculator'!$O$147)*'Activity database'!L39)) -> Requires building information | M37: =IF(ISERROR((('Retail calculator'!$P$146/'Retail calculator'!$O$147)*'Activity database'!M38)+(('Retail calculator'!$O$146/'Retail calculator'!$O$147)*'Activity database'!M39)),"Requires building information",(('Retail calculator'!$P$146/'Retail calculator'!$O$147)*'Activity database'!M38)+(('Retail calculator'!$O$146/'Retail calculator'!$O$147)*'Activity database'!M39)) -> Requires building information | N37: =IF(ISERROR('Retail calculator'!$P$146/'Retail calculator'!$O$147)*'Activity database'!N38,"Requires building information",('Retail calculator'!$P$146/'Retail calculator'!$O$147)*'Activity database'!N38) -> Requires building information | O37: N/A | P37: N/A | Q37: N/A | R37: - | S37: - | T37: - | U37: - | V37: N/A | W37: - | X37: =IF(ISERROR('Retail calculator'!$P$146/'Retail calculator'!$O$147)*'Activity database'!X38,"Requires building information",('Retail calculator'!$P$146/'Retail calculator'!$O$147)*'Activity database'!X38) -> Requires building information | Y37: - | Z37: - | AA37: 1 | AB37: 1 | AC37: 0.25 | AD37: 5.6 | AE37: 4.37 | AF37: 1 | AG37: 1 | AH37: - | AI37: - | AJ37: - | AK37: - | AL37: - | AM37: - | AN37: =AN38 -> 1 | AO37: - | AP37: - | AQ37: 0.4 | AR37: 0.677
C38: - | D38: - | E38: - | F38: Staff | G38: 0.5 | H38: 0.5 | I38: 1 | J38: 4 | K38: 4 | L38: 3 | M38: 4 | N38: 0.03 | O38: N/A | P38: N/A | Q38: N/A | R38: - | S38: - | T38: - | U38: - | V38: N/A | W38: - | X38: 1.58 | Y38: - | Z38: - | AA38: - | AB38: - | AC38: - | AD38: - | AE38: - | AF38: - | AG38: - | AH38: - | AI38: - | AJ38: - | AK38: - | AL38: - | AM38: - | AN38: 1 | AO38: - | AP38: - | AQ38: - | AR38: -
C39: - | D39: - | E39: - | F39: Customer | G39: 0.35 | H39: 0.65 | I39: 0.1333 | J39: 0.8 | K39: 0.8 | L39: 0.667 | M39: 0.8 | N39: - | O39: N/A | P39: N/A | Q39: N/A | R39: - | S39: - | T39: - | U39: - | V39: N/A | W39: - | X39: - | Y39: - | Z39: - | AA39: - | AB39: - | AC39: - | AD39: - | AE39: - | AF39: - | AG39: - | AH39: - | AI39: - | AJ39: - | AK39: - | AL39: - | AM39: - | AN39: - | AO39: - | AP39: - | AQ39: - | AR39: -
A40: Retail - Shopping centre/complex | B40: Mixture of shops, professional services. | C40: - | D40: 362 | E40: 9 | F40: - | G40: =IF(ISERROR((('Retail calculator'!$P$146/'Retail calculator'!$O$147)*'Activity database'!G41)+(('Retail calculator'!$O$146/'Retail calculator'!$O$147)*'Activity database'!G42)),"Requires building information",(('Retail calculator'!$P$146/'Retail calculator'!$O$147)*'Activity database'!G41)+(('Retail calculator'!$O$146/'Retail calculator'!$O$147)*'Activity database'!G42)) -> Requires building information | H40: =IF(ISERROR((('Retail calculator'!$P$146/'Retail calculator'!$O$147)*'Activity database'!H41)+(('Retail calculator'!$O$146/'Retail calculator'!$O$147)*'Activity database'!H42)),"Requires building information",(('Retail calculator'!$P$146/'Retail calculator'!$O$147)*'Activity database'!H41)+(('Retail calculator'!$O$146/'Retail calculator'!$O$147)*'Activity database'!H42)) -> Requires building information | I40: =IF(ISERROR((('Retail calculator'!$P$146/'Retail calculator'!$O$147)*'Activity database'!I41)+(('Retail calculator'!$O$146/'Retail calculator'!$O$147)*'Activity database'!I42)),"Requires building information",(('Retail calculator'!$P$146/'Retail calculator'!$O$147)*'Activity database'!I41)+(('Retail calculator'!$O$146/'Retail calculator'!$O$147)*'Activity database'!I42)) -> Requires building information | J40: =IF(ISERROR((('Retail calculator'!$P$146/'Retail calculator'!$O$147)*'Activity database'!J41)+(('Retail calculator'!$O$146/'Retail calculator'!$O$147)*'Activity database'!J42)),"Requires building information",(('Retail calculator'!$P$146/'Retail calculator'!$O$147)*'Activity database'!J41)+(('Retail calculator'!$O$146/'Retail calculator'!$O$147)*'Activity database'!J42)) -> Requires building information | K40: =IF(ISERROR((('Retail calculator'!$P$146/'Retail calculator'!$O$147)*'Activity database'!K41)+(('Retail calculator'!$O$146/'Retail calculator'!$O$147)*'Activity database'!K42)),"Requires building information",(('Retail calculator'!$P$146/'Retail calculator'!$O$147)*'Activity database'!K41)+(('Retail calculator'!$O$146/'Retail calculator'!$O$147)*'Activity database'!K42)) -> Requires building information | L40: =IF(ISERROR((('Retail calculator'!$P$146/'Retail calculator'!$O$147)*'Activity database'!L41)+(('Retail calculator'!$O$146/'Retail calculator'!$O$147)*'Activity database'!L42)),"Requires building information",(('Retail calculator'!$P$146/'Retail calculator'!$O$147)*'Activity database'!L41)+(('Retail calculator'!$O$146/'Retail calculator'!$O$147)*'Activity database'!L42)) -> Requires building information | M40: =IF(ISERROR((('Retail calculator'!$P$146/'Retail calculator'!$O$147)*'Activity database'!M41)+(('Retail calculator'!$O$146/'Retail calculator'!$O$147)*'Activity database'!M42)),"Requires building information",(('Retail calculator'!$P$146/'Retail calculator'!$O$147)*'Activity database'!M41)+(('Retail calculator'!$O$146/'Retail calculator'!$O$147)*'Activity database'!M42)) -> Requires building information | N40: =IF(ISERROR('Retail calculator'!$P$146/'Retail calculator'!$O$147)*'Activity database'!N41,"Requires building information",('Retail calculator'!$P$146/'Retail calculator'!$O$147)*'Activity database'!N41) -> Requires building information | O40: N/A | P40: N/A | Q40: N/A | R40: - | S40: - | T40: - | U40: - | V40: N/A | W40: - | X40: =IF(ISERROR('Retail calculator'!$P$146/'Retail calculator'!$O$147)*'Activity database'!X41,"Requires building information",('Retail calculator'!$P$146/'Retail calculator'!$O$147)*'Activity database'!X41) -> Requires building information | Y40: - | Z40: - | AA40: 1 | AB40: 1 | AC40: 0.25 | AD40: 5.6 | AE40: 4.37 | AF40: 1 | AG40: 1 | AH40: - | AI40: - | AJ40: - | AK40: - | AL40: - | AM40: - | AN40: =AN41 -> 1 | AO40: - | AP40: - | AQ40: 0.4 | AR40: 0.677
C41: - | D41: - | E41: - | F41: Staff | G41: 0.5 | H41: 0.5 | I41: 1 | J41: 4 | K41: 4 | L41: 3 | M41: 4 | N41: 0.03 | O41: N/A | P41: N/A | Q41: N/A | R41: - | S41: - | T41: - | U41: - | V41: N/A | W41: - | X41: 1.58 | Y41: - | Z41: - | AA41: - | AB41: - | AC41: - | AD41: - | AE41: - | AF41: - | AG41: - | AH41: - | AI41: - | AJ41: - | AK41: - | AL41: - | AM41: - | AN41: 1 | AO41: - | AP41: - | AQ41: - | AR41: -
C42: - | D42: - | E42: - | F42: Customer | G42: 0.35 | H42: 0.65 | I42: 0.1333 | J42: 0.8 | K42: 0.8 | L42: 0.667 | M42: 0.8 | N42: - | O42: N/A | P42: N/A | Q42: N/A | R42: - | S42: - | T42: - | U42: - | V42: N/A | W42: - | X42: - | Y42: - | Z42: - | AA42: - | AB42: - | AC42: - | AD42: - | AE42: - | AF42: - | AG42: - | AH42: - | AI42: - | AJ42: - | AK42: - | AL42: - | AM42: - | AN42: - | AO42: - | AP42: - | AQ42: - | AR42: -
A43: Retail - sales areas for display of bulky items | B43: A retail sales/display area trading predominantly in bulky items, e.g. furniture, floor coverings, cycles, prams, large domestic appliances or other bulky goods, or trading on a wholesale self-selection basis. | C43: 0.143
A44: Retail - sales areas for display of non bulky items and/or customer service area. | B44: A general sales/display areas in department stores, supermarkets, shops and/or customer service waiting and/or collection areas e.g. in banks, post office, bookmakers etc. | C44: 0.5
A45: Retail - concourse/shopping mall | B45: The central (shared) area within a shopping centre used for access by shoppers (typically a covered area containing one or more of benches, cafes, escalators etc.) | C45: 1.43
A46: Retail - Staff office area and staffroom | B46: Staff office space and staffroom, often located in 'back of house' areas. | C46: 0.09514285714 | R46: =IF(ISERROR('Retail calculator'!$P$146/'Retail calculator'!$O$147)*1,"Requires building information",('Retail calculator'!$P$146/'Retail calculator'!$O$147)*1) -> Requires building information | U46: =IF(ISERROR('Retail calculator'!$P$146/'Retail calculator'!$O$147)*0.04,"Requires building information",('Retail calculator'!$P$146/'Retail calculator'!$O$147)*0.04) -> Requires building information | AH46: 0.67 | AK46: 1 | AL46: N/A
A47: Retail - Staff canteen dining area | B47: Seated areas in a staff canteen that accompany a food preparation areas where food and drink is consumed by staff on the premises. | C47: 0.0497 | S47: see usage factor | U47: see usage factor | V47: N/A | W47: see usage factor | Y47: =IF('Retail calculator'!F21="yes",'Retail calculator'!G21*0.993*2.674,"see note") -> see note | Z47: =IF('Retail calculator'!F21="yes",'Retail calculator'!G21*6.314*0.993,"See note") -> See note | AI47: 60 | AK47: 0.248 | AL47: N/A | AM47: 30 | AO47: 1 | AP47: 1
A48: Retail - Goods-in and storage area | B48: Internal areas for receiving and storing goods. | C48: 0.011
A49: Retail - Workshop | B49: A workshop / vehicle servicing area within a car showroom or general workshop in other type of retail development. | C49: 0.068
A50: Restaurants and cafés | B50: Restaurants and cafés - For the sale of food and drink for consumption on the premises - restaurants, snack bars and cafes. | AN50: 1
A51: Restaurants and cafés - Eating and drinking area | B51: Seated areas that accompany a food preparation areas where food and drink is consumed by customers on the premises (includes customer service/counter areas) | C51: 0.2 | AN51: 1
A52: Restaurants and cafés - Food preparation area | B52: Kitchen areas in cafes/restaurants contained within the development used to prepare food for customers | C52: 0.108 | AA52: 1 | AB52: 1 | AD52: 5.6 | AE52: 4.37 | AF52: 1 | AG52: 1 | AH52: 0.44 | AN52: 1
A53: Restaurants and cafés - Office area | B53: Generic office space used by staff | C53: 0.109 | AN53: 1
A55: Should we have fixed use in the baseline for waste disposal, showers and pre-rinse taps regardless of whether they're specified in actual building. | Y55: Should litres/meal be adjusted to account for fact not three courses?
A57: A4 Drinking establishments | AA57: 1 | AB57: 1 | AD57: 5.6 | AE57: 4.37 | AF57: 1 | AG57: 1 | AH57: 0.44 | AN57: 1
A58: A5 Hot food takeaways | AA58: 1 | AB58: 1 | AD58: 5.6 | AE58: 4.37 | AF58: 1 | AG58: 1 | AH58: 0.44 | AN58: 1
A59: B1 Business - Workshop/light industry
AN60: 1
A61: B2 General industrial - process/manufacturing unit | AA61: 1 | AB61: 1 | AD61: 5.6 | AE61: 4.37 | AF61: 1 | AG61: 1 | AN61: 1
A62: B8 Storage or distribution - Warehouse unit | AA62: 1 | AB62: 1 | AD62: 5.6 | AE62: 4.37 | AF62: 1 | AG62: 1 | AN62: 1
A63: Hotels | C63: Occupant density (person/room) | V63: kg/ room/ night
A64: Hotel - Bedroom | C64: 1 | V64: 3.6
A65: Hotel - Staff | C65: 0.5 | V65: 0
A66: Hotel - restaurant
A67: C1 Boarding and guest houses | AA67: 1 | AB67: 1 | AD67: 5.6 | AE67: 4.37 | AF67: 1 | AG67: 1 | AN67: 1
A68: Hospital | AA68: 1 | AB68: 1 | AD68: 5.6 | AE68: 4.37 | AF68: 1 | AG68: 1 | AN68: 1
A69: Care home | AA69: 1 | AB69: 1 | AD69: 5.6 | AE69: 4.37 | AF69: 1 | AG69: 1 | AN69: 1
A70: Sheltered accommodation | AA70: 1 | AB70: 1 | AD70: 5.6 | AE70: 4.37 | AF70: 1 | AG70: 1 | AN70: 1
A71: Hall of residence | AA71: 1 | AB71: 1 | AD71: 5.6 | AE71: 4.37 | AF71: 1 | AG71: 1 | AN71: 1
A72: Prison houseblock | AA72: 1 | AB72: 1 | AD72: 5.6 | AE72: 4.37 | AF72: 1 | AG72: 1 | AN72: 1
A73: C2A Secure Residential Institution - Secure local authority accommodation | AA73: 1 | AB73: 1 | AD73: 5.6 | AE73: 4.37 | AF73: 1 | AG73: 1 | AN73: 1
A74: C2A Secure Residential Institution - Military barracks | AA74: 1 | AB74: 1 | AD74: 5.6 | AE74: 4.37 | AF74: 1 | AG74: 1 | AN74: 1
A75: D1 Non-residential Institutions - Library | AA75: 1 | AB75: 1 | AD75: 5.6 | AE75: 4.37 | AF75: 1 | AG75: 1 | AN75: 1
A76: D1 Non-residential Institutions - Museum or Gallery | AA76: 1 | AB76: 1 | AD76: 5.6 | AE76: 4.37 | AF76: 1 | AG76: 1 | AN76: 1
A77: D1 Non-residential Institutions - Community centre, day centre or place of worship | AA77: 1 | AB77: 1 | AD77: 5.6 | AE77: 4.37 | AF77: 1 | AG77: 1 | AN77: 1
A78: D1 Non-residential Institutions - Primary Health Care Building | AA78: 1 | AB78: 1 | AD78: 5.6 | AE78: 4.37 | AF78: 1 | AG78: 1 | AN78: 1
A79: D1 Non-residential Institutions - Creche | AA79: 1 | AB79: 1 | AD79: 5.6 | AE79: 4.37 | AF79: 1 | AG79: 1 | AN79: 1
A80: D1 Non-residential Institutions - Crown and County Courts | AA80: 1 | AB80: 1 | AD80: 5.6 | AE80: 4.37 | AF80: 1 | AG80: 1 | AN80: 1
A81: D1 Non-residential Institutions - School | AA81: 1 | AB81: 1 | AD81: 5.6 | AE81: 4.37 | AF81: 1 | AG81: 1 | AN81: 1
A82: D1 Non-residential Institutions - Further/ Higher education building or training centre | AA82: 1 | AB82: 1 | AD82: 5.6 | AE82: 4.37 | AF82: 1 | AG82: 1 | AN82: 1
A83: D2 General Assembly and Leisure - Theatre or cinema | AA83: 1 | AB83: 1 | AD83: 5.6 | AE83: 4.37 | AF83: 1 | AG83: 1 | AN83: 1
A84: D2 General Assembly and Leisure - leisure centre/gym | AA84: 1 | AB84: 1 | AD84: 5.6 | AE84: 4.37 | AF84: 1 | AG84: 1 | AN84: 1
A85: D2 General Assembly and Leisure -Swimming pool | AA85: 1 | AB85: 1 | AD85: 5.6 | AE85: 4.37 | AF85: 1 | AG85: 1 | AN85: 1
A86: D2 General Assembly and Leisure - Night Club or dance hall | AA86: 1 | AB86: 1 | AD86: 5.6 | AE86: 4.37 | AF86: 1 | AG86: 1 | AN86: 1
A87: Residential spaces | AA87: 1 | AB87: 1 | AD87: 5.6 | AE87: 4.37 | AF87: 1 | AG87: 1 | AN87: 1
A88: Other - Bus/train stations | AA88: 1 | AB88: 1 | AD88: 5.6 | AE88: 4.37 | AF88: 1 | AG88: 1 | AN88: 1
A89: Other - Emergency services | AA89: 1 | AB89: 1 | AD89: 5.6 | AE89: 4.37 | AF89: 1 | AG89: 1 | AN89: 1
A90: Other - Telephone exchanges | AA90: 1 | AB90: 1 | AD90: 5.6 | AE90: 4.37 | AF90: 1 | AG90: 1 | AN90: 1
A91: Other - Car Parks 24 hrs | AA91: 1 | AB91: 1 | AD91: 5.6 | AE91: 4.37 | AF91: 1 | AG91: 1 | AN91: 1
A92: Other - Stand alone utility block | AA92: 1 | AB92: 1 | AD92: 5.6 | AE92: 4.37 | AF92: 1 | AG92: 1 | AN92: 1
A93: Other - Petrol stations | AA93: 1 | AB93: 1 | AD93: 5.6 | AE93: 4.37 | AF93: 1 | AG93: 1 | AN93: 1
A94: Other - Hostel | AA94: 1 | AB94: 1 | AD94: 5.6 | AE94: 4.37 | AF94: 1 | AG94: 1 | AN94: 1
A95: Other - motor vehicle showroom | AA95: 1 | AB95: 1 | AD95: 5.6 | AE95: 4.37 | AF95: 1 | AG95: 1 | AN95: 1
A96: Other - Launderette | AA96: 1 | AB96: 1 | AD96: 5.6 | AE96: 4.37 | AF96: 1 | AG96: 1 | AN96: 1

Sheet Restaurant and cafes calculator (hidden)

Sheet Cineman and Theatres (hidden)

Sheet Leisure centres (hidden)

Sheet Office calculator (hidden)
B2: BREEAM-NOR v6.1 Wat 01 Water consumption: Water efficiency calculator for new non domestic office buildings
B4: Building details | I4: Key
J5: Cells that are white with a black border require user input (data entry/option selection)
B6: Building name | C6: ='User Instructions'!D8:F8 ->  | J6: Cells that are light grey contain fixed data or a formula and do not require any user input
J7: Cells that are dark grey are user input cells which are not applicable due to either building type or user input/option selection or default setting. Note these cells can change to ones requiring user input depending on the users option selection in other cells.
B8: BRE assessment reference no. | C8: ='User Instructions'!D10:F10 ->  | I8: >
B10: Building type | C10: Description of building type | E10: Default occupancy | F10: Default annual days/operation | G10: Default daily hours of operation
B11: ='Activity database'!A4 -> Office | C11: =VLOOKUP(B11,'Activity database'!A:B,2,FALSE) -> Offices and workshop business (including those with a basic (category 1) laboratory area) | E11: =IF(O145=0,Q144,O145) -> Requires building information | F11: =VLOOKUP(B11,'Activity database'!A:AN,4,FALSE) -> 253 | G11: =VLOOKUP(B11,'Activity database'!A:AN,5,FALSE) -> 10
B13: Main building activity areas | C13: Description of activity area | F13: Activity area present in building? | G13: Net Floor Area (m2) | H13: Note: the activity areas defined opposite are used to estimate the assessed building's default occupancy and therefore water consumption benchmark. These areas are chosen as they are deemed, by in large, to represent the permanently occupied spaces in the building and therefore reflect the number of building occupants/users. As a result it is not necessary to include all areas of the building that may be present, as the areas not defined are assumed to be used by the occupants of the building already accounted for by those areas that are listed.
A14: =IF(F14=$Q$136,">",IF(AND(F14=$Q$137,G14=""),">","")) -> > | B14: ='Activity database'!A5 -> Office - Office areas | C14: =VLOOKUP(B14,'Activity database'!A:B,2,FALSE) -> Cellular or open plan office space, including staff kitchen where present/adjacent and reception areas. Exlcude meeting rooms, visitor waiting or circulation areas. | F14: Please select
A15: =IF(F15=$Q$136,">",IF(AND(F15=$Q$137,G15=""),">","")) -> > | B15: ='Activity database'!A7 -> Office - Small workshop / laboratory space | C15: =VLOOKUP(B15,'Activity database'!A:B,2,FALSE) -> Small scale workshop or category 1 laboratory area | F15: Please select
A16: =IF(F16=$Q$136,">",IF(AND(F16=$Q$137,G16=""),">","")) -> > | B16: ='Activity database'!A6 -> Office - Staff canteen dining area | C16: =VLOOKUP(B16,'Activity database'!A:B,2,FALSE) -> Seated dining areas that accompany a permanently staffed kitchen preparing food for consumption on the premises (excludes small un-staffed kitchen's used by office staff to re-heat food, make tea etc.) | F16: Please select | H16: Note: Only select this activity if there is a permanently staffed kitchen that will prepare hot and cold meals for the building's staff (and visitors). Enter the area of the seated dining area only (not kitchen/servery areas), this is used to estimate the number of covers per day for the restaurant and subsequently the number of kitchen staff and water consumption from food preparation activity area.
A17: =IF(F17=$Q$136,">","") -> > | B17: ='Activity database'!A8 -> Office - Fitness suite/gym (with changing facility and showers) | C17: =VLOOKUP(B17,'Activity database'!A:B,2,FALSE) -> A fitness suite or gym that is part of the office building/development and used by the building's employees only. The gym will have its own changing facility with showers. | F17: Please select | H17: =IF(F17=Q137,"Note: Net floor area is not required for this activity. Its inclusion (or otherwise) simply determines the usage/person/day factor and therefore resulting water consumption from the showers.","") -> 
B19: Water consumption - building microcomponent
B21: WC component - all activity areas | C21: units | D21: Specification | E21: Usage/person/day | F21: Usage factor | G21: Consumption (L/person/day) | N21: =B21 -> WC component - all activity areas | O21: Baseline Performance Specification | P21: Usage/person/day | Q21: Usage factor | R21: Baseline Consumption (L/person/day)
A22: =IF(B22=$Q$136,">","") -> > | B22: Please select | C22: Effective flush volume (Litres) | E22: =IF(B22=R136,"",IF(B22=R137,VLOOKUP($B$11,'Activity database'!$A:$AN,9,FALSE),IF(B22=R138,VLOOKUP($B$11,'Activity database'!$A:$BM,10,FALSE)))) ->  | F22: =VLOOKUP($B$11,'Activity database'!$A:$BM,27,FALSE) -> 1 | G22: =IF(ISERROR((D22*E22*F22*(VLOOKUP(B11,'Activity database'!A:BA,7,FALSE)))),Q144,(D22*E22*F22*(VLOOKUP(B11,'Activity database'!A:BA,7,FALSE)))) -> Requires building information | H22: =IF(B22=R136,"Note: please select the relevant option for WC component opposite","") -> Note: please select the relevant option for WC component opposite | N22: =B22 -> Please select | O22: =IF($D$22="",0,VLOOKUP($N$22,'Activity database'!$AT:$BA,2,FALSE)) -> 0 | P22: =E22 ->  | Q22: =F22 -> 1 | R22: =IF($D$22="",0,O22*$P$22*$Q$22*(VLOOKUP($B$11,'Activity database'!$A:$BA,7,FALSE))) -> 0
B23: ='Activity database'!K3 -> WC - female | C23: Effective flush volume (Litres) | E23: =VLOOKUP($B$11,'Activity database'!$A:$BM,11,FALSE) -> 4 | F23: =VLOOKUP($B$11,'Activity database'!$A:$BM,27,FALSE) -> 1 | G23: =D23*E23*F23*(VLOOKUP(B11,'Activity database'!A:BA,8,FALSE)) -> 0 | H23: Note: Where the WC facilities are non-gender specific, please still enter the WC specification against both WC male and WC female categories i.e. if there are two WCs with a 6 litre effective flush, then enter 6 litres against both male and female categories. The calculation will not double count water consumption in this instance as the consumption figure calculated for each WC component is adjusted by the ratio of male to female users for this building type. | N23: =B23 -> WC - female | O23: =IF($D$23="",0,VLOOKUP($N$23,'Activity database'!$AT:$BA,2,FALSE)) -> 0 | P23: =E23 -> 4 | Q23: =F23 -> 1 | R23: =IF($D$23="",0,O23*$P$23*$Q$23*(VLOOKUP($B$11,'Activity database'!$A:$BA,8,FALSE))) -> 0
B25: Urinal component - all activity areas | C25: units | D25: Specification | E25: No. of cisterns | F25: Flushing frequency (flushes/hour) | G25: Consumption (L/person/day) | N25: Urinal component - all activity areas | O25: Baseline Performance Specification | P25: Urinal consumption (L/bowl/day) | Q25: Urinal consumption (L/day) | R25: Baseline Consumption (L/person/day)
A26: =IF(AND(D26>0,OR(E26="",F26="")),">","") ->  | B26: Automatically operated flushing cistern | C26: Cistern capacity (Litres) | G26: =IF(OR(D26=0,E26=0,F26=0,B22=R138),0,(D26*E26*F26*G11)/O145) -> 0 | N26: =B26 -> Automatically operated flushing cistern | O26: =IF($D$26=0,0,IF($D$27=1,'Activity database'!$AU$11,'Activity database'!$AU$10)) -> 0 | P26: =O26*$G$11 -> 0 | Q26: =P26*$D$27 -> 0 | R26: =IF(B22=R138,0,$Q$26/O145) -> 
A27: =IF(AND(D26>0,D27=""),">","") ->  | C27: No. of urinal bowls
C28: units | D28: Specification | E28: Usage/person/day | F28: Usage factor | G28: Consumption (L/person/day) | N28: Urinal component - all activity areas | O28: Baseline Performance Specification | P28: Usage/person/day | Q28: Usage factor | R28: Baseline Consumption (L/person/day)
B29: Manual/automatic operated pressure flushing valve (all activity areas) | C29: Flush volume (litres) | E29: =VLOOKUP($B$11,'Activity database'!$A:$AN,12,FALSE) -> 3 | F29: =VLOOKUP($B$11,'Activity database'!$A:$AN,28,FALSE) -> 1 | G29: =IF(OR(D29=0,E29=0,F29=0,B22=R138),0,(D29*E29*F29)*(VLOOKUP(B11,'Activity database'!A:BA,7,FALSE))*(D30/(D27+D30+D33))) -> 0 | H29: =IF(B22=R138,"",N149) -> Note: This consumption total accounts for the ratio of male users for this building type i.e. the ratio of building users who will operate the flush. Where more than one type of urinal flushing control is specified in the building, this consumption figure is adjusted by a ratio of use. the ratio is determined according to the proportion of urinals bowls in the building operated using this type of control. | N29: =B29 -> Manual/automatic operated pressure flushing valve (all activity areas) | O29: ='Activity database'!$AU$12 -> 1 | P29: =E29 -> 3 | Q29: =F29 -> 1 | R29: =IF(B22=R138,0,IF($D$29="",0,$O$29*$P$29*$Q$29*(VLOOKUP(B11,'Activity database'!$A:$BA,7,FALSE)))*(D30/(D27+D30+D33))) -> 0
A30: =IF(AND(D29>0,D30=""),">","") ->  | C30: No. of urinal bowls
C31: units | D31: Specification | E31: Usage/person/day | F31: Usage factor | G31: Consumption (L/person/day) | N31: Urinal component - all activity areas | O31: Baseline Performance Specification | P31: Usage/person/day | Q31: Usage factor | R31: Baseline Consumption (L/person/day)
A32: =IF(B22=R138,"",IF(D32=$Q$136,">","")) -> > | B32: Waterless urinals (all activity areas) | C32: Flush volume (litres) | D32: Please select | E32: =VLOOKUP($B$11,'Activity database'!$A:$AN,12,FALSE) -> 3 | F32: =VLOOKUP($B$11,'Activity database'!$A:$AN,28,FALSE) -> 1 | G32: 0 | H32: =IF(OR(B22=R138,B22=R136,D32=P138),"",IF(AND(D32=P137,D33>0),N150,IF(OR(D32=R136,D32=P137),N151))) ->  | N32: =B32 -> Waterless urinals (all activity areas) | O32: ='Activity database'!$AU$12 -> 1 | P32: =E32 -> 3 | Q32: =F32 -> 1 | R32: =IF(B22=R138,0,IF(OR($D$32="",$D$32=P136,$D$32=P138),0,$O$32*$P$32*$Q$32*(VLOOKUP(B11,'Activity database'!A:BA,7,FALSE)))*(D33/(D26+D30+D33))) -> 0
A33: =IF(AND(D32=P137,D33=""),">","") ->  | C33: No. of urinal bowls | D33: 1
C35: units | D35: Specification | E35: Usage/person/day | F35: Usage factor | G35: Consumption (L/person/day)
B36: Taps components (personal hygiene) - all activity areas | N36: =B36 -> Taps components (personal hygiene) - all activity areas | O36: Baseline Performance Specification | P36: Usage/person/day | Q36: Usage factor | R36: Baseline Consumption (L/person/day)
B37: ='Activity database'!M3 -> Wash hand basin taps | C37: Flow rate (litres/min) | E37: =VLOOKUP($B$11,'Activity database'!$A:$AN,13,FALSE) -> 4 | F37: =VLOOKUP($B$11,'Activity database'!$A:$AN,29,FALSE) -> 0.25 | G37: =(D37*E37*F37)*VLOOKUP(B11,'Activity database'!A:AR,44,FALSE) -> 0 | N37: =B37 -> Wash hand basin taps | O37: =IF($D$37="",0,VLOOKUP($N$37,'Activity database'!$AT:$BA,2,FALSE)) -> 0 | P37: =E37 -> 4 | Q37: 0.25 | R37: =IF($D$37="",0,(O37*$P$37*$Q$37)*(VLOOKUP($B$11,'Activity database'!$A:$AR,44,FALSE))) -> 0
B38: ='Activity database'!N3 -> Shower use | C38: Flow rate (litres/min) | E38: =IF(F17="no",VLOOKUP($B$11,'Activity database'!$A:$AN,14,FALSE),VLOOKUP(B17,'Activity database'!A:BC,14,FALSE)) -> 0.154 | F38: =VLOOKUP($B$11,'Activity database'!$A:$AN,30,FALSE) -> 5.6 | G38: =D38*E38*F38 -> 0 | N38: Shower use | O38: =IF($D$38="",0,'Activity database'!AU8) -> 0 | P38: 0.154 | Q38: 5.6 | R38: =IF($D$38="",0,O38*$P$38*$Q$38) -> 0
A39: Hide rows: N/A for offices | B39: ='Activity database'!O3 -> Shower use (bath present) | C39: Flow rate (litres/min) | E39: =VLOOKUP($B$11,'Activity database'!$A:$AN,15,FALSE) -> N/A | F39: =VLOOKUP($B$11,'Activity database'!$A:$AN,31,FALSE) -> 4.37 | G39: =IF(E39="N/A",0,D39*E39*F39) -> 0 | H39: Hide rows: N/A for offices | N39: Shower use (bath present) | O39: =IF($D$39="",0,'Activity database'!AU8) -> 0 | P39: N/A | Q39: 4.37 | R39: =IF($D$39="",0,O39*$P$39*$Q$39) -> 0
A40: Hide rows: N/A for offices | B40: ='Activity database'!P3 -> Bath use (no shower present) | C40: Capacity to overflow (Litres) | E40: =VLOOKUP($B$11,'Activity database'!$A:$AN,16,FALSE) -> N/A | F40: =VLOOKUP($B$11,'Activity database'!$A:$AN,32,FALSE) -> 1 | G40: =IF(E40="n/a",0,((D40*E40*F40)*'Activity database'!AQ4)) -> 0 | H40: Hide rows: N/A for offices | N40: Bath use (no shower present) | O40: =IF($D$40="",0,'Activity database'!AU9) -> 0 | P40: N/A | Q40: 1 | R40: =IF($D$40="",0,((O40*$P$40*$Q$40)*(VLOOKUP($B$11,'Activity database'!$A:$AR,43,FALSE)))) -> 0
A41: Hide rows: N/A for offices | B41: ='Activity database'!Q3 -> Bath use (shower present) | C41: Capacity to overflow (Litres) | E41: =VLOOKUP($B$11,'Activity database'!$A:$AN,17,FALSE) -> N/A | F41: =VLOOKUP($B$11,'Activity database'!$A:$AN,33,FALSE) -> 1 | G41: =IF(E41="n/a",0,((D41*E41*F41)*'Activity database'!AQ4)) -> 0 | H41: Hide rows: N/A for offices | N41: Bath use (shower present) | O41: =IF($D$41="",0,'Activity database'!AU9) -> 0 | P41: N/A | Q41: 1 | R41: =IF($D$41="",0,((O41*$P$41*$Q$41)*(VLOOKUP($B$11,'Activity database'!$A:$AR,43,FALSE)))) -> 0
B42: ='Activity database'!X3 -> Fixed use - vessel filling | C42: Litres/person/day | D42: - | E42: - | F42: - | G42: =IF(F17="yes",VLOOKUP(B11,'Activity database'!A:BA,24,FALSE)+VLOOKUP(B17,'Activity database'!A:BA,24,FALSE),VLOOKUP(B11,'Activity database'!A:BA,24,FALSE)) -> 1.58 | N42: Fixed use - vessel filling | O42: N/A | P42: N/A | Q42: N/A | R42: =$G$42 -> 1.58
B43: Tap components (cleaning) - staff kitchenette | N43: =B43 -> Tap components (cleaning) - staff kitchenette
B44: ='Activity database'!R3 -> Kitchen taps - kitchenette | C44: Flow rate (litres/min) | E44: =VLOOKUP($B$14,'Activity database'!$A:$AN,18,FALSE) -> 1 | F44: =VLOOKUP($B$14,'Activity database'!$A:$AN,34,FALSE) -> 0.67 | G44: =(D44*E44*F44)*(VLOOKUP(B11,'Activity database'!A:AR,44,FALSE)) -> 0 | N44: =B44 -> Kitchen taps - kitchenette | O44: =IF($D$44="",0,VLOOKUP($N$44,'Activity database'!$AT:$BA,2,FALSE)) -> 0 | P44: =E44 -> 1 | Q44: =F44 -> 0.67 | R44: =IF($D$44="",0,(O44*$P$44*$Q$44)*(VLOOKUP($B$11,'Activity database'!$A:$AR,44,FALSE))) -> 0
B45: ='Activity database'!U3 -> Dishwasher | C45: Litres/cycle | E45: =VLOOKUP($B$14,'Activity database'!$A:$AN,21,FALSE) -> 0.04 | F45: =VLOOKUP($B$14,'Activity database'!$A:$AN,37,FALSE) -> 1 | G45: =D45*E45*F45 -> 0 | N45: =B45 -> Dishwasher | O45: =IF($D$45="",0,'Activity database'!AU16) -> 0 | P45: =E45 -> 0.04 | Q45: =F45 -> 1 | R45: =O45*$P$45*$Q$45 -> 0
B46: Tap components (cleaning and food preparation) - staff canteen food preparation area | N46: =B46 -> Tap components (cleaning and food preparation) - staff canteen food preparation area
B47: ='Activity database'!S3 -> Kitchen taps - pre-rinse nozzle | C47: Flow rate (litres/min) | E47: - | F47: =VLOOKUP($B$16,'Activity database'!A:BC,35,FALSE) -> 60 | G47: =IF(ISERROR((D47*F47)/O145),Q144,((D47*F47)/O145)) -> Requires building information | N47: =B47 -> Kitchen taps - pre-rinse nozzle | O47: =IF($D$47="",0,VLOOKUP($N$47,'Activity database'!$AT:$BA,2,FALSE)) -> 0 | P47: =E47 -> - | Q47: 60 | R47: =IF($D$47="",0,(O47*$Q$47)/$O$145) -> 0
B48: ='Activity database'!U3 -> Dishwasher | C48: Litres/rack | E48: - | F48: =VLOOKUP($B$16,'Activity database'!A:BC,37,FALSE) -> 0.217 | G48: =IF(ISERROR((F48*G16*D48)/O145),Q144,((F48*G16*D48)/O145)) -> Requires building information | N48: Dishwasher | O48: =IF($D$48="",0,'Activity database'!AU19) -> 0 | P48: - | Q48: 0.217 | R48: =IF($D$48="",0,($Q$48*$G$16*O48)/$O$145) -> 0
B49: ='Activity database'!W3 -> Waste disposal unit | C49: Flow rate (litres/min) | E49: - | F49: =VLOOKUP($B$16,'Activity database'!A:BC,39,FALSE) -> 30 | G49: =IF(ISERROR((D49*F49)/O145),Q144,((D49*F49)/O145)) -> Requires building information | N49: Waste disposal unit | O49: =IF($D$49="",0,VLOOKUP($N$49,'Activity database'!$AT:$BA,2,FALSE)) -> 0 | P49: - | Q49: 30 | R49: =IF($D$49="",0,(O49*$Q$49)/$O$145) -> 0
A50: N/A for Offices | B50: ='Activity database'!V3 -> Washing machine | C50: Litres/kg dry load | E50: =VLOOKUP($B$11,'Activity database'!$A:$AN,22,FALSE) -> N/A | F50: =VLOOKUP($B$11,'Activity database'!$A:$AN,38,FALSE) -> - | G50: =IF(ISERROR(IF(E50="N/A",0,IF(F16="Yes",(D50*E50*F50),0))),Q144,IF(E50="N/A",0,IF(F16="Yes",(D50*E50*F50),0))) -> 0 | H50: N/A for Offices | N50: Washing machine | O50: =IF($D$50="",0,'Activity database'!AU20) -> 0 | P50: N/A | Q50: - | R50: =IF($D$50="",0,IF($F$16="Yes",(O50*$P$50*$Q$50))) -> 0
B51: ='Activity database'!Y3 -> Fixed use - food preparation | C51: Litres/person/day | D51: - | E51: - | F51: - | G51: =IF(ISERROR(IF(F16="Yes",(VLOOKUP(B16,'Activity database'!A:BC,25,FALSE)/O145),0)),Q144,IF(F16="Yes",(VLOOKUP(B16,'Activity database'!A:BC,25,FALSE)/O145),0)) -> 0 | N51: Fixed use - food preparation | O51: N/A | P51: =E51 -> - | Q51: N/A | R51: =$G$51 -> 0
B52: ='Activity database'!Z3 -> Fixed use - kitchen cleaning | C52: Litres/person/day | D52: - | E52: - | F52: - | G52: =IF(ISERROR(IF(F16="Yes",(VLOOKUP(B16,'Activity database'!A:BC,26,FALSE)/O145),0)),Q144,(IF(F16="Yes",(VLOOKUP(B16,'Activity database'!A:BC,26,FALSE)/O145),0))) -> 0 | N52: Fixed use - kitchen cleaning | O52: N/A | P52: =E52 -> - | Q52: N/A | R52: =$G$52 -> 0
G54: Microcomponent consumption (L/person/day) | H54: Note: This total includes the contributions from fixed uses, including where applicable vessel filling, kitchen cleaning and food preparation. Default fixed use totals are included with the calculations to provide a more accurate reflection of the buildings total water consumption. The fixed use totals are not however included in the water consumption total used to determine the assessed buildings percentage improvement and the number of BREEAM credits achieved. The percentage improvement is based only on the consumption of water from uses that can be heavily influenced by the microcomponent specification e.g. WC flushing. | R54: Baseline Consumption (L/person/day) - exluding fixed uses
F55: Total | G55: =IF(OR(G22=Q144,AND(F14=Q138,F15=Q138,F16=Q138,F17=Q138)),Q144,(SUM(G22:G23)+G26+G29+G32+SUM(G37:G42)+SUM(G44:G45)+SUM(G47:G52))) -> Requires building information | Q55: Total | R55: =SUM(R22+R23)+R26+R29+R32+SUM(R37:R42)+SUM(R44:R45)+SUM(R47:R52)-R65 -> 
B57: Minimum requirements according to EU taxonomy for sustainable finance
A58: =IF(G58=$Q$136,">","") -> > | F58: Do all the installed wash hand basin taps and kitchen taps have a maximum water flow of 6 litres/min? | G58: Please select
A59: > | F59: Do all the installed showers have a maximum water flow of 8 litres/min? | G59: Please select
A60: > | F60: Do all WCs, including suites, bowls and flushing cisterns, have a full flush volume of a maximum of 6 litres and a maximum average flush volume of 3,5 litres? | G60: Please select
A61: > | F61: Do all urinals use a maximum of 2 litres/bowl/hour and flushing urinals have a maximum full flush volume of 1 litre? | G61: Please select
F62: Is all the EU taxonomy requirements for sanitary equipment met? | G62: =IF(OR(G58="Please select",G58="No"),"No",IF(OR(G59="Please Select",G59="No"),"No",IF(OR(G60="Please Select",G60="No"),"No",IF(OR(G61="Please Select",G61="No"),"No","Yes")))) -> No
B64: Non potable water yield - greywater system | R64: Total from fixed uses
Q65: Total | R65: =R52+R51+R42 -> 1.58
A66: =IF(G66=$Q$136,">","") -> > | F66: Has, or will, the greywater system be specified and installed in compliance with BS8525-1:2010 Greywater Systems - Part 1 Code of Practice | G66: Please select
C68: Greywater source (building components) | E68: Greywater collected | F68: Proportion of components collected from (%) | G68: Greywater yield (L/person/day)
B69: =IF(D37="","",IF(AND($G$66=$Q$137,E69=""),">",IF(AND($G$66=$Q$137,E69=$Q$137,F69=""),">",""))) ->  | C69: =B37 -> Wash hand basin taps | G69: =IF(OR(E69=$Q$138,E69=""),0,G37*F69) -> 0
B70: =IF(AND($G$66=$Q$137,E70=""),">",IF(AND($G$66=$Q$137,E70=$Q$137,F70=""),">","")) ->  | C70: Showers | G70: =IF(OR(E70=$Q$138,E70=""),0,(SUM(G38:G39)*F70)) -> 0
B71: =IF(AND($G$66=$Q$137,E71=""),">",IF(AND($G$66=$Q$137,E71=$Q$137,F71=""),">","")) ->  | C71: =B44 -> Kitchen taps - kitchenette | G71: =IF(OR(E71=$Q$138,E71=""),0,G44*F71) -> 0
B72: =IF(AND($G$66=$Q$137,E72=""),">",IF(AND($G$66=$Q$137,E72=$Q$137,F72=""),">","")) ->  | C72: Dishwasher - staff kitchenette | G72: =IF(OR(E72=$Q$138,E72=""),0,F72*G45) -> 0
B73: =IF(AND($G$66=$Q$137,E73=""),">",IF(AND($G$66=$Q$137,E73=$Q$137,F73=""),">","")) ->  | C73: =B47 -> Kitchen taps - pre-rinse nozzle | G73: =IF(OR(E73=$Q$138,E73=""),0,G47*F73) -> 0
B74: =IF(AND($G$66=$Q$137,E74=""),">",IF(AND($G$66=$Q$137,E74=$Q$137,F74=""),">","")) ->  | C74: Dishwasher - food preparation area | G74: =IF(OR(E74=$Q$138,E74=""),0,F74*G48) -> 0
B75: =IF(AND($G$66=Q143,E75=""),">","") ->  | C75: Bath | G75: =IF(OR(E75=Q138,E75="",E40="N/A",E41="N/A"),0,(SUM(G40:G41)*F75)) -> 0 | H75: Hide rows: N/A for offices
B76: =IF(AND($G$66=Q144,E76=""),">","") ->  | C76: =B50 -> Washing machine | G76: =IF(OR(E76=Q139,E76=""),0,F76*G50) -> 0 | H76: Hide rows: N/A for offices
C77: Greywater source (other components) | D77: Typical greywater yield (litres) | E77: Frequency of yield (days) | F77: Greywater yield (litres/day) | G77: Greywater yield (L/person/day) | H77: =IF(G66=Q137,N148,"") -> 
C78: Other source of greywater | F78: =IF(D78="","",D78/E78) ->  | G78: =IF(D78="",0,F78/$O$145) -> 0
G80: Greywater yield (L/person/day)
F81: Total | G81: =IF(OR(G66=Q139,G66=Q138),0,SUM(G69:G76)+G78) -> 0
B83: Non potable water yield - rainwater system
A85: =IF(G85=$Q$136,">","") ->  | F85: Has, or will, the rainwater system be specified and installed in compliance with BS EN 16941-1:2018 Rainwater Harvesting Systems - Code of practice | G85: System not specified
A87: =IF(AND($G$85=$Q$137,G87=$Q$136),">","") ->  | F87: How has the storage capacity for the proposed system been calculated? | G87: Please select
B88: Rainwater yield if basic approach:
B89: Collection area (m2) | C89: Rainfall (average mm/yr) | D89: Hydraulic filter efficiency (%) | E89: Yield co-efficient (%) | F89: Annual rainwater yield (Litres) | G89: Rainwater yield (L/person/day)
A90: =IF(AND($G$85=$Q$137,$G$87=$S$137,OR(B90="",C90="",D90="",E90="")),">","") ->  | F90: =B90*E90*D90*C90 -> 0 | G90: =IF(ISERROR(IF(OR(G85=Q139,G85=Q138,G87=S138),0,(F90/365)/O145)),Q144,IF(OR(G85=Q139,G85=Q138,G87=S138),0,(F90/365)/O145)) -> 0
F91: Rainwater yield if detailed:
F92: Daily rainfall collection (litres) | G92: Rainwater yield (L/person/day)
E93: =IF(AND($G$85=$Q$137,$G$87=$S$138,F93=""),">","") ->  | G93: =IF(ISERROR(IF(OR(G87=S137,G85=Q139,G85=Q138),0,(F93/O145))),Q144,IF(OR(G87=S137,G85=Q139,G85=Q138),0,(F93/O145))) -> 0
B95: Non Potable Water Demand - Building Components
G97: Greywater and/or rainwater yield (L/person/day)
F98: Total | G98: =IF(ISERROR(G93+G90+G81),Q144,G93+G90+G81) -> 0
D100: Component | E100: Greywater and/or rainwater utilised for component | F100: Proportion of components using greywater and/or rainwater yield (%) | G100: Maximum permissible demand (L/person/day)
C101: =IF(AND(OR($G$66=$Q$136,$G$66=$Q$138,$G$66=$Q$139),OR($G$85=$Q$136,$G$85=$Q$138,$G$85=$Q$139)),"",IF(E101=$Q$138,"",IF(OR(E101="",F101=""),">",""))) ->  | D101: WC flushing | G101: =IF(E101="no",0,F101*SUM(G22:G23)) -> 0
C102: =IF(B22=R138,"",IF(AND(OR($G$66=$Q$136,$G$66=$Q$138,$G$66=$Q$139),OR($G$85=$Q$136,$G$85=$Q$138,$G$85=$Q$139)),"",IF(E102=$Q$138,"",IF(OR(E102="",F102=""),">","")))) ->  | D102: Urinal flushing | G102: =IF(OR(E102="no",B22=R138),0,F102*SUM(G26:G32)) -> 0
G103: Demand met by yield (L/person/day)
F104: Total | G104: =IF((SUM(G101:G102))>G98,G98,SUM(G101:G102)) -> 0
D105: Other permissible components
C106: =IF(AND(OR($G$66=$Q$136,$G$66=$Q$138,$G$66=$Q$139),OR($G$85=$Q$136,$G$85=$Q$138,$G$85=$Q$139)),"",IF(G106=$Q$136,">","")) ->  | F106: Are there other permissible components present which demand greywater and/or rainwater yield? | G106: Please select
G107: Maximum permissible demand (L/day)
G108: =IF(ISERROR(IF(AND(G106="yes",G104>G98),0,(G98-G104)*O145)),Q144,IF(AND(G106="yes",G104>G98),0,(G98-G104)*O145)) -> 0
C109: =IF(AND(OR($G$66=$Q$136,$G$66=$Q$138,$G$66=$Q$139),OR($G$85=$Q$136,$G$85=$Q$138,$G$85=$Q$139)),"",IF(AND(G106=$Q$137,G109=""),">","")) ->  | F109: Proportion of maximum permissible demand utilised by other permissible components (%)
G110: Demand met by yield (L/person/day)
F111: Total | G111: =IF(ISERROR((G109*G108)/O145),Q144,(G109*G108)/O145) -> Requires building information
G113: Greywater and/or rainwater demand met by yield (L/person/day)
F114: Total | G114: =IF(ISERROR(G104+G111),Q144,G104+G111) -> Requires building information
B116: Water consumption calculation results
F118: Litres/person/day | G118: m3/person/yr
E119: Water consumption - modelled baseline performance benchmark (excludes fixed uses) | F119: =IF(ISERROR(R55),Q144,R55) -> Requires building information | G119: =IF(ISERROR((F119/1000)*$F$11),Q144,(F119/1000)*$F$11) -> Requires building information
E121: Microcomponent water consumption - modelled performance (excludes fixed uses) | F121: =IF(ISERROR(G55-R65),Q144,G55-R65) -> Requires building information | G121: =IF(ISERROR((F121/1000)*$F$11),Q144,(F121/1000)*$F$11) -> Requires building information
E123: Modelled water demand met via greywater and rainwater sources | F123: =IF(ISERROR(G114),Q144,G114) -> Requires building information | G123: =IF(ISERROR((F123/1000)*$F$11),Q144,(F123/1000)*$F$11) -> Requires building information
E125: If greywater/rainwater systems specified has the minimum % efficiency improvement for component specifications been met | F125: =IF(ISERROR(IF(AND((OR(G85=Q139,G85=Q138)),((OR(G66=Q139,G66=Q138)))),Q139,IF(OR(N129="1 credit",N129="2 credits",N129="3 credits"),Q142,IF(OR(N129="4 credits",N129="5 credits"),(IF((1-(F121/F119))<0.25,"No","Yes")))))),Q144,IF(AND((OR(G85=Q139,G85=Q138)),((OR(G66=Q139,G66=Q138)))),Q139,IF(OR(N129="1 credit",N129="2 credits",N129="3 credits"),Q142,IF(OR(N129="4 credits",N129="5 credits"),(IF((1-(F121/F119))<0.25,"No","Yes")))))) -> Requires building information
N126: Greywater/rainwater data check
E127: Net modelled water consumption (excludes fixed uses) | F127: =IF(ISERROR(IF(OR(F125="Yes",F125=Q139),F121-F123,(F121-((1-(F121/F119))*F123)))),Q144,IF(OR(F125="Yes",F125=Q139),F121-F123,(F121-((1-(F121/F119))*F123)))) -> Requires building information | G127: =IF(ISERROR((F127/1000)*$F$11),Q144,((F127/1000)*$F$11)) -> Requires building information | N127: =1-(F121-F123)/F119 ->  | O127: % actual improvement
E129: Percentage improvement | F129: =IF(OR(F119=Q144,F121=Q144,F123=Q144,F125=Q144),Q144,(ROUNDDOWN(IF(OR(F125="yes",F125=Q142,F125=Q139),N127,(IF(F125="No",1-((F121-(F123*(1-(F121/F119))))/F119)))),4))) -> Requires building information | N129: =VLOOKUP(N127,'Activity database'!BC4:BD9,2,TRUE) ->  | O129: Credits achieved
E131: Total Wat 01 BREEAM credits achieved, before checking minimum requirements according to EU taxonomy for sustainable finance. | F131: =IF(F129<0,'Activity database'!BD4,(IF(ISERROR(VLOOKUP(F129,'Activity database'!BC4:BD9,2,TRUE)),Q144,VLOOKUP(F129,'Activity database'!BC4:BD9,2,TRUE)))) -> Requires building information
E133: Total Wat 01 BREEAM credits achieved | F133: =IF(F131="Requires building information","Requires building information",IF(G62="Yes",F131,IF(F131>="1 credit","1 credit","0 credits"))) -> Requires building information
E135: Total Wat 01 BREEAM Exemplary credits achieved | F135: =IF(F129=Q144,Q144,IF(F129>='Activity database'!BC10,"1 innovation credit achieved","Exemplary level not achieved")) -> Requires building information
P136: Please select | Q136: Please select | R136: Please select | S136: Please select | T136: 0
E137: Key performance indicator - use of freshwater resource (includes fixed uses) | F137: =IF(ISERROR(F121+R65-F123),Q144,F121+R65-F123) -> Requires building information | G137: =IF(ISERROR((F137/1000)*$F$11),Q144,(F137/1000)*$F$11) -> Requires building information | O137: Default occupancy rate | P137: Waterless urinals - specified | Q137: Yes | R137: ='Activity database'!I3 -> WC - male (urinals installed) | S137: BS EN 16941-1 'basic approach' | T137: 0.01
N138: =B14 -> Office - Office areas | O138: =IF(F14="Yes",VLOOKUP(B14,'Activity database'!A:BC,3,FALSE)*G14,0) -> 0 | P138: Waterless urinals - not specified | Q138: No | R138: ='Activity database'!J3 -> WC - male (no urinals installed) | S138: BS EN 16941-1 'detailed approach' | T138: 0.02
Q139: System not specified | T139: 0.03
N140: =B15 -> Office - Small workshop / laboratory space | O140: =IF(F15="Yes",VLOOKUP(B15,'Activity database'!A:BC,3,FALSE)*G15,0) -> 0 | T140: 0.04
T141: 0.05
N142: =B16 -> Office - Staff canteen dining area | O142: =IF(F16="Yes",(VLOOKUP(B16,'Activity database'!A:BC,3,FALSE)*G16),0) -> 0 | Q142: Not applicable | T142: 0.06
T143: 0.07
N144: =B17 -> Office - Fitness suite/gym (with changing facility and showers) | O144: =IF(F17="Yes",VLOOKUP(B17,'Activity database'!A:BC,3,FALSE)*G16,0) -> 0 | Q144: Requires building information | T144: 0.08
N145: Total default occupancy | O145: =SUM(O138:O144) -> 0 | T145: 0.09
T146: 0.1
T147: 0.11
N148: Note: If greywater is collected from a component/source not accounted for above i.e. their consumption is not estimated, then the amount of greywater collected can be added here so that it may be accounted for. This can include wastewater from active hygiene flushing, i.e. a regular hygiene flushing programme to minimize poor water quality in a potable cold or hot water system. | T148: 0.12
N149: Note: This consumption total accounts for the ratio of male users for this building type i.e. the ratio of building users who will operate the flush. Where more than one type of urinal flushing control is specified in the building, this consumption figure is adjusted by a ratio of use. the ratio is determined according to the proportion of urinals bowls in the building operated using this type of control. | T149: 0.13
N150: Note: Where waterless urinals are specified in the assessed building, for the purpose of the baseline benchmark standard 1.5 litre flush urinals are assumed. Where waterless urinals and another type of urinal flushing control is specified in the building, the baseline consumption figure calculated using a 1.5 litre default flush is adjusted by a ratio of use. The ratio is determined according to the proportion of urinals bowls in the building that are waterless. | T150: 0.14
N151: Note: Please select the relevant option for waterless urinals specification opposite. | T151: 0.15
T152: 0.16
T153: 0.17
T154: 0.18
T155: 0.19
T156: 0.2
T157: 0.21
T158: 0.22
T159: 0.23
T160: 0.24
T161: 0.25
T162: 0.26
T163: 0.27
T164: 0.28
T165: 0.29
T166: 0.3
T167: 0.31
T168: 0.32
T169: 0.33
T170: 0.34
T171: 0.35
T172: 0.36
T173: 0.37
T174: 0.38
T175: 0.39
T176: 0.4
T177: 0.41
T178: 0.42
T179: 0.43
T180: 0.44
T181: 0.45
T182: 0.46
T183: 0.47
T184: 0.48
T185: 0.49
T186: 0.5
T187: 0.51
T188: 0.52
T189: 0.53
T190: 0.54
T191: 0.55
T192: 0.56
T193: 0.57
T194: 0.58
T195: 0.59
T196: 0.6
T197: 0.61
T198: 0.62
T199: 0.63
T200: 0.64
T201: 0.65
T202: 0.66
T203: 0.67
T204: 0.68
T205: 0.69
T206: 0.7
T207: 0.71
T208: 0.72
T209: 0.73
T210: 0.74
T211: 0.75
T212: 0.76
T213: 0.77
T214: 0.78
T215: 0.79
T216: 0.8
T217: 0.81
T218: 0.82
T219: 0.83
T220: 0.84
T221: 0.85
T222: 0.86
T223: 0.87
T224: 0.88
T225: 0.89
T226: 0.9
T227: 0.91
T228: 0.92
T229: 0.93
... 7 more rows

Sheet Retail calculator (hidden)
B2: BREEAM-NOR v6.1 Wat 01 Water consumption: Water efficiency calculator for new non domestic retail buildings
B4: Building details
B6: Building name | C6: ='User Instructions'!D8:F8 -> 
B8: BRE assessment reference no. | C8: ='User Instructions'!D10:F10 -> 
B10: Building type | C10: Description of building type | F10: Default annual days/operation | G10: Default daily hours of operation
A11: =IF(B11=$R$135,">","") -> > | B11: Please select | C11: =VLOOKUP(B11,'Activity database'!A:B,2,FALSE) ->  | F11: =VLOOKUP(B11,'Activity database'!A:AN,4,FALSE) ->  | G11: =VLOOKUP(B11,'Activity database'!A:AN,5,FALSE) ->  | H11: =O165 -> Note: If this retail development contains one of or a combination of restaurants/cafes (for customer use), gym or cinema then please ensure you undertake separate water consumption calculations for such building functions using the appropriate building type calculator. You must then determine the number of BREEAM credits achieved for the development as a whole in accordance with the guidance given in the compliance note: "Building is a mixture of different types", contained within the Wat 01 issue in the BREEAM New Construction technical guide.
A12: =IF(B11=R135,"",IF(G12=$R$135,">","")) ->  | C12: Does the retail development contain sanitary facilities for use by visiting customers? | G12: Please select
F13: Default daily occupancy visiting customers | G13: =IF(G12=R137,R143,O146) -> 0 | H13: =IF(G12=R137,O164,"") -> 
F14: Default daily occupancy staff | G14: =P146 -> 0
B16: Main building activity areas | C16: Description of activity area | F16: Activity area present in building? | G16: Net Floor Area (m2) | H16: ='Office calculator'!H13 -> Note: the activity areas defined opposite are used to estimate the assessed building's default occupancy and therefore water consumption benchmark. These areas are chosen as they are deemed, by in large, to represent the permanently occupied spaces in the building and therefore reflect the number of building occupants/users. As a result it is not necessary to include all areas of the building that may be present, as the areas not defined are assumed to be used by the occupants of the building already accounted for by those areas that are listed.
A17: =IF(F17=$R$135,">",IF(AND(F17=$R$136,G17=""),">","")) -> > | B17: ='Activity database'!A43 -> Retail - sales areas for display of bulky items | C17: =VLOOKUP(B17,'Activity database'!A:B,2,FALSE) -> A retail sales/display area trading predominantly in bulky items, e.g. furniture, floor coverings, cycles, prams, large domestic appliances or other bulky goods, or trading on a wholesale self-selection basis. | F17: Please select
A18: > | B18: ='Activity database'!A44 -> Retail - sales areas for display of non bulky items and/or customer service area. | C18: =VLOOKUP(B18,'Activity database'!A:B,2,FALSE) -> A general sales/display areas in department stores, supermarkets, shops and/or customer service waiting and/or collection areas e.g. in banks, post office, bookmakers etc. | F18: Please select
A19: > | B19: ='Activity database'!A45 -> Retail - concourse/shopping mall | C19: =VLOOKUP(B19,'Activity database'!A:B,2,FALSE) -> The central (shared) area within a shopping centre used for access by shoppers (typically a covered area containing one or more of benches, cafes, escalators etc.) | F19: Please select
A20: > | B20: ='Activity database'!A46 -> Retail - Staff office area and staffroom | C20: =VLOOKUP(B20,'Activity database'!A:B,2,FALSE) -> Staff office space and staffroom, often located in 'back of house' areas. | F20: Please select
A21: > | B21: ='Activity database'!A47 -> Retail - Staff canteen dining area | C21: =VLOOKUP(B21,'Activity database'!A:B,2,FALSE) -> Seated areas in a staff canteen that accompany a food preparation areas where food and drink is consumed by staff on the premises. | F21: Please select | H21: Note: Only select this activity if there is a permanently staffed kitchen that will prepare hot and cold meals for the building's staff. Enter the area of the seated dining area only (not kitchen/servery areas), this is used to estimate the number of covers per day and subsequently the default number of kitchen staff and water consumption from food preparation activity area.
A22: > | B22: ='Activity database'!A48 -> Retail - Goods-in and storage area | C22: =VLOOKUP(B22,'Activity database'!A:B,2,FALSE) -> Internal areas for receiving and storing goods. | F22: Please select
A23: > | B23: ='Activity database'!A49 -> Retail - Workshop | C23: =VLOOKUP(B23,'Activity database'!A:B,2,FALSE) -> A workshop / vehicle servicing area within a car showroom or general workshop in other type of retail development. | F23: Please select
B25: Water consumption - building microcomponent
B27: WC component - all activity areas | C27: units | D27: Specification | E27: Usage/person/day | F27: Usage factor | G27: Consumption (L/person/day) | O27: WC component - all activity areas | P27: Baseline Performance Specification | Q27: Usage/person/day | R27: Usage factor | S27: Baseline Consumption (L/person/day)
A28: =IF(B28=$R$135,">","") -> > | B28: Please select | C28: Effective flush volume (Litres) | E28: =IF(OR(B11=R135,B28=R135),R145,IF(B28=S136,VLOOKUP($B$11,'Activity database'!$A:$AN,9,FALSE),IF(B28=S137,VLOOKUP($B$11,'Activity database'!$A:$BM,10,FALSE)))) -> Requires building information | F28: =IF(B11=R135,R145,VLOOKUP($B$11,'Activity database'!$A:$BM,27,FALSE)) -> Requires building information | G28: =IF(ISERROR((D28*E28*F28*(VLOOKUP(B11,'Activity database'!A:BA,7,FALSE)))),R145,(D28*E28*F28*(VLOOKUP(B11,'Activity database'!A:BA,7,FALSE)))) -> Requires building information | H28: =IF(B28=S135,"Note: please select the relevant option for WC component opposite","") -> Note: please select the relevant option for WC component opposite | O28: =B28 -> Please select | P28: =IF($D$28="",0,VLOOKUP($O$28,'Activity database'!$AT:$BA,2,FALSE)) -> 0 | Q28: =E28 -> Requires building information | R28: =F28 -> Requires building information | S28: =IF($D$28="",0,P28*$Q$28*$R$28*(VLOOKUP($B$11,'Activity database'!$A:$BA,7,FALSE))) -> 0
B29: ='Activity database'!K3 -> WC - female | C29: Effective flush volume (Litres) | E29: =IF(B11=R135,R145,VLOOKUP($B$11,'Activity database'!$A:$BM,11,FALSE)) -> Requires building information | F29: =IF(B11=R135,R145,VLOOKUP($B$11,'Activity database'!$A:$BM,27,FALSE)) -> Requires building information | G29: =IF(ISERROR(IF(B11=R135,R145,D29*E29*F29*(VLOOKUP(B11,'Activity database'!A:BA,8,FALSE)))),R145,IF(B11=R135,R145,D29*E29*F29*(VLOOKUP(B11,'Activity database'!A:BA,8,FALSE)))) -> Requires building information | H29: Note: Where the WC facilities are non-gender specific, please still enter the WC specification against both WC male and WC female categories i.e. if there are two WCs with a 6 litre effective flush, then enter 6 litres against both male and female categories. The calculation will not double count water consumption in this instance as the consumption figure calculated for each WC component is adjusted by the ratio of male to female users for this building type. | O29: =B29 -> WC - female | P29: =IF($D$29="",0,VLOOKUP($O$29,'Activity database'!$AT:$BA,2,FALSE)) -> 0 | Q29: =E29 -> Requires building information | R29: =F29 -> Requires building information | S29: =IF($D$29="",0,P29*$Q$29*$R$29*(VLOOKUP($B$11,'Activity database'!$A:$BA,8,FALSE))) -> 0
B31: Urinal component - all activity areas | C31: units | D31: Specification | E31: No. of cisterns | F31: Flushing frequency (flushes/hour) | G31: Consumption (L/person/day) | O31: Urinal component - all activity areas | P31: Baseline Performance Specification | Q31: Urinal consumption (L/bowl/day) | R31: Urinal consumption (L/day) | S31: Baseline Consumption (L/person/day)
A32: =IF(AND(D32>0,OR(E32="",F32="")),">","") ->  | B32: Automatically operated flushing cistern | C32: Cistern capacity (Litres) | G32: =IF(B11=R135,R145,IF(OR(D32=0,E32=0,F32=0,B28=S137),0,(D32*E32*F32*G11)/O147)) -> Requires building information | O32: =B32 -> Automatically operated flushing cistern | P32: =IF($D$32=0,0,IF($D$33=1,'Activity database'!$AU$11,'Activity database'!$AU$10)) -> 0 | Q32: =P32*$G$11 ->  | R32: =Q32*$D$33 ->  | S32: =IF(B28=S137,0,$R$32/O147) -> 
A33: =IF(AND(D32>0,D33=""),">","") ->  | C33: No. of urinal bowls
C34: units | D34: Specification | E34: Usage/person/day | F34: Usage factor | G34: Consumption (L/person/day) | O34: Urinal component - all activity areas | P34: Baseline Performance Specification | Q34: Usage/person/day | R34: Usage factor | S34: Baseline Consumption (L/person/day)
B35: Manual/automatic operated pressure flushing valve (all activity areas) | C35: Flush volume (litres) | E35: =IF(B11=R135,R145,VLOOKUP($B$11,'Activity database'!$A:$AN,12,FALSE)) -> Requires building information | F35: =IF(B11=R135,R145,VLOOKUP($B$11,'Activity database'!$A:$AN,28,FALSE)) -> Requires building information | G35: =IF(ISERROR(IF(B11=R135,R145,IF(OR(D35=0,E35=0,F35=0,B28=S137),0,(D35*E35*F35)*(VLOOKUP(B11,'Activity database'!A:BA,7,FALSE))*(D36/(D33+D36+D39))))),R145,IF(B11=R135,R145,IF(OR(D35=0,E35=0,F35=0,B28=S137),0,(D35*E35*F35)*(VLOOKUP(B11,'Activity database'!A:BA,7,FALSE))*(D36/(D33+D36+D39))))) -> Requires building information | H35: =IF(B28=S137,"",O160) -> Note: This consumption total accounts for the ratio of male users for this building type i.e. the ratio of building users who will operate the flush. Where more than one type of urinal flushing control is specified in the building, this consumption figure is adjusted by a ratio of use. the ratio is determined according to the proportion of urinals bowls in the building operated using this type of control. | O35: =B35 -> Manual/automatic operated pressure flushing valve (all activity areas) | P35: ='Activity database'!$AU$12 -> 1 | Q35: =E35 -> Requires building information | R35: =F35 -> Requires building information | S35: =IF(B28=S137,0,IF($D$35="",0,$P$35*$Q$35*$R$35*(VLOOKUP(B11,'Activity database'!$A:$BA,7,FALSE)))*(D36/(D33+D36+D39))) -> 
A36: =IF(AND(D35>0,D36=""),">","") ->  | C36: No. of urinal bowls
C37: units | E37: Usage/person/day | F37: Usage factor | G37: Consumption (L/person/day) | O37: Urinal component - all activity areas | P37: Baseline Performance Specification | Q37: Usage/person/day | R37: Usage factor | S37: Baseline Consumption (L/person/day)
A38: =IF(B28=S137,"",IF(D38=$R$135,">","")) -> > | B38: Waterless urinals (all activity areas) | C38: Flush volume (litres) | D38: Please select | E38: =IF(B11=R135,R145,VLOOKUP($B$11,'Activity database'!$A:$AN,12,FALSE)) -> Requires building information | F38: =IF(B11=R135,R145,VLOOKUP($B$11,'Activity database'!$A:$AN,28,FALSE)) -> Requires building information | G38: =IF(B11=R135,R145,0) -> Requires building information | H38: =IF(OR(B28=S137,B28=S135,D38=Q137),"",IF(AND(D38=Q136,D39>0),O161,IF(OR(D38=S135,D38=Q136),O162))) ->  | O38: =B38 -> Waterless urinals (all activity areas) | P38: ='Activity database'!$AU$12 -> 1 | Q38: =E38 -> Requires building information | R38: =F38 -> Requires building information | S38: =IF(B28=S137,0,IF(OR($D$38="",$D$38=Q135,$D$38=Q137),0,$P$38*$Q$38*$R$38*(VLOOKUP(B11,'Activity database'!$A:$BA,7,FALSE)))*(D39/(D33+D36+D39))) -> 
A39: =IF(AND(D38=Q136,D39=""),">","") ->  | C39: No. of urinal bowls
C41: units | D41: Specification | E41: Usage/person/day | F41: Usage factor | G41: Consumption (L/person/day)
B42: Taps components (personal hygiene) - all activity areas | O42: Taps components (personal hygiene) - all activity areas | P42: Baseline Performance Specification | Q42: Usage/person/day | R42: Usage factor | S42: Baseline Consumption (L/person/day)
B43: ='Activity database'!M3 -> Wash hand basin taps | C43: Flow rate (litres/min) | E43: =IF(B11=R135,R145,VLOOKUP($B$11,'Activity database'!$A:$AN,13,FALSE)) -> Requires building information | F43: =IF(B11=R135,R145,VLOOKUP($B$11,'Activity database'!$A:$AN,29,FALSE)) -> Requires building information | G43: =IF(ISERROR(IF(B11=R135,R145,(D43*E43*F43)*VLOOKUP(B11,'Activity database'!A:AR,44,FALSE))),R145,IF(B11=R135,R145,(D43*E43*F43)*VLOOKUP(B11,'Activity database'!A:AR,44,FALSE))) -> Requires building information | O43: =B43 -> Wash hand basin taps | P43: =IF($D$43="",0,VLOOKUP($O$43,'Activity database'!$AT:$BA,2,FALSE)) -> 0 | Q43: =E43 -> Requires building information | R43: Requires building information | S43: =IF($D$43="",0,(P43*$Q$43*$R$43)*(VLOOKUP($B$11,'Activity database'!$A:$AR,44,FALSE))) -> 0
B44: ='Activity database'!N3 -> Shower use | C44: Flow rate (litres/min) | E44: =IF(B11=R135,R145,VLOOKUP($B$11,'Activity database'!$A:$AN,14,FALSE)) -> Requires building information | F44: =IF(B11=R135,R145,VLOOKUP($B$11,'Activity database'!$A:$AN,30,FALSE)) -> Requires building information | G44: =IF(ISERROR(IF(B11=R135,R145,IF(B44=R135,R145,D44*E44*F44))),R145,IF(B11=R135,R145,IF(B44=R135,R145,D44*E44*F44))) -> Requires building information | O44: Shower use | P44: =IF($D$44="",0,'Activity database'!AU8) -> 0 | Q44: Requires building information | R44: Requires building information | S44: =IF($D$44="",0,P44*$Q$44*$R$44) -> 0
A45: Hide rows: N/A for retail | B45: ='Activity database'!O3 -> Shower use (bath present) | C45: Flow rate (litres/min) | E45: =VLOOKUP($B$11,'Activity database'!$A:$AN,15,FALSE) ->  | F45: =VLOOKUP($B$11,'Activity database'!$A:$AN,31,FALSE) ->  | G45: =IF(E45="N/A",0,D45*E45*F45) ->  | H45: Hide rows: N/A for retail | O45: Shower use (bath present) | P45: =IF($D$45="",0,'Activity database'!AU8) -> 0 | S45: =IF($D$45="",0,P45*$Q$45*$R$45) -> 0
A46: Hide rows: N/A for retail | B46: ='Activity database'!P3 -> Bath use (no shower present) | C46: Capacity to overflow (Litres) | E46: =VLOOKUP($B$11,'Activity database'!$A:$AN,16,FALSE) ->  | F46: =VLOOKUP($B$11,'Activity database'!$A:$AN,32,FALSE) ->  | G46: =IF(E46="n/a",0,((D46*E46*F46)*'Activity database'!AQ4)) ->  | H46: Hide rows: N/A for retail | O46: Bath use (no shower present) | P46: =IF($D$46="",0,'Activity database'!AU9) -> 0 | S46: =IF($D$46="",0,((P46*$Q$46*$R$46)*(VLOOKUP($B$11,'Activity database'!$A:$AR,43,FALSE)))) -> 0
A47: Hide rows: N/A for retail | B47: ='Activity database'!Q3 -> Bath use (shower present) | C47: Capacity to overflow (Litres) | E47: =VLOOKUP($B$11,'Activity database'!$A:$AN,17,FALSE) ->  | F47: =VLOOKUP($B$11,'Activity database'!$A:$AN,33,FALSE) ->  | G47: =IF(E47="n/a",0,((D47*E47*F47)*'Activity database'!AQ4)) ->  | H47: Hide rows: N/A for retail | O47: Bath use (shower present) | P47: =IF($D$47="",0,'Activity database'!AU9) -> 0 | S47: =IF($D$47="",0,((P47*$Q$47*$R$47)*(VLOOKUP($B$11,'Activity database'!$A:$AR,43,FALSE)))) -> 0
B48: ='Activity database'!X3 -> Fixed use - vessel filling | C48: Litres/person/day | D48: - | E48: - | F48: - | G48: =IF(ISERROR(VLOOKUP(B11,'Activity database'!A:BA,24,FALSE)),R145,VLOOKUP(B11,'Activity database'!A:BA,24,FALSE)) -> Requires building information | O48: Fixed use - vessel filling | P48: N/A | Q48: N/A | R48: N/A | S48: =$G$48 -> Requires building information
B49: Tap components (cleaning) - staff kitchenette | O49: Tap components (cleaning) - staff kitchenette
B50: ='Activity database'!R3 -> Kitchen taps - kitchenette | C50: Flow rate (litres/min) | E50: =IF(B11=R135,R145,VLOOKUP($B$20,'Activity database'!$A:$AN,18,FALSE)) -> Requires building information | F50: =VLOOKUP($B$20,'Activity database'!$A:$AN,34,FALSE) -> 0.67 | G50: =IF(ISERROR(IF(B11=R135,R145,(D50*E50*F50)*(VLOOKUP(B11,'Activity database'!A:AR,44,FALSE)))),R145,IF(B11=R135,R145,(D50*E50*F50)*(VLOOKUP(B11,'Activity database'!A:AR,44,FALSE)))) -> Requires building information | O50: =B50 -> Kitchen taps - kitchenette | P50: =IF($D$50="",0,VLOOKUP($O$50,'Activity database'!$AT:$BA,2,FALSE)) -> 0 | Q50: =E50 -> Requires building information | R50: =F50 -> 0.67 | S50: =IF($D$50="",0,(P50*$Q$50*$R$50)*(VLOOKUP($B$11,'Activity database'!$A:$AR,44,FALSE))) -> 0
B51: ='Activity database'!U3 -> Dishwasher | C51: Litres/cycle | E51: =IF(B11=R135,R145,VLOOKUP($B$20,'Activity database'!$A:$AN,21,FALSE)) -> Requires building information | F51: =VLOOKUP($B$20,'Activity database'!$A:$AN,37,FALSE) -> 1 | G51: =IF(ISERROR(IF(B11=R135,R145,D51*E51*F51)),R145,IF(B11=R135,R145,D51*E51*F51)) -> Requires building information | O51: =B51 -> Dishwasher | P51: =IF($D$51="",0,'Activity database'!AU16) -> 0 | Q51: =E51 -> Requires building information | R51: =F51 -> 1 | S51: =P51*$Q$51*$R$51 -> 
B52: Tap components (cleaning and food preparation) - staff canteen food preparation area | O52: Tap components (cleaning and food preparation) - canteen/restaurant
B53: ='Activity database'!S3 -> Kitchen taps - pre-rinse nozzle | C53: Flow rate (litres/min) | E53: - | F53: =VLOOKUP($B$21,'Activity database'!A:BC,35,FALSE) -> 60 | G53: =IF(ISERROR((D53*F53)/O147),R145,((D53*F53)/O147)) -> Requires building information | O53: =B53 -> Kitchen taps - pre-rinse nozzle | P53: =IF($D$53="",0,VLOOKUP($O$53,'Activity database'!$AT:$BA,2,FALSE)) -> 0 | Q53: =E53 -> - | R53: 60 | S53: =IF($D$53="",0,(P53*$R$53)/$O$147) -> 0
B54: ='Activity database'!U3 -> Dishwasher | C54: Litres/rack | E54: - | F54: =VLOOKUP($B$21,'Activity database'!A:BC,37,FALSE) -> 0.248 | G54: =IF(ISERROR((F54*G21*D54)/O147),R145,((F54*G21*D54)/O147)) -> Requires building information | O54: Dishwasher | P54: =IF($D$54="",0,'Activity database'!AU19) -> 0 | Q54: - | R54: 0.248 | S54: =IF($D$54="",0,($R$54*$G$21*P54)/$O$147) -> 0
B55: ='Activity database'!W3 -> Waste disposal unit | C55: Flow rate (litres/min) | E55: - | F55: =VLOOKUP($B$21,'Activity database'!A:BC,39,FALSE) -> 30 | G55: =IF(ISERROR((D55*F55)/O147),R145,((D55*F55)/O147)) -> Requires building information | O55: Waste disposal unit | P55: =IF($D$55="",0,VLOOKUP($O$55,'Activity database'!$AT:$BA,2,FALSE)) -> 0 | Q55: - | R55: 30 | S55: =IF($D$55="",0,(P55*$R$55)/$O$147) -> 0
A56: Hide rows: N/A for retail | B56: ='Activity database'!V3 -> Washing machine | C56: Litres/kg dry load | E56: =VLOOKUP($B$11,'Activity database'!$A:$AN,22,FALSE) ->  | F56: =VLOOKUP($B$11,'Activity database'!$A:$AN,38,FALSE) ->  | G56: =IF(ISERROR(IF(E56="N/A",0,IF(F21="Yes",(D56*E56*F56),0))),R145,IF(E56="N/A",0,IF(F21="Yes",(D56*E56*F56),0))) -> Requires building information | H56: Hide rows: N/A for retail | O56: Washing machine | P56: =IF($D$56="",0,'Activity database'!AU20) -> 0 | S56: =IF($D$56="",0,IF($F$21="Yes",(P56*$Q$56*$R$56))) -> 0
B57: ='Activity database'!Y3 -> Fixed use - food preparation | C57: Litres/person/day | D57: - | E57: - | F57: - | G57: =IF(ISERROR(IF(F21="Yes",(VLOOKUP(B21,'Activity database'!A:BC,25,FALSE)/O147),0)),R145,IF(F21="Yes",(VLOOKUP(B21,'Activity database'!A:BC,25,FALSE)/O147),0)) -> 0 | O57: Fixed use - food preparation | P57: N/A | Q57: =E57 -> - | R57: N/A | S57: =$G$57 -> 0
B58: ='Activity database'!Z3 -> Fixed use - kitchen cleaning | C58: Litres/person/day | D58: - | E58: - | F58: - | G58: =IF(ISERROR(IF(F21="Yes",(VLOOKUP(B21,'Activity database'!A:BC,26,FALSE)/O147),0)),R145,IF(F21="Yes",(VLOOKUP(B21,'Activity database'!A:BC,26,FALSE)/O147),0)) -> 0 | O58: Fixed use - kitchen cleaning | P58: N/A | Q58: =E58 -> - | R58: N/A | S58: =$G$58 -> 0
G60: Microcomponent Consumption (L/person/day) | H60: Note: This total includes the contributions from fixed uses, including where applicable vessel filling, kitchen cleaning and food preparation. Default fixed use totals are included with the calculations to provide a more accurate reflection of the buildings total water consumption. The fixed use totals are not however included in the water consumption total used to determine the assessed buildings percentage improvement and the number of BREEAM credits achieved. The percentage improvement is based only on the consumption of water from uses that can be heavily influenced by the microcomponent specification e.g. WC flushing. | S60: Baseline Consumption (L/person/day)
F61: Total | G61: =IF(OR(G28=R145,AND(F17=R137,F18=R137,F20=R137,F21=R137,F22=R137,F23=R137)),R145,(SUM(G28:G29)+G32+G35+G38+SUM(G43:G48)+SUM(G50:G51)+SUM(G53:G58))) -> Requires building information | R61: Total | S61: =SUM(S28+S29)+S32+S35+S38+SUM(S43:S48)+SUM(S50:S51)+SUM(S53:S58)-S71 -> 
B63: Minimum requirements according to EU taxonomy for sustainable finance
A64: =IF(G64=$R$135,">","") -> > | F64: Do all the installed wash hand basin taps and kitchen taps have a maximum water flow of 6 litres/min? | G64: Please select
A65: =IF(G65=$R$135,">","") -> > | F65: Do all the installed showers have a maximum water flow of 8 litres/min? | G65: Please select
A66: > | F66: Do all WCs, including suites, bowls and flushing cisterns, have a full flush volume of a maximum of 6 litres and a maximum average flush volume of 3,5 litres? | G66: Please select
A67: > | F67: Do all urinals use a maximum of 2 litres/bowl/hour and flushing urinals have a maximum full flush volume of 1 litre? | G67: Please select
F68: Is all the EU taxonomy requirements for sanitary equipment met? | G68: =IF(OR(G64="Please select",G64="No"),"No",IF(OR(G65="Please Select",G65="No"),"No",IF(OR(G66="Please Select",G66="No"),"No",IF(OR(G67="Please Select",G67="No"),"No","Yes")))) -> No
B70: Non potable water yield - greywater system | S70: Total from fixed uses
R71: Total | S71: =S48+S57+S58 -> 
A72: =IF(G72=$R$135,">","") -> > | F72: Has, or will, the greywater system be specified and installed in compliance with BS8525-1:2010 Greywater Systems - Part 1 Code of Practice | G72: Please select
C74: Greywater source (building components) | E74: Greywater collected | F74: Proportion of components collected from (%) | G74: Greywater yield (L/person/day)
B75: =IF(AND($G$72=$R$136,E75=""),">",IF(AND($G$72=$R$136,E75=$R$136,F75=""),">","")) ->  | C75: =B43 -> Wash hand basin taps | G75: =IF(ISERROR(IF(OR(E75=$R$137,E75=""),0,G43*F75)),R145,IF(OR(E75=$R$137,E75=""),0,G43*F75)) -> 0
B76: =IF(AND($G$72=$R$136,E76=""),">",IF(AND($G$72=$R$136,E76=$R$136,F76=""),">","")) ->  | C76: Showers | G76: =IF(ISERROR(IF(OR(E76=$R$137,E76=""),0,(SUM(G44:G45)*F76))),R145,IF(OR(E76=$R$137,E76=""),0,(SUM(G44:G45)*F76))) -> 0
B77: =IF($F$20=$R$137,"",IF(AND($G$72=$R$136,E77=""),">",IF(AND($G$72=$R$136,E77=$R$136,F77=""),">",""))) ->  | C77: =B50 -> Kitchen taps - kitchenette | G77: =IF(ISERROR(IF(OR(E77=$R$137,E77=""),0,G50*F77)),R145,IF(OR(E77=$R$137,E77=""),0,G50*F77)) -> 0
B78: =IF($F$20=$R$137,"",IF(AND($G$72=$R$136,E78=""),">",IF(AND($G$72=$R$136,E78=$R$136,F78=""),">",""))) ->  | C78: Dishwasher - staff kitchenette | G78: =IF(ISERROR(IF(OR(E78=$R$137,E78=""),0,F78*G51)),R145,IF(OR(E78=$R$137,E78=""),0,F78*G51)) -> 0
B79: =IF($F$21=$R$137,"",IF(AND($G$72=$R$136,E79=""),">",IF(AND($G$72=$R$136,E79=$R$136,F79=""),">",""))) ->  | C79: =B53 -> Kitchen taps - pre-rinse nozzle | G79: =IF(ISERROR(IF(OR(E79=$R$137,E79=""),0,G53*F79)),R145,IF(OR(E79=$R$137,E79=""),0,G53*F79)) -> 0
B80: =IF($F$21=$R$137,"",IF(AND($G$72=$R$136,E80=""),">",IF(AND($G$72=$R$136,E80=$R$136,F80=""),">",""))) ->  | C80: Dishwasher - food preparation area | G80: =IF(ISERROR(IF(OR(E80=$R$137,E80=""),0,F80*G54)),R145,(IF(OR(E80=$R$137,E80=""),0,F80*G54))) -> 0
B81: Hide rows: N/A for offices | C81: Bath | G81: =IF(OR(E81=R137,E81="",E46="N/A",E47="N/A"),0,(SUM(G46:G47)*F81)) ->  | H81: Hide rows: N/A for offices
B82: Hide rows: N/A for offices | C82: =B56 -> Washing machine | G82: =IF(OR(E82=R138,E82=""),0,F82*G56) -> 0 | H82: Hide rows: N/A for offices
C83: Greywater source (other components) | D83: Typical greywater yield (litres) | E83: Frequency of yield (days) | F83: Greywater yield (litres/day) | G83: Greywater yield (L/person/day) | H83: =IF(G72=R136,O159,"") -> 
C84: Other source of greywater | F84: =IF(D84="","",D84/E84) ->  | G84: =IF(D84="",0,F84/O147) -> 0
G86: Greywater yield (L/person/day)
F87: Total | G87: =IF(B11=R135,R145,IF(OR(G72=R138,G72=R137),0,SUM(G75:G82)+G84)) -> Requires building information
B89: Non potable water yield - rainwater system
A91: =IF(G91=$R$135,">","") -> > | F91: Has, or will, the rainwater system be specified and installed in compliance with BS EN 16941-1:2018 Rainwater Harvesting Systems - Code of practice | G91: Please select
A93: =IF(AND($G$91=$R$136,G93=$R$135),">","") ->  | F93: How has the storage capacity for the proposed system been calculated? | G93: Please select
B94: Rainwater yield if basic approach:
B95: Collection area (m2) | C95: Rainfall (average mm/yr) | D95: Hydraulic filter efficiency (%) | E95: Yield co-efficient (%) | F95: Annual rainwater yield (Litres) | G95: Rainwater yield (L/person/day)
A96: =IF(AND($G$91=$R$136,$G$93=$T$136,OR(B96="",C96="",D96="",E96="")),">","") ->  | F96: =B96*E96*D96*C96 -> 0 | G96: =IF(ISERROR(IF(OR(G91=R138,G91=R137,G93=T137),0,(F96/365)/O147)),R145,IF(OR(G91=R138,G91=R137,G93=T137),0,(F96/365)/O147)) -> Requires building information
F97: Rainwater yield if detailed:
F98: Daily rainfall collection (litres) | G98: Rainwater yield (L/person/day)
E99: =IF(AND($G$91=$R$136,$G$93=$T$137,F99=""),">","") ->  | G99: =IF(ISERROR(IF(OR(G93=T136,G91=R138,G91=R137),0,(F99/O147))),R145,IF(OR(G93=T136,G91=R138,G91=R137),0,(F99/O147))) -> Requires building information
B101: Non potable water demand - building components
G103: Greywater and/or rainwater yield (L/person/day)
F104: Total | G104: =IF(ISERROR(G99+G96+G87),R145,G99+G96+G87) -> Requires building information
D106: Component | E106: Greywater and/or rainwater utilised for component | F106: Proportion of components using greywater and/or rainwater yield (%) | G106: Maximum permissible demand (L/person/day)
C107: =IF(AND(OR($G$72=$R$135,$G$72=$R$137,$G$72=$R$138),OR($G$91=$R$135,$G$91=$R$137,$G$91=$R$138)),"",IF(E107=$R$137,"",IF(OR(E107="",F107=""),">",""))) ->  | D107: WC flushing | G107: =IF(E107="no",0,F107*SUM(G28:G29)) -> 0
C108: =IF(B28=S137,"",IF(AND(OR($G$72=$R$135,$G$72=$R$137,$G$72=$R$138),OR($G$91=$R$135,$G$91=$R$137,$G$91=$R$138)),"",IF(E108=$R$137,"",IF(OR(E108="",F108=""),">","")))) ->  | D108: Urinal flushing | G108: =IF(OR(E108="no",B28=S137),0,F108*SUM(G32:G38)) -> 0
G109: Demand met by yield (L/person/day)
F110: Total | G110: =IF((SUM(G107:G108))>G104,G104,SUM(G107:G108)) -> 0
D111: Other permissible components
C112: =IF(AND(OR($G$72=$R$135,$G$72=$R$137,$G$72=$R$138),OR($G$91=$R$135,$G$91=$R$137,$G$91=$R$138)),"",IF(G112=$R$135,">","")) ->  | F112: Are there other permissible components present which demand greywater and/or rainwater yield? | G112: Please select
G113: Maximum permissible demand (L/day)
G114: =IF(ISERROR(IF(AND(G112="yes",G110>G104),0,(G104-G110)*O147)),R145,IF(AND(G112="yes",G110>G104),0,(G104-G110)*O147)) -> Requires building information
C115: =IF(AND(OR($G$72=$R$135,$G$72=$R$137,$G$72=$R$138),OR($G$91=$R$135,$G$91=$R$137,$G$91=$R$138)),"",IF(AND(G112=$R$136,G115=""),">","")) ->  | F115: Proportion of maximum permissible demand utilised by other permissible components (%)
G116: Demand met by yield (L/person/day)
F117: Total | G117: =IF(ISERROR((G115*G114)/O147),R145,(G115*G114)/O147) -> Requires building information
G119: Greywater and/or rainwater demand met by yield (L/person/day)
F120: Total | G120: =IF(ISERROR(G110+G117),R145,G110+G117) -> Requires building information
B122: Water consumption calculation results
F124: Litres/person/day | G124: m3/person/yr | H124: =IF(G12=R137,O163,"") -> 
E125: Water consumption - modelled baseline performance benchmark (excludes fixed uses) | F125: =IF(ISERROR(S61),R145,S61) -> Requires building information | G125: =IF(ISERROR((F125/1000)*$F$11),R145,(F125/1000)*$F$11) -> Requires building information
E127: Microcomponent water consumption - modelled performance (excludes fixed uses) | F127: =IF(ISERROR(G61-S71),R145,G61-S71) -> Requires building information | G127: =IF(ISERROR((F127/1000)*$F$11),R145,(F127/1000)*$F$11) -> Requires building information | O127: Greywater/rainwater data check
O128: =1-(F127-F129)/F125 ->  | P128: % actual improvement
E129: Modelled water demand met via greywater and rainwater sources | F129: =IF(ISERROR(G120),R145,G120) -> Requires building information | G129: =IF(ISERROR((F129/1000)*$F$11),R145,(F129/1000)*$F$11) -> Requires building information
O130: =VLOOKUP(O128,'Activity database'!BC4:BD9,2,TRUE) ->  | P130: Credits achieved
E131: If greywater/rainwater systems specified has the minimum % efficiency improvement for component specifications been met | F131: =IF(ISERROR(IF(AND((OR(G91=R138,G91=R137)),((OR(G72=R138,G72=R137)))),R138,IF(OR(O130="1 credit",O130="2 credits",O130="3 credits"),R143,IF(OR(O130="4 credits",O130="5 credits"),(IF((1-(F127/F125))<0.25,"No","Yes")))))),R145,IF(AND((OR(G91=R138,G91=R137)),((OR(G72=R138,G72=R137)))),R138,IF(OR(O130="1 credit",O130="2 credits",O130="3 credits"),R143,IF(OR(O130="4 credits",O130="5 credits"),(IF((1-(F127/F125))<0.25,"No","Yes")))))) -> Requires building information
E133: Net modelled water consumption (excludes fixed uses) | F133: =IF(ISERROR(IF(OR(F131="Yes",F131=R138),F127-F129,(F127-((1-(F127/F125))*F129)))),R145,IF(OR(F131="Yes",F131=R138),F127-F129,(F127-((1-(F127/F125))*F129)))) -> Requires building information | G133: =IF(ISERROR((F133/1000)*$F$11),R145,((F133/1000)*$F$11)) -> Requires building information
E135: Percentage improvement | F135: =IF(OR(F125=R145,F127=R145,F129=R145,F131=R145),R145,(ROUNDDOWN(IF(OR(F131="yes",F131=R143,F131=R138),O128,(IF(F131="No",1-((F127-(F129*(1-(F127/F125))))/F125)))),4))) -> Requires building information | Q135: Please select | R135: Please select | S135: Please select | T135: Please select | U135: 0
O136: Default occupancy rate - customers | P136: Default occupancy rate - staff | Q136: Waterless urinals - specified | R136: Yes | S136: ='Activity database'!I3 -> WC - male (urinals installed) | T136: BS EN 16941-1 'basic approach' | U136: 0.01
E137: Total Wat 01 BREEAM credits achieved, before checking minimum requirements according to EU taxonomy for sustainable finance. | F137: =IF(F135<0,'Activity database'!BD4,(IF(ISERROR(VLOOKUP(F135,'Activity database'!BC4:BD9,2,TRUE)),R145,VLOOKUP(F135,'Activity database'!BC4:BD9,2,TRUE)))) -> Requires building information | N137: =B17 -> Retail - sales areas for display of bulky items | O137: =IF(G12=R137,0,IF(F17="Yes",VLOOKUP(B17,'Activity database'!A:BC,3,FALSE)*G17*2*0.4*VLOOKUP($B$11,'Activity database'!$A:$AR,5,FALSE),0)) -> 0 | P137: =IF(F17="Yes",0.013*G17,0) -> 0 | Q137: Waterless urinals - not specified | R137: No | S137: ='Activity database'!J3 -> WC - male (no urinals installed) | T137: BS EN 16941-1 'detailed approach' | U137: 0.02
N138: =B18 -> Retail - sales areas for display of non bulky items and/or customer service area. | O138: =IF(G12=R137,0,IF(F18="Yes",VLOOKUP(B18,'Activity database'!A:BC,3,FALSE)*G18*2*0.4*VLOOKUP($B$11,'Activity database'!$A:$AR,5,FALSE),0)) -> 0 | P138: =IF(F18="Yes",0.059*G18,0) -> 0 | R138: System not specified | U138: 0.03
E139: Total Wat 01 BREEAM credits achieved | F139: =IF(F137="Requires building information","Requires building information",IF(G68="Yes",F137,IF(F137>="1 credit","1 credit","0 credits"))) -> Requires building information
E141: Total Wat 01 BREEAM Exemplary credits achieved | F141: =IF(F135=R145,R145,IF(F135>='Activity database'!BC10,"1 innovation credit achieved","Exemplary level not achieved")) -> Requires building information | N141: =B19 -> Retail - concourse/shopping mall | O141: =IF(G12=R137,0,IF(F19="Yes",VLOOKUP(B19,'Activity database'!A:BC,3,FALSE)*G19,0)) -> 0 | P141: - | S141: Please select | U141: 0.04
N142: =B20 -> Retail - Staff office area and staffroom | O142: - | P142: =IF(F20="Yes",VLOOKUP(B20,'Activity database'!A:BC,3,FALSE)*G20,0) -> 0 | S142: ='Activity database'!A31 -> Retail - Shop / retail unit(s) / retail warehouse | U142: 0.05
E143: Key performance indicator - use of freshwater resource (includes fixed uses) | F143: =IF(ISERROR(F127+S71-F129),R145,F127+S71-F129) -> Requires building information | G143: =IF(ISERROR((F143/1000)*$F$11),R145,(F143/1000)*$F$11) -> Requires building information | N143: =B21 -> Retail - Staff canteen dining area | O143: - | P143: =IF(F21="Yes",VLOOKUP(B21,'Activity database'!A:BC,3,FALSE)*G21,0) -> 0 | R143: Not applicable | S143: ='Activity database'!A34 -> Retail - Supermarket | U143: 0.06
N144: =B22 -> Retail - Goods-in and storage area | O144: - | P144: =IF(F22="Yes",VLOOKUP(B22,'Activity database'!A:BC,3,FALSE)*G22,0) -> 0 | S144: ='Activity database'!A37 -> Retail - Service provider | U144: 0.07
N145: =B23 -> Retail - Workshop | O145: - | P145: =IF(F23="Yes",VLOOKUP(B23,'Activity database'!A:BC,3,FALSE)*G23,0) -> 0 | R145: Requires building information | S145: ='Activity database'!A40 -> Retail - Shopping centre/complex | U145: 0.08
N146: Total | O146: =IF(G12=R137,0,SUM(O137:O145)) -> 0 | P146: =SUM(P137:P145) -> 0 | U146: 0.09
N147: Total default occupancy | O147: =SUM(O146:P146) -> 0 | U147: 0.1
U148: 0.11
U149: 0.12
U150: 0.13
U151: 0.14
U152: 0.15
U153: 0.16
U154: 0.17
U155: 0.18
U156: 0.19
U157: 0.2
U158: 0.21
O159: Note: If greywater is collected from a component/source not accounted for above i.e. their consumption is not estimated, then the amount of greywater collected can be added here so that it may be accounted for. This can include wastewater from active hygiene flushing, i.e. a regular hygiene flushing programme to minimize poor water quality in a potable cold or hot water system. | U159: 0.22
O160: Note: This consumption total accounts for the ratio of male users for this building type i.e. the ratio of building users who will operate the flush. Where more than one type of urinal flushing control is specified in the building, this consumption figure is adjusted by a ratio of use. the ratio is determined according to the proportion of urinals bowls in the building operated using this type of control. | U160: 0.23
O161: Note: Where waterless urinals are specified in the assessed building, for the purpose of the baseline benchmark standard 1.5 litre flush urinals are assumed. Where waterless urinals and another type of urinal flushing control is specified in the building, the baseline consumption figure calculated using a 1.5 litre default flush is adjusted by a ratio of use. The ratio is determined according to the proportion of urinals bowls in the building that are waterless. | U161: 0.24
O162: Note: Please select the relevant option for waterless urinals specification opposite. | U162: 0.25
O163: Note: The consumption figures calculated here are based on water consumption for staff only (as the building does not contain facilities for visiting customers). | U163: 0.26
O164: Note: A default occupancy total for visiting customers is not calculated if facilities are not provided for this building user. | U164: 0.27
O165: Note: If this retail development contains one of or a combination of restaurants/cafes (for customer use), gym or cinema then please ensure you undertake separate water consumption calculations for such building functions using the appropriate building type calculator. You must then determine the number of BREEAM credits achieved for the development as a whole in accordance with the guidance given in the compliance note: "Building is a mixture of different types", contained within the Wat 01 issue in the BREEAM New Construction technical guide. | U165: 0.28
U166: 0.29
U167: 0.3
U168: 0.31
U169: 0.32
U170: 0.33
U171: 0.34
U172: 0.35
U173: 0.36
U174: 0.37
U175: 0.38
U176: 0.39
U177: 0.4
U178: 0.41
U179: 0.42
U180: 0.43
U181: 0.44
U182: 0.45
U183: 0.46
U184: 0.47
U185: 0.48
U186: 0.49
U187: 0.5
U188: 0.51
U189: 0.52
U190: 0.53
U191: 0.54
U192: 0.55
U193: 0.56
U194: 0.57
U195: 0.58
U196: 0.59
U197: 0.6
U198: 0.61
U199: 0.62
U200: 0.63
U201: 0.64
U202: 0.65
U203: 0.66
U204: 0.67
U205: 0.68
U206: 0.69
U207: 0.7
U208: 0.71
U209: 0.72
U210: 0.73
U211: 0.74
U212: 0.75
U213: 0.76
U214: 0.77
U215: 0.78
U216: 0.79
U217: 0.8
U218: 0.81
U219: 0.82
U220: 0.83
U221: 0.84
U222: 0.85
U223: 0.86
U224: 0.87
U225: 0.88
U226: 0.89
U227: 0.9
U228: 0.91
... 9 more rows

Sheet Industrial calculator (hidden)
B2: BREEAM-NOR v6.1 Wat 01 Water consumption: Water efficiency calculator for new non domestic industrial buildings
B4: Building details
B6: Building name | C6: ='User Instructions'!D8:F8 -> 
B8: BRE assessment reference no. | C8: ='User Instructions'!D10:F10 -> 
B10: Building type | C10: Description of building type | E10: Default occupancy | F10: Default annual days/operation | G10: Default daily hours of operation
A11: =IF(B11=$Q$136,">","") -> > | B11: Please select | C11: =VLOOKUP(B11,'Activity database'!A:B,2,FALSE) ->  | E11: =IF(ISERROR(O144),Q144,IF(O144=0,Q144,O144)) -> Requires building information | F11: =VLOOKUP(B11,'Activity database'!A:AN,4,FALSE) ->  | G11: =VLOOKUP(B11,'Activity database'!A:AN,5,FALSE) -> 
A12: =IF(AND(B11=R142,G12=$Q$136),">","") ->  | F12: On average how many shifts are there likely to be during a single 24 hour period of operation? | G12: Please select | H12: =IF(Ind_act=R142,N157,"") -> 
B13: Main building activity areas | C13: Description of activity area | F13: Activity area present in building? | G13: Net Floor Area (m2) | H13: ='Office calculator'!H13:O14 -> Note: the activity areas defined opposite are used to estimate the assessed building's default occupancy and therefore water consumption benchmark. These areas are chosen as they are deemed, by in large, to represent the permanently occupied spaces in the building and therefore reflect the number of building occupants/users. As a result it is not necessary to include all areas of the building that may be present, as the areas not defined are assumed to be used by the occupants of the building already accounted for by those areas that are listed.
A14: =IF(F14=$Q$136,">",IF(AND(F14=$Q$137,G14=""),">","")) -> > | B14: ='Activity database'!A11 -> Industrial - process area | C14: =VLOOKUP(B14,'Activity database'!A:B,2,FALSE) -> Main process based operational/manufacturing/workshop area | F14: Please select
A15: =IF(F15=$Q$136,">",IF(AND(F15=$Q$137,G15=""),">","")) -> > | B15: ='Activity database'!A12 -> Industrial - Laboratory area | C15: =VLOOKUP(B15,'Activity database'!A:B,2,FALSE) -> Large or small category 1 laboratory area. | F15: Please select
A16: =IF(F16=$Q$136,">",IF(AND(F16=$Q$137,G16=""),">","")) -> > | B16: ='Activity database'!A13 -> Industrial - Warehouse storage | C16: =VLOOKUP(B16,'Activity database'!A:B,2,FALSE) -> Permanently or intermittently occupied warehouse storage areas. | F16: Please select
A17: =IF(F17=$Q$136,">",IF(AND(F17=$Q$137,G17=""),">","")) -> > | B17: ='Activity database'!A14 -> Industrial - Office areas | C17: =VLOOKUP(B17,'Activity database'!A:B,2,FALSE) -> Cellular or open plan office space, including staff kitchen where present/adjacent and reception areas. Exlcude meeting rooms, visitor waiting or circulation areas. | F17: Please select
A18: =IF(F18=$Q$136,">",IF(AND(F18=$Q$137,G18=""),">","")) -> > | B18: ='Activity database'!A15 -> Industrial - Staff canteen dining area | C18: =VLOOKUP(B18,'Activity database'!A:B,2,FALSE) -> Seated dining areas that accompany a permanently staffed kitchen preparing food for consumption on the premises (excludes small un-staffed kitchen's used by office staff to re-heat food, make tea etc.) | F18: Please select | H18: Note: Only select this activity if there is a permanently staffed kitchen that will prepare hot and cold meals for the building's staff (and visitors). Enter the area of the seated dining area only (not kitchen/servery areas), this is used to estimate the number of covers per day for the restaurant and subsequently the number of kitchen staff and water consumption from food preparation activity area.
A19: =IF(F19=$Q$136,">","") -> > | B19: ='Activity database'!A16 -> Industrial - Fitness suite/gym (with changing facility and showers) | C19: =VLOOKUP(B19,'Activity database'!A:B,2,FALSE) -> A fitness suite or gym that is part of the office building/development and used by the building's employees only. The gym will have its own changing facility with showers. | F19: Please select | H19: =IF(F19=Q137,"Note: Net floor area is not required for this activity. Its inclusion (or otherwise) simply determines the usage/person/day factor and therefore resulting water consumption from the showers.","") -> 
F20: Will the staff restaurant operate for a 24hr period? | G20: Please select | H20: =IF(AND(Ind_act=R143,F18=Q137,G20=Q137),"Warning: Please delete the contents of this cell to ensure accurate calculation.","") -> 
B22: Water consumption - building microcomponent
B24: WC component - all activity areas | C24: units | D24: Specification | E24: Usage/person/day | F24: Usage factor | G24: Consumption (L/person/day) | N24: WC component - all activity areas | O24: Baseline Performance Specification | P24: Usage/person/day | Q24: Usage factor | R24: Baseline Consumption (L/person/day)
A25: =IF(B25=$Q$136,">","") -> > | B25: Please select | C25: Effective flush volume (Litres) | E25: =IF(Ind_act=Q136,"",IF(B25=R136,"",IF(B25=R137,VLOOKUP($B$11,'Activity database'!$A:$AN,9,FALSE),IF(B25=R138,VLOOKUP($B$11,'Activity database'!$A:$BM,10,FALSE))))) ->  | F25: =IF(Ind_act=Q136,"",VLOOKUP($B$11,'Activity database'!$A:$BM,27,FALSE)) ->  | G25: =IF(ISERROR((D25*E25*F25*(VLOOKUP(B11,'Activity database'!A:BA,7,FALSE)))),Q144,(D25*E25*F25*(VLOOKUP(B11,'Activity database'!A:BA,7,FALSE)))) -> Requires building information | H25: =IF(B25=R136,"Note: please select the relevant option for WC component opposite","") -> Note: please select the relevant option for WC component opposite | N25: =B25 -> Please select | O25: =IF($D$25="",0,VLOOKUP($N$25,'Activity database'!$AT:$BA,2,FALSE)) -> 0 | P25: =E25 ->  | Q25: =F25 ->  | R25: =IF($D$25="",0,O25*$P$25*$Q$25*(VLOOKUP($B$11,'Activity database'!$A:$BA,7,FALSE))) -> 0
B26: ='Activity database'!K3 -> WC - female | C26: Effective flush volume (Litres) | E26: =IF(Ind_act=Q136,"",VLOOKUP($B$11,'Activity database'!$A:$BM,11,FALSE)) ->  | F26: =IF(Ind_act=Q136,"",VLOOKUP($B$11,'Activity database'!$A:$BM,27,FALSE)) ->  | G26: =IF(Ind_act=Q136,Q144,D26*E26*F26*(VLOOKUP(B11,'Activity database'!A:BA,8,FALSE))) -> Requires building information | H26: Note: Where the WC facilities are non-gender specific, please still enter the WC specification against both WC male and WC female categories i.e. if there are two WCs with a 6 litre effective flush, then enter 6 litres against both male and female categories. The calculation will not double count water consumption in this instance as the consumption figure calculated for each WC component is adjusted by the ratio of male to female users for this building type. | N26: =B26 -> WC - female | O26: =IF($D$26="",0,VLOOKUP($N$26,'Activity database'!$AT:$BA,2,FALSE)) -> 0 | P26: =E26 ->  | Q26: =F26 ->  | R26: =IF($D$26="",0,O26*$P$26*$Q$26*(VLOOKUP($B$11,'Activity database'!$A:$BA,8,FALSE))) -> 0
B28: Urinal component - all activity areas | C28: units | D28: Specification | E28: No. of cisterns | F28: Flushing frequency (flushes/hour) | G28: Consumption (L/person/day) | N28: Urinal component - all activity areas | O28: Baseline Performance Specification | P28: Urinal consumption (L/bowl/day) | Q28: Urinal consumption (L/day) | R28: Baseline Consumption (L/person/day)
A29: =IF(AND(D29>0,OR(E29="",F29="")),">","") ->  | B29: Automatically operated flushing cistern | C29: Cistern capacity (Litres) | E29: 1 | F29: 1 | G29: =IF(Ind_act=Q136,Q144,IF(ISERROR(IF(OR(D29=0,E29=0,F29=0,B25=R138),0,(D29*E29*F29*G11)/O144)),Q144,IF(OR(D29=0,E29=0,F29=0,B25=R138),0,(D29*E29*F29*G11)/O144))) -> Requires building information | N29: =B29 -> Automatically operated flushing cistern | O29: =IF($D$29=0,0,IF($D$30=1,'Activity database'!$AU$11,'Activity database'!$AU$10)) -> 0 | P29: =O29*$G$11 ->  | Q29: =P29*$D$30 ->  | R29: =IF(B25=R138,0,$Q$29/O144) -> 
A30: =IF(AND(D29>0,D30=""),">","") ->  | C30: No. of urinal bowls
C31: units | D31: Specification | E31: Usage/person/day | F31: Usage factor | G31: Consumption (L/person/day) | N31: Urinal component - all activity areas | O31: Baseline Performance Specification | P31: Usage/person/day | Q31: Usage factor | R31: Baseline Consumption (L/person/day)
B32: Manual/automatic operated pressure flushing valve (all activity areas) | C32: Flush volume (litres) | E32: =IF(Ind_act=Q136,"",VLOOKUP($B$11,'Activity database'!$A:$AN,12,FALSE)) ->  | F32: =IF(Ind_act=Q136,"",VLOOKUP($B$11,'Activity database'!$A:$AN,28,FALSE)) ->  | G32: =IF(Ind_act=Q136,Q144,IF(OR(D32=0,E32=0,F32=0,B25=R138),0,(D32*E32*F32)*(VLOOKUP(B11,'Activity database'!A:BA,7,FALSE))*(D33/(D30+D33+D36)))) -> Requires building information | H32: =IF(B25=R138,"",N156) -> Note: This consumption total accounts for the ratio of male users for this building type i.e. the ratio of building users who will operate the flush. Where more than one type of urinal flushing control is specified in the building, this consumption figure is adjusted by a ratio of use. the ratio is determined according to the proportion of urinals bowls in the building operated using this type of control. | N32: =B32 -> Manual/automatic operated pressure flushing valve (all activity areas) | O32: ='Activity database'!$AU$12 -> 1 | P32: =E32 ->  | Q32: =F32 ->  | R32: =IF(B25=R138,0,IF($D$32="",0,$O$32*$P$32*$Q$32*(VLOOKUP(B11,'Activity database'!$A:$BA,7,FALSE)))*(D33/(D30+D33+D36))) -> 
A33: =IF(AND(D32>0,D33=""),">","") ->  | C33: No. of urinal bowls
C34: units | D34: Specification | E34: Usage/person/day | F34: Usage factor | G34: Consumption (L/person/day) | N34: Urinal component - all activity areas | O34: Baseline Performance Specification | P34: Usage/person/day | Q34: Usage factor | R34: Baseline Consumption (L/person/day)
A35: =IF(B25=R138,"",IF(D35=$Q$136,">","")) -> > | B35: Waterless urinals (all activity areas) | C35: Flush volume (litres) | D35: Please select | E35: =IF(Ind_act=Q136,"",VLOOKUP($B$11,'Activity database'!$A:$AN,12,FALSE)) ->  | F35: =IF(Ind_act=Q136,"",VLOOKUP($B$11,'Activity database'!$A:$AN,28,FALSE)) ->  | G35: =IF(Ind_act=Q136,Q144,0) -> Requires building information | H35: =IF(OR(B25=R138,B25=R136,D35=P138),"",IF(AND(D35=P137,D36>0),N158,IF(OR(D35=R136,D35=P137),N159))) ->  | N35: =B35 -> Waterless urinals (all activity areas) | O35: ='Activity database'!$AU$12 -> 1 | P35: =E35 ->  | Q35: =F35 ->  | R35: =IF(B25=R138,0,IF(OR($D$35="",$D$35=P136,$D$35=P138),0,$O$35*$P$35*$Q$35*(VLOOKUP(B11,'Activity database'!$A:$BA,7,FALSE)))*(D36/(D30+D33+D36))) -> 
A36: =IF(AND(D35=P137,D36=""),">","") ->  | C36: No. of urinal bowls
C38: Units | D38: Specification | E38: Usage/person/day | F38: Usage factor | G38: Consumption (L/person/day)
B39: Taps components (personal hygiene) - all activity areas | N39: Taps components (personal hygiene) - all activity areas | O39: Baseline Performance Specification | P39: Usage/person/day | Q39: Usage factor | R39: Baseline Consumption (L/person/day)
B40: ='Activity database'!M3 -> Wash hand basin taps | C40: Flow rate (litres/min) | E40: =IF(Ind_act=Q136,"",VLOOKUP($B$11,'Activity database'!$A:$AN,13,FALSE)) ->  | F40: =IF(Ind_act=Q136,"",VLOOKUP($B$11,'Activity database'!$A:$AN,29,FALSE)) ->  | G40: =IF(Ind_act=Q136,Q144,(D40*E40*F40)*VLOOKUP(B11,'Activity database'!A:AR,44,FALSE)) -> Requires building information | N40: =B40 -> Wash hand basin taps | O40: =IF($D$40="",0,VLOOKUP($N$40,'Activity database'!$AT:$BA,2,FALSE)) -> 0 | P40: =E40 ->  | R40: =IF($D$40="",0,(O40*$P$40*$Q$40)*(VLOOKUP($B$11,'Activity database'!$A:$AR,44,FALSE))) -> 0
B41: ='Activity database'!N3 -> Shower use | C41: Flow rate (litres/min) | E41: =IF(F19="no",VLOOKUP($B$11,'Activity database'!$A:$AN,14,FALSE),VLOOKUP(B19,'Activity database'!A:BC,14,FALSE)) -> 0.154 | F41: =IF(Ind_act=Q136,"",VLOOKUP($B$11,'Activity database'!$A:$AN,30,FALSE)) ->  | G41: =IF(Ind_act=Q136,Q144,D41*E41*F41) -> Requires building information | N41: Shower use | O41: =IF($D$41="",0,'Activity database'!AU8) -> 0 | P41: 0.154 | R41: =IF($D$41="",0,O41*$P$41*$Q$41) -> 0
A42: Hide rows: N/A for offices | B42: ='Activity database'!O3 -> Shower use (bath present) | C42: Flow rate (litres/min) | E42: =VLOOKUP($B$11,'Activity database'!$A:$AN,15,FALSE) ->  | F42: =VLOOKUP($B$11,'Activity database'!$A:$AN,31,FALSE) ->  | G42: =IF(E42="N/A",0,D42*E42*F42) ->  | H42: Hide rows: N/A for offices | N42: Shower use (bath present) | O42: =IF($D$42="",0,'Activity database'!AU8) -> 0 | R42: =IF($D$42="",0,O42*$P$42*$Q$42) -> 0
A43: Hide rows: N/A for offices | B43: ='Activity database'!P3 -> Bath use (no shower present) | C43: Capacity to overflow (Litres) | E43: =VLOOKUP($B$11,'Activity database'!$A:$AN,16,FALSE) ->  | F43: =VLOOKUP($B$11,'Activity database'!$A:$AN,32,FALSE) ->  | G43: =IF(E43="n/a",0,((D43*E43*F43)*'Activity database'!AQ4)) ->  | H43: Hide rows: N/A for offices | N43: Bath use (no shower present) | O43: =IF($D$43="",0,'Activity database'!AU9) -> 0 | R43: =IF($D$43="",0,((O43*$P$43*$Q$43)*(VLOOKUP($B$11,'Activity database'!$A:$AR,43,FALSE)))) -> 0
A44: Hide rows: N/A for offices | B44: ='Activity database'!Q3 -> Bath use (shower present) | C44: Capacity to overflow (Litres) | E44: =VLOOKUP($B$11,'Activity database'!$A:$AN,17,FALSE) ->  | F44: =VLOOKUP($B$11,'Activity database'!$A:$AN,33,FALSE) ->  | G44: =IF(E44="n/a",0,((D44*E44*F44)*'Activity database'!AQ4)) ->  | H44: Hide rows: N/A for offices | N44: Bath use (shower present) | O44: =IF($D$44="",0,'Activity database'!AU9) -> 0 | R44: =IF($D$44="",0,((O44*$P$44*$Q$44)*(VLOOKUP($B$11,'Activity database'!$A:$AR,43,FALSE)))) -> 0
B45: ='Activity database'!X3 -> Fixed use - vessel filling | C45: Litres/person/day | D45: - | E45: - | F45: - | G45: =IF(Ind_act=Q136,Q144,IF(F19="yes",VLOOKUP(B11,'Activity database'!A:BA,24,FALSE)+VLOOKUP(B19,'Activity database'!A:BA,24,FALSE),VLOOKUP(B11,'Activity database'!A:BA,24,FALSE))) -> Requires building information | N45: Fixed use - vessel filling | O45: N/A | P45: N/A | Q45: N/A | R45: =$G$45 -> Requires building information
B46: Tap components (cleaning) - staff kitchenette | N46: Tap components (cleaning) - staff kitchenette
B47: ='Activity database'!R3 -> Kitchen taps - kitchenette | C47: Flow rate (litres/min) | E47: =VLOOKUP($B$17,'Activity database'!$A:$AN,18,FALSE) -> 1 | F47: =VLOOKUP($B$17,'Activity database'!$A:$AN,34,FALSE) -> 0.67 | G47: =IF(Ind_act=Q136,Q144,(D47*E47*F47)*(VLOOKUP(B11,'Activity database'!A:AR,44,FALSE))) -> Requires building information | N47: =B47 -> Kitchen taps - kitchenette | O47: =IF($D$47="",0,VLOOKUP($N$47,'Activity database'!$AT:$BA,2,FALSE)) -> 0 | P47: =E47 -> 1 | Q47: =F47 -> 0.67 | R47: =IF($D$47="",0,(O47*$P$47*$Q$47)*(VLOOKUP($B$11,'Activity database'!$A:$AR,44,FALSE))) -> 0
B48: ='Activity database'!U3 -> Dishwasher | C48: Litres/cycle | E48: =VLOOKUP($B$17,'Activity database'!$A:$AN,21,FALSE) -> 0.04 | F48: =VLOOKUP($B$17,'Activity database'!$A:$AN,37,FALSE) -> 1 | G48: =IF(Ind_act=Q136,Q144,D48*E48*F48) -> Requires building information | N48: =B48 -> Dishwasher | O48: =IF($D$48="",0,'Activity database'!AU16) -> 0 | P48: =E48 -> 0.04 | Q48: =F48 -> 1 | R48: =O48*$P$48*$Q$48 -> 0
B49: Tap components (cleaning and food preparation) - staff canteen food preparation area | N49: Tap components (cleaning and food preparation) - canteen/restaurant
B50: ='Activity database'!S3 -> Kitchen taps - pre-rinse nozzle | C50: Flow rate (litres/min) | E50: - | F50: =VLOOKUP($B$18,'Activity database'!A:BC,35,FALSE) -> 60 | G50: =IF(ISERROR((D50*F50)/O144),Q144,((D50*F50)/O144)) -> Requires building information | N50: =B50 -> Kitchen taps - pre-rinse nozzle | O50: =IF($D$50="",0,VLOOKUP($N$50,'Activity database'!$AT:$BA,2,FALSE)) -> 0 | P50: =E50 -> - | Q50: 60 | R50: =IF($D$50="",0,(O50*$Q$50)/$O$144) -> 0
B51: ='Activity database'!U3 -> Dishwasher | C51: Litres/rack | E51: - | F51: =VLOOKUP($B$18,'Activity database'!A:BC,37,FALSE) -> 0.201 | G51: =IF(ISERROR((F51*G18*D51)/O144),Q144,((F51*G18*D51)/O144)) -> Requires building information | N51: Dishwasher | O51: =IF($D$51="",0,'Activity database'!AU19) -> 0 | P51: - | Q51: 0.201 | R51: =IF($D$51="",0,($Q$51*$G$18*O51)/$O$144) -> 0
B52: ='Activity database'!W3 -> Waste disposal unit | C52: Flow rate (litres/min) | E52: - | F52: =VLOOKUP($B$18,'Activity database'!A:BC,39,FALSE) -> 30 | G52: =IF(ISERROR((D52*F52)/O144),Q144,((D52*F52)/O144)) -> Requires building information | N52: Waste disposal unit | O52: =IF($D$52="",0,VLOOKUP($N$52,'Activity database'!$AT:$BA,2,FALSE)) -> 0 | P52: - | Q52: 30 | R52: =IF($D$52="",0,(O52*$Q$52)/$O$144) -> 0
A53: N/A for Industrial | B53: ='Activity database'!V3 -> Washing machine | C53: Litres/kg dry load | E53: =VLOOKUP($B$11,'Activity database'!$A:$AN,22,FALSE) ->  | F53: =VLOOKUP($B$11,'Activity database'!$A:$AN,38,FALSE) ->  | G53: =IF(ISERROR(IF(E53="N/A",0,IF(F18="Yes",(D53*E53*F53),0))),Q144,IF(E53="N/A",0,IF(F18="Yes",(D53*E53*F53),0))) -> Requires building information | H53: N/A for Industrial | N53: Washing machine | O53: =IF($D$53="",0,'Activity database'!AU20) -> 0 | R53: =IF($D$53="",0,IF($F$18="Yes",(O53*$P$53*$Q$53))) -> 0
B54: ='Activity database'!Y3 -> Fixed use - food preparation | C54: Litres/person/day | D54: - | E54: - | F54: - | G54: =IF(Ind_act=Q136,Q144,IF(ISERROR(IF(F18="Yes",(VLOOKUP(B18,'Activity database'!A:BC,25,FALSE)/O144),0)),Q144,IF(F18="Yes",(VLOOKUP(B18,'Activity database'!A:BC,25,FALSE)/O144),0))) -> Requires building information | N54: Fixed use - food preparation | O54: N/A | P54: =E54 -> - | Q54: N/A | R54: =$G$54 -> Requires building information
B55: ='Activity database'!Z3 -> Fixed use - kitchen cleaning | C55: Litres/person/day | D55: - | E55: - | F55: - | G55: =IF(Ind_act=Q136,Q144,IF(ISERROR(IF(F18="Yes",(VLOOKUP(B18,'Activity database'!A:BC,26,FALSE)/O144),0)),Q144,IF(F18="Yes",(VLOOKUP(B18,'Activity database'!A:BC,26,FALSE)/O144),0))) -> Requires building information | N55: Fixed use - kitchen cleaning | O55: N/A | P55: =E55 -> - | Q55: N/A | R55: =$G$55 -> Requires building information
G57: Microcomponent consumption (L/person/day) | H57: Note: This total includes the contributions from fixed uses, including where applicable vessel filling, kitchen cleaning and food preparation. Default fixed use totals are included with the calculations to provide a more accurate reflection of the buildings total water consumption. The fixed use totals are not however included in the water consumption total used to determine the assessed buildings percentage improvement and the number of BREEAM credits achieved. The percentage improvement is based only on the consumption of water from uses that can be heavily influenced by the microcomponent specification e.g. WC flushing. | R57: Baseline Consumption (L/person/day)
F58: Total | G58: =IF(ISERROR(IF(OR(G25=Q144,AND(F14=Q138,F15=Q138,F16=Q138,F17=Q138,F18=Q138,F19=Q138)),Q144,(SUM(G25:G26)+G29+G32+G35+SUM(G40:G45)+SUM(G47:G48)+SUM(G50:G55)))),Q144,IF(OR(G25=Q144,AND(F14=Q138,F15=Q138,F16=Q138,F17=Q138,F18=Q138,F19=Q138)),Q144,(SUM(G25:G26)+G29+G32+G35+SUM(G40:G45)+SUM(G47:G48)+SUM(G50:G55)))) -> Requires building information | Q58: Total | R58: =SUM(R25+R26)+R29+R32+R35+SUM(R40:R45)+SUM(R47:R48)+SUM(R50:R55)-R68 -> 
B60: Minimum requirements according to EU taxonomy for sustainable finance
A61: =IF(G61=$Q$136,">","") -> > | F61: Do all the installed wash hand basin taps and kitchen taps have a maximum water flow of 6 litres/min? | G61: Please select
A62: =IF(G62=$Q$136,">","") -> > | F62: Do all the installed showers have a maximum water flow of 8 litres/min? | G62: Please select
A63: =IF(G63=$Q$136,">","") -> > | F63: Do all WCs, including suites, bowls and flushing cisterns, have a full flush volume of a maximum of 6 litres and a maximum average flush volume of 3,5 litres? | G63: Please select
A64: =IF(G64=$Q$136,">","") -> > | F64: Do all urinals use a maximum of 2 litres/bowl/hour and flushing urinals have a maximum full flush volume of 1 litre? | G64: Please select
F65: Is all the EU taxonomy requirements for sanitary equipment met? | G65: =IF(OR(G61="Please select",G61="No"),"No",IF(OR(G62="Please Select",G62="No"),"No",IF(OR(G63="Please Select",G63="No"),"No",IF(OR(G64="Please Select",G64="No"),"No","Yes")))) -> No
B67: Non potable water yield - greywater system | R67: Total from fixed uses
Q68: Total | R68: =R45+R54+R55 -> 
A69: =IF(G69=$Q$136,">","") -> > | F69: Has, or will, the greywater system be specified and installed in compliance with BS8525-1:2010 Greywater Systems - Part 1 Code of Practice | G69: Please select
C71: Greywater source (building components) | E71: Greywater Collected | F71: Proportion of components collected from (%) | G71: Greywater yield (L/person/day)
B72: =IF(AND($G$69=$Q$137,E72=""),">",IF(AND($G$69=$Q$137,E72=$Q$137,F72=""),">","")) ->  | C72: =B40 -> Wash hand basin taps | G72: =IF(OR(E72=$Q$138,E72=""),0,G40*F72) -> 0
C73: Showers | G73: =IF(OR(E73=$Q$138,E73=""),0,(SUM(G41:G42)*F73)) -> 0
C74: =B47 -> Kitchen taps - kitchenette | G74: =IF(OR(E74=$Q$138,E74=""),0,G47*F74) -> 0
C75: Dishwasher - staff kitchenette | G75: =IF(OR(E75=$Q$138,E75=""),0,F75*G48) -> 0
C76: =B50 -> Kitchen taps - pre-rinse nozzle | G76: =IF(OR(E76=$Q$138,E76=""),0,G50*F76) -> 0
C77: Dishwasher - food preparation area | G77: =IF(OR(E77=$Q$138,E77=""),0,F77*G51) -> 0
B78: Hide rows: N/A for offices | C78: Bath | G78: =IF(OR(E78=Q138,E78="",E43="N/A",E44="N/A"),0,(SUM(G43:G44)*F78)) ->  | H78: Hide rows: N/A for offices
B79: Hide rows: N/A for offices | C79: =B53 -> Washing machine | G79: =IF(OR(E79=Q139,E79=""),0,F79*G53) -> 0 | H79: Hide rows: N/A for offices
C80: Greywater source (other components) | D80: Typical greywater yield (litres) | E80: Frequency of yield (days) | F80: Greywater yield (litres/day) | G80: Greywater yield (L/person/day) | H80: =IF(G69=Q137,N155,"") -> 
C81: Other source of greywater | F81: =IF(D81="","",D81/E81) ->  | G81: =IF(D81="",0,F81/$O$144) -> 0
G83: Greywater yield (L/person/day)
F84: Total | G84: =IF(Ind_act=Q136,Q144,IF(OR(G69=Q139,G69=Q138),0,SUM(G72:G79)+G81)) -> Requires building information
B86: Non potable water yield - rainwater system
A88: =IF(G88=$Q$136,">","") -> > | F88: Has, or will, the rainwater system be specified and installed in compliance with BS EN 16941-1:2018 Rainwater Harvesting Systems - Code of practice | G88: Please select
A90: =IF(AND($G$88=$Q$137,G90=$Q$136),">","") ->  | F90: How has the storage capacity for the proposed system been calculated? | G90: Please select
B91: Rainwater yield if basic approach:
B92: Collection area (m2) | C92: Rainfall (average mm/yr) | D92: Hydraulic filter efficiency (%) | E92: Yield co-efficient (%) | F92: Annual rainwater yield (Litres) | G92: Rainwater yield (L/person/day)
A93: =IF(AND($G$88=$Q$137,$G$90=$S$137,OR(B93="",C93="",D93="",E93="")),">","") ->  | F93: =B93*E93*D93*C93 -> 0 | G93: =IF(ISERROR(IF(OR(G88=Q139,G88=Q138,G90=S138),0,(F93/365)/O144)),Q144,IF(OR(G88=Q139,G88=Q138,G90=S138),0,(F93/365)/O144)) -> Requires building information
F94: Rainwater yield if detailed:
F95: Daily rainfall collection (litres) | G95: Rainwater yield (L/person/day)
E96: =IF(AND($G$88=$Q$137,$G$90=$S$138,F96=""),">","") ->  | G96: =IF(ISERROR(IF(OR(G90=S137,G88=Q139,G88=Q138),0,(F96/O144))),Q144,IF(OR(G90=S137,G88=Q139,G88=Q138),0,(F96/O144))) -> Requires building information
B98: Non potable water demand - building components
G100: Greywater and/or rainwater yield (L/person/day)
F101: Total | G101: =IF(ISERROR(G96+G93+G84),Q144,G96+G93+G84) -> Requires building information
D103: Component | E103: Greywater and/or rainwater utilised for component | F103: Proportion of components using greywater and/or rainwater yield (%) | G103: Maximum permissible demand (L/person/day)
C104: =IF(AND(OR($G$69=$Q$136,$G$69=$Q$138,$G$69=$Q$139),OR($G$88=$Q$136,$G$88=$Q$138,$G$88=$Q$139)),"",IF(E104=$Q$138,"",IF(OR(E104="",F104=""),">",""))) ->  | D104: WC flushing | G104: =IF(E104="no",0,F104*SUM(G25:G26)) -> 0
C105: =IF(B25=R138,"",IF(AND(OR($G$69=$Q$136,$G$69=$Q$138,$G$69=$Q$139),OR($G$88=$Q$136,$G$88=$Q$138,$G$88=$Q$139)),"",IF(E105=$Q$138,"",IF(OR(E105="",F105=""),">","")))) ->  | D105: Urinal flushing | G105: =IF(OR(E105="no",B25=R138),0,F105*SUM(G29:G35)) -> 0
G106: Demand met by yield (L/person/day)
F107: Total | G107: =IF((SUM(G104:G105))>G101,G101,SUM(G104:G105)) -> 0
D108: Other permissible components
C109: =IF(AND(OR($G$69=$Q$136,$G$69=$Q$138,$G$69=$Q$139),OR($G$88=$Q$136,$G$88=$Q$138,$G$88=$Q$139)),"",IF(G109=$Q$136,">","")) ->  | F109: Are there other permissible components present which demand greywater and/or rainwater yield? | G109: Please select
G110: Maximum permissible demand (L/day)
G111: =IF(ISERROR(IF(AND(G109="yes",G107>G101),0,(G101-G107)*O144)),Q144,IF(AND(G109="yes",G107>G101),0,(G101-G107)*O144)) -> Requires building information
C112: =IF(AND(OR($G$69=$Q$136,$G$69=$Q$138,$G$69=$Q$139),OR($G$88=$Q$136,$G$88=$Q$138,$G$88=$Q$139)),"",IF(AND(G109=$Q$137,G112=""),">","")) ->  | F112: Proportion of maximum permissible demand utilised by other permissible components (%)
G113: Demand met by yield (L/person/day)
F114: Total | G114: =IF(ISERROR((G112*G111)/O144),Q144,(G112*G111)/O144) -> Requires building information
G116: Greywater and/or rainwater demand met by yield (L/person/day)
F117: Total | G117: =IF(ISERROR(G107+G114),Q144,G107+G114) -> Requires building information
B119: Water consumption calculation results
F121: Litres/person/day | G121: m3/person/yr
E122: Water consumption - modelled baseline performance benchmark (excludes fixed uses) | F122: =IF(ISERROR(R58),Q144,R58) -> Requires building information | G122: =IF(ISERROR((F122/1000)*$F$11),Q144,(F122/1000)*$F$11) -> Requires building information
E124: Microcomponent Water consumption - modelled performance (excludes fixed uses) | F124: =IF(ISERROR(G58-R68),Q144,G58-R68) -> Requires building information | G124: =IF(ISERROR((F124/1000)*$F$11),Q144,(F124/1000)*$F$11) -> Requires building information
E126: Modelled water demand met via greywater and rainwater sources | F126: =IF(ISERROR(G117),Q144,G117) -> Requires building information | G126: =IF(ISERROR((F126/1000)*$F$11),Q144,(F126/1000)*$F$11) -> Requires building information | N126: Greywater/rainwater data check
N127: =1-(F124-F126)/F122 ->  | O127: % actual improvement
E128: If greywater/rainwater systems specified has the minimum % efficiency improvement for component specifications been met | F128: =IF(ISERROR(IF(AND((OR(G88=Q139,G88=Q138)),((OR(G69=Q139,G69=Q138)))),Q139,IF(OR(N129="1 credit",N129="2 credits",N129="3 credits"),Q142,IF(OR(N129="4 credits",N129="5 credits"),(IF((1-(F124/F122))<0.25,"No","Yes")))))),Q144,IF(AND((OR(G88=Q139,G88=Q138)),((OR(G69=Q139,G69=Q138)))),Q139,IF(OR(N129="1 credit",N129="2 credits",N129="3 credits"),Q142,IF(OR(N129="4 credits",N129="5 credits"),(IF((1-(F124/F122))<0.25,"No","Yes")))))) -> Requires building information
N129: =VLOOKUP(N127,'Activity database'!BC4:BD9,2,TRUE) ->  | O129: Credits achieved
E130: Net modelled water consumption (excludes fixed uses) | F130: =IF(ISERROR(IF(OR(F128="Yes",F128=Q139),F124-F126,(F124-((1-(F124/F122))*F126)))),Q144,IF(OR(F128="Yes",F128=Q139),F124-F126,(F124-((1-(F124/F122))*F126)))) -> Requires building information | G130: =IF(ISERROR((F130/1000)*$F$11),Q144,((F130/1000)*$F$11)) -> Requires building information
E132: Percentage improvement | F132: =IF(OR(F122=Q144,F124=Q144,F126=Q144,F128=Q144),Q144,(ROUNDDOWN(IF(OR(F128="yes",F128=Q142,F128=Q139),N127,(IF(F128="No",1-((F124-(F126*(1-(F124/F122))))/F122)))),4))) -> Requires building information
E134: Total Wat 01 BREEAM credits achieved, before checking minimum requirements according to EU taxonomy for sustainable finance. | F134: =IF(F132<0,'Activity database'!BD4,(IF(ISERROR(VLOOKUP(F132,'Activity database'!BC4:BD9,2,TRUE)),Q144,VLOOKUP(F132,'Activity database'!BC4:BD9,2,TRUE)))) -> Requires building information
E136: Total Wat 01 BREEAM credits achieved | F136: =IF(F134="Requires building information","Requires building information",IF(G65="Yes",F134,IF(F134>="1 credit","1 credit","0 credits"))) -> Requires building information | P136: Please select | Q136: Please select | R136: Please select | S136: Please select | T136: 0
O137: Default occupancy rate | P137: Waterless urinals - specified | Q137: Yes | R137: ='Activity database'!I3 -> WC - male (urinals installed) | S137: BS EN 16941-1 'basic approach' | T137: 0.01
E138: Total Wat 01 BREEAM Exemplary credits achieved | F138: =IF(F132=Q144,Q144,IF(F132>='Activity database'!BC10,"1 innovation credit achieved","Exemplary level not achieved")) -> Requires building information | N138: =B14 -> Industrial - process area | O138: =IF(F14="Yes",VLOOKUP(B14,'Activity database'!A:BC,3,FALSE)*G14,0) -> 0 | P138: Waterless urinals - not specified | Q138: No | R138: ='Activity database'!J3 -> WC - male (no urinals installed) | S138: BS EN 16941-1 'detailed approach' | T138: 0.02
N139: Industrial - Laboratory area | O139: =IF(F15="Yes",VLOOKUP(B15,'Activity database'!A:BC,3,FALSE)*G15,0) -> 0 | Q139: System not specified | T139: 0.03
E140: Key performance indicator - use of freshwater resource (includes fixed uses) | F140: =IF(ISERROR(F124+R68-F126),Q144,F124+R68-F126) -> Requires building information | G140: =IF(ISERROR((F140/1000)*$F$11),Q144,(F140/1000)*$F$11) -> Requires building information | N140: Industrial - Warehouse storage | O140: =IF(F16="Yes",VLOOKUP(B16,'Activity database'!A:BC,3,FALSE)*G16,0) -> 0 | T140: 0.04
N141: Industrial - Office areas | O141: =IF(F17="Yes",VLOOKUP(B17,'Activity database'!A:BC,3,FALSE)*G17,0) -> 0 | R141: Please select | T141: 0.05
N142: Industrial - Staff canteen dining area | O142: =IF(F18="Yes",VLOOKUP(B18,'Activity database'!A:BC,3,FALSE)*G18,0) -> 0 | Q142: Not applicable | R142: ='Activity database'!A9 -> Industrial - 24hr x 7 day operation | T142: 0.06
N143: Industrial - Fitness suite/gym (with changing facility and showers) | O143: =IF(F19="Yes",VLOOKUP(B19,'Activity database'!A:BC,3,FALSE)*G19,0) -> 0 | R143: ='Activity database'!A10 -> Industrial - typical business hours of operation | T143: 0.07
N144: Total default occupancy | O144: =IF(Ind_act=R142,SUM(O138:O143)*G12,IF(Ind_act=R143,SUM(O138:O143),IF(Ind_act=R141,Q144))) -> Requires building information | Q144: Requires building information | T144: 0.08
T145: 0.09
R146: Please select | T146: 0.1
R147: 1 | T147: 0.11
R148: 2 | T148: 0.12
R149: 3 | T149: 0.13
R150: 4 | T150: 0.14
R151: 5 | T151: 0.15
T152: 0.16
T153: 0.17
T154: 0.18
N155: Note: If greywater is collected from a component/source not accounted for above i.e. their consumption is not estimated, then the amount of greywater collected can be added here so that it may be accounted for. This can include wastewater from active hygiene flushing, i.e. a regular hygiene flushing programme to minimize poor water quality in a potable cold or hot water system. | T155: 0.19
N156: Note: This consumption total accounts for the ratio of male users for this building type i.e. the ratio of building users who will operate the flush. Where more than one type of urinal flushing control is specified in the building, this consumption figure is adjusted by a ratio of use. the ratio is determined according to the proportion of urinals bowls in the building operated using this type of control. | T156: 0.2
N157: Note: the number of shifts is used to estimate the building's total occupancy and therefore water consumption. If unknown at the time assessment, then assume three shifts for a single 24 hour period. | T157: 0.21
N158: Note: Where waterless urinals are specified in the assessed building, for the purpose of the baseline benchmark standard 1.5 litre flush urinals are assumed. Where waterless urinals and another type of urinal flushing control is specified in the building, the baseline consumption figure calculated using a 1.5 litre default flush is adjusted by a ratio of use. The ratio is determined according to the proportion of urinals bowls in the building that are waterless. | T158: 0.22
N159: Note: Please select the relevant option for waterless urinals specification opposite. | T159: 0.23
T160: 0.24
T161: 0.25
T162: 0.26
T163: 0.27
T164: 0.28
T165: 0.29
T166: 0.3
T167: 0.31
T168: 0.32
T169: 0.33
T170: 0.34
T171: 0.35
T172: 0.36
T173: 0.37
T174: 0.38
T175: 0.39
T176: 0.4
T177: 0.41
T178: 0.42
T179: 0.43
T180: 0.44
T181: 0.45
T182: 0.46
T183: 0.47
T184: 0.48
T185: 0.49
T186: 0.5
T187: 0.51
T188: 0.52
T189: 0.53
T190: 0.54
T191: 0.55
T192: 0.56
T193: 0.57
T194: 0.58
T195: 0.59
T196: 0.6
T197: 0.61
T198: 0.62
T199: 0.63
T200: 0.64
T201: 0.65
T202: 0.66
T203: 0.67
T204: 0.68
T205: 0.69
T206: 0.7
T207: 0.71
T208: 0.72
T209: 0.73
T210: 0.74
T211: 0.75
T212: 0.76
T213: 0.77
T214: 0.78
T215: 0.79
T216: 0.8
T217: 0.81
T218: 0.82
T219: 0.83
T220: 0.84
T221: 0.85
T222: 0.86
T223: 0.87
T224: 0.88
T225: 0.89
T226: 0.9
T227: 0.91
T228: 0.92
... 8 more rows

Sheet Education calculator (hidden)
B2: BREEAM-NOR v6.1 Wat 01 Water consumption: Water efficiency calculator for new non domestic education buildings
B4: Building details
B6: Building name | C6: ='User Instructions'!D8:F8 -> 
B8: BRE assessment reference no. | C8: ='User Instructions'!D10:F10 -> 
B10: Building type | C10: Description of building type | E10: Default building occupancy | F10: Default annual days/operation | G10: Default daily hours of operation
A11: =IF(B11=$Q$135,">","") -> > | B11: Please select | C11: =VLOOKUP(B11,'Activity database'!A:B,2,FALSE) ->  | E11: =IF(O149=0,Q145,O149) -> Requires building information | F11: =VLOOKUP(B11,'Activity database'!A:AN,4,FALSE) ->  | G11: =VLOOKUP(B11,'Activity database'!A:AN,5,FALSE) -> 
B13: Main building activity areas | C13: Description of activity area | F13: Activity area present in building? | G13: Net Floor Area (m2) | H13: ='Office calculator'!H13:O14 -> Note: the activity areas defined opposite are used to estimate the assessed building's default occupancy and therefore water consumption benchmark. These areas are chosen as they are deemed, by in large, to represent the permanently occupied spaces in the building and therefore reflect the number of building occupants/users. As a result it is not necessary to include all areas of the building that may be present, as the areas not defined are assumed to be used by the occupants of the building already accounted for by those areas that are listed.
A14: =IF(B11=Q135,"",IF(F14=$Q$135,">",IF(AND(F14=$Q$136,G14=""),">",""))) ->  | B14: ='Activity database'!A21 -> Requires building type definition in calculator | C14: =VLOOKUP(B14,'Activity database'!A:B,2,FALSE) -> FALSE | F14: Please select
A15: =IF(B11=Q135,"",IF(F15=$Q$135,">",IF(AND(F15=$Q$136,G15=""),">",""))) ->  | B15: ='Activity database'!A22 -> Education - Staff office and adminstration areas | C15: =VLOOKUP(B15,'Activity database'!A:B,2,FALSE) -> Cellular or open plan office space, including staff rooms and staff kitchen where present/adjacent and reception areas (including library reception desk areas if present). Exlcudes meeting rooms, visitor waiting or circulation areas and other such spaces not permanently occupied. | F15: Please select
A16: =IF(B11=Q135,"",IF(F16=$Q$135,">",IF(AND(F16=$Q$136,G16=""),">",""))) ->  | B16: ='Activity database'!A23 -> Education - Common room | C16: =VLOOKUP(B16,'Activity database'!A:B,2,FALSE) -> Student common room. | F16: Please select
A17: =IF(B11=Q135,"",IF(F17=$Q$135,">",IF(AND(F17=$Q$136,G17=""),">",""))) ->  | B17: ='Activity database'!A24 -> Education - dining area | C17: =VLOOKUP(B17,'Activity database'!A:B,2,FALSE) -> Seated dining areas that accompany a permanently staffed kitchen preparing food for consumption on the premises (excludes small un-staffed kitchen's used by staff to re-heat food, make tea etc.) | F17: Please select | H17: Note: Only select this activity if there is a permanently staffed kitchen that will prepare hot and cold meals for the building's staff/students/pupils. Enter the area of the seated dining area only (not kitchen/servery areas), this is used to estimate the number of covers per day and subsequently the default number of kitchen staff and water consumption from food preparation activity area. If an assembly hall is used as a dining area, then enter the area of the assembly hall used for dining against this function.
A18: =IF(B11=Q135,"",IF(F18=$Q$135,">","")) ->  | B18: ='Activity database'!A25 -> Requires building type definition in calculator | C18: =VLOOKUP(B18,'Activity database'!A:B,2,FALSE) -> FALSE | F18: Please select | H18: =IF(F18=Q136,"Note: Net floor area is not required for this activity. Its inclusion (or otherwise) simply determines the usage/person/day factor and therefore resulting water consumption from the showers.","") -> 
A19: =IF(B11=Q135,"",IF(OR(B11=R142,B11=R143),"",IF(F19=$Q$135,">",IF(AND(F19=$Q$136,G19=""),">","")))) ->  | B19: ='Activity database'!A26 -> Education - Lecture theatre | C19: =VLOOKUP(B19,'Activity database'!A:B,2,FALSE) -> Lecture theatre with permanent seating and/or stage used by lecturers and/or for staged performances. | F19: Please select | H19: =IF(AND(G19>0,OR($B$11=$R$142,$B$11=$R$143)),"< Please delete the figure from this cell","") -> 
A20: =IF(B11=Q135,"",IF(OR(B11=R142,B11=R143),"",IF(F20=$Q$135,">",IF(AND(F20=$Q$136,G20=""),">","")))) ->  | B20: ='Activity database'!A27 -> Education - Study area | C20: =VLOOKUP(B20,'Activity database'!A:B,2,FALSE) -> Study/write-up area in sixth form, further and/or Higer Education colleges. | F20: Please select | H20: =IF(AND(G20>0,OR($B$11=$R$142,$B$11=$R$143)),"< Please delete the figure from this cell","") -> 
A21: =IF(B11=Q135,"",IF(OR(B11=R142,B11=R143),"",IF(F21=$Q$135,">",IF(AND(F21=$Q$136,G21=""),">","")))) ->  | B21: ='Activity database'!A28 -> Education - Workshop | C21: =VLOOKUP(B21,'Activity database'!A:B,2,FALSE) -> Small scale workshop type space used for practical/vocational demonstrations/learning. | F21: Please select | H21: =IF(AND(G21>0,OR($B$11=$R$142,$B$11=$R$143)),"< Please delete the figure from this cell","") -> 
A22: =IF(B11=Q135,"",IF(OR(B11=R142,B11=R143),"",IF(F22=$Q$135,">",IF(AND(F22=$Q$136,G22=""),">","")))) ->  | B22: ='Activity database'!A29 -> Education - Information Technology space | C22: =VLOOKUP(B22,'Activity database'!A:B,2,FALSE) -> Laboratory/room containing I.T equipment and used for teaching/research related to information technology | F22: Please select | H22: =IF(AND(G22>0,OR($B$11=$R$142,$B$11=$R$143)),"< Please delete the figure from this cell","") -> 
A23: =IF(B11=Q135,"",IF(OR(B11=R142,B11=R143),"",IF(F23=$Q$135,">",IF(AND(F23=$Q$136,G23=""),">","")))) ->  | B23: ='Activity database'!A30 -> Education - Laboratory | C23: =VLOOKUP(B23,'Activity database'!A:B,2,FALSE) -> Laboratory space for teaching/learning related to science based subjects. | F23: Please select | H23: =IF(AND(G23>0,OR($B$11=$R$142,$B$11=$R$143)),"< Please delete the figure from this cell","") -> 
B25: Water consumption - building microcomponent
B27: WC component - all activity areas | C27: units | D27: Specification | E27: Usage/person/day | F27: Usage factor | G27: Consumption (L/person/day) | N27: WC component - all activity areas | O27: Baseline Performance Specification | P27: Usage/person/day | Q27: Usage factor | R27: Baseline Consumption (L/person/day)
A28: =IF(B28=$Q$135,">","") -> > | B28: Please select | C28: Effective flush volume (Litres) | E28: =IF(OR(B11=Q135,B28=Q135),Q145,IF(B28=R136,VLOOKUP($B$11,'Activity database'!$A:$AN,9,FALSE),IF(B28=R137,VLOOKUP($B$11,'Activity database'!$A:$BM,10,FALSE)))) -> Requires building information | F28: =IF(B11=Q135,Q145,VLOOKUP($B$11,'Activity database'!$A:$BM,27,FALSE)) -> Requires building information | G28: =IF(ISERROR((D28*E28*F28*(VLOOKUP(B11,'Activity database'!A:BA,7,FALSE)))),Q145,(D28*E28*F28*(VLOOKUP(B11,'Activity database'!A:BA,7,FALSE)))) -> Requires building information | H28: =IF(B28=R135,"Note: please select the relevant option for WC component opposite","") -> Note: please select the relevant option for WC component opposite | N28: =B28 -> Please select | O28: =IF($D$28="",0,VLOOKUP($N$28,'Activity database'!$AT:$BA,2,FALSE)) -> 0 | P28: =E28 -> Requires building information | Q28: =F28 -> Requires building information | R28: =IF($D$28="",0,O28*$P$28*$Q$28*(VLOOKUP($B$11,'Activity database'!$A:$BA,7,FALSE))) -> 0
B29: ='Activity database'!K3 -> WC - female | C29: Effective flush volume (Litres) | E29: =IF(B11=Q135,Q145,VLOOKUP($B$11,'Activity database'!$A:$BM,11,FALSE)) -> Requires building information | F29: =IF(B11=Q135,Q145,VLOOKUP($B$11,'Activity database'!$A:$BM,27,FALSE)) -> Requires building information | G29: =IF(B11=Q135,Q145,D29*E29*F29*(VLOOKUP(B11,'Activity database'!A:BA,8,FALSE))) -> Requires building information | H29: Note: Where the WC facilities are non-gender specific, please still enter the WC specification against both WC male and WC female categories i.e. if there are two WCs with a 6 litre effective flush, then enter 6 litres against both male and female categories. The calculation will not double count water consumption in this instance as the consumption figure calculated for each WC component is adjusted by the ratio of male to female users for this building type. | N29: =B29 -> WC - female | O29: =IF($D$29="",0,VLOOKUP($N$29,'Activity database'!$AT:$BA,2,FALSE)) -> 0 | P29: =E29 -> Requires building information | Q29: =F29 -> Requires building information | R29: =IF($D$29="",0,O29*$P$29*$Q$29*(VLOOKUP($B$11,'Activity database'!$A:$BA,8,FALSE))) -> 0
B31: Urinal component - all activity areas | C31: units | D31: Specification | E31: No. of cisterns | F31: Flushing frequency (flushes/hour) | G31: Consumption (L/person/day) | N31: Urinal component - all activity areas | O31: Baseline Performance Specification | P31: Urinal consumption (L/bowl/day) | Q31: Urinal consumption (L/day) | R31: Baseline Consumption (L/person/day)
A32: =IF(AND(D32>0,OR(E32="",F32="")),">","") ->  | B32: Automatically operated flushing cistern | C32: Cistern capacity (Litres) | G32: =IF(B11=Q135,Q145,IF(OR(D32=0,E32=0,F32=0,B28=R137),0,(D32*E32*F32*G11)/O149)) -> Requires building information | N32: =B32 -> Automatically operated flushing cistern | O32: =IF($D$32=0,0,IF($D$33=1,'Activity database'!$AU$11,'Activity database'!$AU$10)) -> 0 | P32: =O32*$G$11 ->  | Q32: =P32*$D$33 ->  | R32: =IF(B28=R137,0,$Q$32/O149) -> 
A33: =IF(AND(D32>0,D33=""),">","") ->  | C33: No. of urinal bowls
C34: units | D34: Specification | E34: Usage/person/day | F34: Usage factor | G34: Consumption (L/person/day) | N34: Urinal component - all activity areas | O34: Baseline Performance Specification | P34: Usage/person/day | Q34: Usage factor | R34: Baseline Consumption (L/person/day)
B35: Manual/automatic operated pressure flushing valve (all activity areas) | C35: Flush volume (litres) | E35: =IF(B11=Q135,Q145,VLOOKUP($B$11,'Activity database'!$A:$AN,12,FALSE)) -> Requires building information | F35: =IF(B11=Q135,Q145,VLOOKUP($B$11,'Activity database'!$A:$AN,28,FALSE)) -> Requires building information | G35: =IF(B11=Q135,Q145,IF(OR(D35=0,E35=0,F35=0,B28=R137),0,(D35*E35*F35)*(VLOOKUP(B11,'Activity database'!A:BA,7,FALSE))*(D36/(D33+D36+D39)))) -> Requires building information | H35: =IF(B28=R137,"",N160) -> Note: This consumption total accounts for the ratio of male users for this building type i.e. the ratio of building users who will operate the flush. Where more than one type of urinal flushing control is specified in the building, this consumption figure is adjusted by a ratio of use. the ratio is determined according to the proportion of urinals bowls in the building operated using this type of control. | N35: =B35 -> Manual/automatic operated pressure flushing valve (all activity areas) | O35: ='Activity database'!$AU$12 -> 1 | P35: =E35 -> Requires building information | Q35: =F35 -> Requires building information | R35: =IF(B28=R137,0,IF($D$35="",0,$O$35*$P$35*$Q$35*(VLOOKUP(B11,'Activity database'!$A:$BA,7,FALSE)))*(D36/(D33+D36+D39))) -> 
A36: =IF(AND(D35>0,D36=""),">","") ->  | C36: No. of urinal bowls
C37: units | D37: Specification | E37: Usage/person/day | F37: Usage factor | G37: Consumption (L/person/day) | N37: Urinal component - all activity areas | O37: Baseline Performance Specification | P37: Usage/person/day | Q37: Usage factor | R37: Baseline Consumption (L/person/day)
A38: =IF(B28=R137,"",IF(D38=$Q$135,">","")) -> > | B38: Waterless urinals (all activity areas) | C38: Flush volume (litres) | D38: Please select | E38: =IF(B11=Q135,Q145,VLOOKUP($B$11,'Activity database'!$A:$AN,12,FALSE)) -> Requires building information | F38: =IF(B11=Q135,Q145,VLOOKUP($B$11,'Activity database'!$A:$AN,28,FALSE)) -> Requires building information | G38: =IF(B11=Q135,Q145,0) -> Requires building information | H38: =IF(OR(B28=R137,B28=R135,D38=P137),"",IF(AND(D38=P136,D39>0),N161,IF(OR(D38=R135,D38=P136),N162))) ->  | N38: =B38 -> Waterless urinals (all activity areas) | O38: ='Activity database'!$AU$12 -> 1 | P38: =E38 -> Requires building information | Q38: =F38 -> Requires building information | R38: =IF(B28=R137,0,IF(OR($D$38="",$D$38=P135,$D$38=P137),0,$O$38*$P$38*$Q$38*(VLOOKUP(B11,'Activity database'!$A:$BA,7,FALSE)))*(D39/(D33+D36+D39))) -> 
A39: =IF(AND(D38=P136,D39=""),">","") ->  | C39: No. of urinal bowls
C41: units | D41: Specification | E41: Usage/person/day | F41: Usage factor | G41: Consumption (L/person/day)
B42: Taps components (personal hygiene) - all activity areas | N42: Taps components (personal hygiene) - all activity areas | O42: Baseline Performance Specification | P42: Usage/person/day | Q42: Usage factor | R42: Baseline Consumption (L/person/day)
B43: ='Activity database'!M3 -> Wash hand basin taps | C43: Flow rate (litres/min) | E43: =IF(B11=Q135,Q145,VLOOKUP($B$11,'Activity database'!$A:$AN,13,FALSE)) -> Requires building information | F43: =IF(B11=Q135,Q145,VLOOKUP($B$11,'Activity database'!$A:$AN,29,FALSE)) -> Requires building information | G43: =IF(B11=Q135,Q145,(D43*E43*F43)*VLOOKUP(B11,'Activity database'!A:AR,44,FALSE)) -> Requires building information | N43: =B43 -> Wash hand basin taps | O43: =IF($D$43="",0,VLOOKUP($N$43,'Activity database'!$AT:$BA,2,FALSE)) -> 0 | P43: =E43 -> Requires building information | Q43: Requires building information | R43: =IF($D$43="",0,(O43*$P$43*$Q$43)*(VLOOKUP($B$11,'Activity database'!$A:$AR,44,FALSE))) -> 0
B44: ='Activity database'!N3 -> Shower use | C44: Flow rate (litres/min) | E44: =IF(B11=Q135,Q145,VLOOKUP($B$11,'Activity database'!$A:$AN,14,FALSE)) -> Requires building information | F44: =IF(B11=Q135,Q145,VLOOKUP($B$11,'Activity database'!$A:$AN,30,FALSE)) -> Requires building information | G44: =IF(B11=Q135,Q145,IF(B44=Q135,Q145,D44*E44*F44)) -> Requires building information | N44: Shower use | O44: =IF($D$44="",0,'Activity database'!AU8) -> 0 | P44: Requires building information | Q44: Requires building information | R44: =IF($D$44="",0,O44*$P$44*$Q$44) -> 0
A45: Hide rows: N/A for schools | B45: ='Activity database'!O3 -> Shower use (bath present) | C45: Flow rate (litres/min) | E45: =VLOOKUP($B$11,'Activity database'!$A:$AN,15,FALSE) ->  | F45: =VLOOKUP($B$11,'Activity database'!$A:$AN,31,FALSE) ->  | G45: =IF(E45="N/A",0,D45*E45*F45) ->  | H45: Hide rows: N/A for schools | N45: Shower use (bath present) | O45: =IF($D$45="",0,'Activity database'!AU8) -> 0 | R45: =IF($D$45="",0,O45*$P$45*$Q$45) -> 0
A46: Hide rows: N/A for schools | B46: ='Activity database'!P3 -> Bath use (no shower present) | C46: Capacity to overflow (Litres) | E46: =VLOOKUP($B$11,'Activity database'!$A:$AN,16,FALSE) ->  | F46: =VLOOKUP($B$11,'Activity database'!$A:$AN,32,FALSE) ->  | G46: =IF(E46="n/a",0,((D46*E46*F46)*'Activity database'!AQ4)) ->  | H46: Hide rows: N/A for schools | N46: Bath use (no shower present) | O46: =IF($D$46="",0,'Activity database'!AU9) -> 0 | R46: =IF($D$46="",0,((O46*$P$46*$Q$46)*(VLOOKUP($B$11,'Activity database'!$A:$AR,43,FALSE)))) -> 0
A47: Hide rows: N/A for schools | B47: ='Activity database'!Q3 -> Bath use (shower present) | C47: Capacity to overflow (Litres) | E47: =VLOOKUP($B$11,'Activity database'!$A:$AN,17,FALSE) ->  | F47: =VLOOKUP($B$11,'Activity database'!$A:$AN,33,FALSE) ->  | G47: =IF(E47="n/a",0,((D47*E47*F47)*'Activity database'!AQ4)) ->  | H47: Hide rows: N/A for schools | N47: Bath use (shower present) | O47: =IF($D$47="",0,'Activity database'!AU9) -> 0 | R47: =IF($D$47="",0,((O47*$P$47*$Q$47)*(VLOOKUP($B$11,'Activity database'!$A:$AR,43,FALSE)))) -> 0
B48: ='Activity database'!X3 -> Fixed use - vessel filling | C48: Litres/person/day | D48: - | E48: - | F48: - | G48: =IF(B11=Q135,Q145,IF(F18=Q136,'Activity database'!X25+VLOOKUP(B11,'Activity database'!A:BA,24,FALSE),IF(F18=Q137,VLOOKUP(B11,'Activity database'!A:BA,24,FALSE),Q145))) -> Requires building information | N48: Fixed use - vessel filling | O48: N/A | P48: N/A | Q48: N/A | R48: =IF(G48=Q145,0,G48) -> 0
B49: Tap components (cleaning) - staff kitchenette | N49: Tap components (cleaning) - staff kitchenette
B50: ='Activity database'!R3 -> Kitchen taps - kitchenette | C50: Flow rate (litres/min) | E50: =IF(B11=Q135,Q145,VLOOKUP($B$11,'Activity database'!$A:$AN,18,FALSE)) -> Requires building information | F50: =VLOOKUP($B$15,'Activity database'!$A:$AN,34,FALSE) -> 0.67 | G50: =IF(B11=Q135,Q145,(D50*E50*F50)*(VLOOKUP(B11,'Activity database'!A:AR,44,FALSE))) -> Requires building information | N50: =B50 -> Kitchen taps - kitchenette | O50: =IF($D$50="",0,VLOOKUP($N$50,'Activity database'!$AT:$BA,2,FALSE)) -> 0 | P50: =E50 -> Requires building information | Q50: =F50 -> 0.67 | R50: =IF($D$50="",0,(O50*$P$50*$Q$50)*(VLOOKUP($B$11,'Activity database'!$A:$AR,44,FALSE))) -> 0
B51: ='Activity database'!U3 -> Dishwasher | C51: Litres/cycle | E51: =IF(B11=Q135,Q145,VLOOKUP($B$15,'Activity database'!$A:$AN,21,FALSE)) -> Requires building information | F51: =VLOOKUP($B$15,'Activity database'!$A:$AN,37,FALSE) -> 1 | G51: =IF(B11=Q135,Q145,D51*E51*F51) -> Requires building information | N51: =B51 -> Dishwasher | O51: =IF($D$51="",0,'Activity database'!AU16) -> 0 | P51: =E51 -> Requires building information | Q51: =F51 -> 1 | R51: =O51*$P$51*$Q$51 -> 
B52: Tap components (cleaning and food preparation) - school canteen food preparation area | N52: Tap components (cleaning and food preparation) - canteen/restaurant
B53: ='Activity database'!S3 -> Kitchen taps - pre-rinse nozzle | C53: Flow rate (litres/min) | E53: - | F53: =VLOOKUP($B$17,'Activity database'!A:BC,35,FALSE) -> 60 | G53: =IF(ISERROR((D53*F53)/O149),Q145,((D53*F53)/O149)) -> Requires building information | N53: =B53 -> Kitchen taps - pre-rinse nozzle | O53: =IF($D$53="",0,VLOOKUP($N$53,'Activity database'!$AT:$BA,2,FALSE)) -> 0 | P53: =E53 -> - | Q53: 60 | R53: =IF($D$53="",0,(O53*$Q$53)/$O$149) -> 0
B54: ='Activity database'!U3 -> Dishwasher | C54: Litres/rack | E54: - | F54: =VLOOKUP($B$17,'Activity database'!A:BC,37,FALSE) -> 0.45 | G54: =IF(ISERROR((F54*G17*D54)/O149),Q145,((F54*G17*D54)/O149)) -> Requires building information | N54: Dishwasher | O54: =IF($D$54="",0,'Activity database'!AU19) -> 0 | P54: - | Q54: 0.45 | R54: =IF($D$54="",0,($Q$54*$G$17*O54)/$O$149) -> 0
B55: ='Activity database'!W3 -> Waste disposal unit | C55: Flow rate (litres/min) | E55: - | F55: =VLOOKUP($B$17,'Activity database'!A:BC,39,FALSE) -> 30 | G55: =IF(ISERROR((D55*F55)/O149),Q145,((D55*F55)/O149)) -> Requires building information | N55: Waste disposal unit | O55: =IF($D$55="",0,VLOOKUP($N$55,'Activity database'!$AT:$BA,2,FALSE)) -> 0 | P55: - | Q55: 30 | R55: =IF($D$55="",0,(O55*$Q$55)/$O$149) -> 0
A56: Hide rows: N/A for schools | B56: ='Activity database'!V3 -> Washing machine | C56: Litres/kg dry load | E56: =VLOOKUP($B$11,'Activity database'!$A:$AN,22,FALSE) ->  | F56: =VLOOKUP($B$11,'Activity database'!$A:$AN,38,FALSE) ->  | G56: =IF(ISERROR(IF(E56="N/A",0,IF(F17="Yes",(D56*E56*F56),0))),Q145,IF(E56="N/A",0,IF(F17="Yes",(D56*E56*F56),0))) -> Requires building information | H56: Hide rows: N/A for schools | N56: Washing machine | O56: =IF($D$56="",0,'Activity database'!AU20) -> 0 | R56: =IF($D$56="",0,IF($F$17="Yes",(O56*$P$56*$Q$56))) -> 0
B57: ='Activity database'!Y3 -> Fixed use - food preparation | C57: Litres/person/day | D57: - | E57: - | F57: - | G57: =IF(ISERROR(IF(F17="Yes",(VLOOKUP(B17,'Activity database'!A:BC,25,FALSE)/O149),0)),Q145,IF(F17="Yes",(VLOOKUP(B17,'Activity database'!A:BC,25,FALSE)/O149),0)) -> 0 | N57: Fixed use - food preparation | O57: N/A | P57: =E57 -> - | Q57: N/A | R57: =$G$57 -> 0
B58: ='Activity database'!Z3 -> Fixed use - kitchen cleaning | C58: Litres/person/day | D58: - | E58: - | F58: - | G58: =IF(ISERROR(IF(F17="Yes",(VLOOKUP(B17,'Activity database'!A:BC,26,FALSE)/O149),0)),Q145,(IF(F17="Yes",(VLOOKUP(B17,'Activity database'!A:BC,26,FALSE)/O149),0))) -> 0 | N58: Fixed use - kitchen cleaning | O58: N/A | P58: =E58 -> - | Q58: N/A | R58: =$G$58 -> 0
G60: Microcomponent consumption (L/person/day) | H60: Note: This total includes the contributions from fixed uses, including where applicable vessel filling, kitchen cleaning and food preparation. Default fixed use totals are included with the calculations to provide a more accurate reflection of the buildings total water consumption. The fixed use totals are not however included in the water consumption total used to determine the assessed buildings percentage improvement and the number of BREEAM credits achieved. The percentage improvement is based only on the consumption of water from uses that can be heavily influenced by the microcomponent specification e.g. WC flushing. | R60: Baseline Consumption (L/person/day)
F61: Total | G61: =IF(OR(G28=Q145,AND(F14=Q137,F15=Q137,F16=Q137,F17=Q137,F18=Q137,F19=Q137,F20=Q137,F21=Q137,F22=Q137,F23=Q137)),Q145,(SUM(G28:G29)+G32+G35+G38+SUM(G43:G48)+SUM(G50:G51)+SUM(G53:G58))) -> Requires building information | Q61: Total | R61: =SUM(R28+R29)+R32+R35+R38+SUM(R43:R48)+SUM(R50:R51)+SUM(R53:R58)-R64 -> 
B63: Non potable water yield - greywater system | R63: Total from fixed uses
Q64: Total | R64: =R48+R57+R58 -> 0
A65: =IF(G65=$Q$135,">","") -> > | F65: Has, or will, the greywater system be specified and installed in compliance with BS8525-1:2010 Greywater Systems - Part 1 Code of Practice | G65: Please select
C67: Greywater source (building components) | E67: Greywater Collected | F67: Proportion of components collected from (%) | G67: Greywater yield (L/person/day)
B68: =IF(AND($G$65=$Q$136,E68=""),">",IF(AND($G$65=$Q$136,E68=$Q$136,F68=""),">","")) ->  | C68: =B43 -> Wash hand basin taps | G68: =IF(OR(E68=$Q$137,E68=""),0,G43*F68) -> 0
C69: Showers | G69: =IF(OR(E69=$Q$137,E69=""),0,(SUM(G44:G45)*F69)) -> 0
C70: =B50 -> Kitchen taps - kitchenette | G70: =IF(OR(E70=$Q$137,E70=""),0,G50*F70) -> 0
C71: Dishwasher - staff kitchenette | G71: =IF(OR(E71=$Q$137,E71=""),0,F71*G51) -> 0
C72: =B53 -> Kitchen taps - pre-rinse nozzle | G72: =IF(OR(E72=$Q$137,E72=""),0,G53*F72) -> 0
C73: Dishwasher - food preparation area | G73: =IF(OR(E73=$Q$137,E73=""),0,F73*G54) -> 0
B74: Hide rows: N/A for offices | C74: Bath | G74: =IF(OR(E74=Q137,E74="",E46="N/A",E47="N/A"),0,(SUM(G46:G47)*F74)) ->  | H74: Hide rows: N/A for offices
B75: Hide rows: N/A for offices | C75: =B56 -> Washing machine | G75: =IF(OR(E75=Q138,E75=""),0,F75*G56) -> 0 | H75: Hide rows: N/A for offices
C76: Greywater source (other components) | D76: Typical greywater yield (litres) | E76: Frequency of yield (days) | F76: Greywater yield (litres/day) | G76: Greywater yield (L/person/day) | H76: =IF(G65=Q136,N159,"") -> 
C77: Other source of greywater | F77: =IF(D77="","",D77/E77) ->  | G77: =IF(D77="",0,F77/O149) -> 0
G79: Greywater yield (L/person/day)
F80: Total | G80: =IF(B11=Q135,Q145,IF(OR(G65=Q138,G65=Q137),0,SUM(G68:G75)+G77)) -> Requires building information
B82: Minimum requirements according to EU taxonomy for sustainable finance
A83: =IF(G83=$Q$135,">","") -> > | F83: Do all the installed wash hand basin taps and kitchen taps have a maximum water flow of 6 litres/min? | G83: Please select
A84: > | F84: Do all the installed showers have a maximum water flow of 8 litres/min? | G84: Please select
A85: > | F85: Do all WCs, including suites, bowls and flushing cisterns, have a full flush volume of a maximum of 6 litres and a maximum average flush volume of 3,5 litres? | G85: Please select
A86: > | F86: Do all urinals use a maximum of 2 litres/bowl/hour and flushing urinals have a maximum full flush volume of 1 litre? | G86: Please select
F87: Is all the EU taxonomy requirements for sanitary equipment met? | G87: =IF(OR(G83="Please select",G83="No"),"No",IF(OR(G84="Please Select",G84="No"),"No",IF(OR(G85="Please Select",G85="No"),"No",IF(OR(G86="Please Select",G86="No"),"No","Yes")))) -> No
B89: Non potable water yield - rainwater system
A91: =IF(G91=$Q$135,">","") -> > | F91: Has, or will, the rainwater system be specified and installed in compliance with BS EN 16941-1:2018 Rainwater Harvesting Systems - Code of practice | G91: Please select
A93: =IF(AND($G$91=$Q$136,G93=$Q$135),">","") ->  | F93: How has the storage capacity for the proposed system been calculated? | G93: Please select
B94: Rainwater yield if basic approach:
B95: Collection area (m2) | C95: Rainfall (average mm/yr) | D95: Hydraulic filter efficiency (%) | E95: Yield co-efficient (%) | F95: Annual rainwater yield (Litres) | G95: Rainwater yield (L/person/day)
A96: =IF(AND($G$91=$Q$136,$G$93=$S$136,OR(B96="",C96="",D96="",E96="")),">","") ->  | F96: =B96*E96*D96*C96 -> 0 | G96: =IF(ISERROR(IF(OR(G91=Q138,G91=Q137,G93=S137),0,(F96/365)/O149)),Q145,IF(OR(G91=Q138,G91=Q137,G93=S137),0,(F96/365)/O149)) -> Requires building information
F97: Rainwater yield if detailed:
F98: Daily rainfall collection (litres) | G98: Rainwater yield (L/person/day)
E99: =IF(AND($G$91=$Q$136,$G$93=$S$137,F99=""),">","") ->  | G99: =IF(ISERROR(IF(OR(G93=S136,G91=Q138,G91=Q137),0,(F99/O149))),Q145,IF(OR(G93=S136,G91=Q138,G91=Q137),0,(F99/O149))) -> Requires building information
B101: Non potable water demand - building components
G103: Greywater and/or rainwater yield (L/person/day)
F104: Total | G104: =IF(ISERROR(G99+G96+G80),Q145,G99+G96+G80) -> Requires building information
D106: Component | E106: Greywater and/or rainwater utilised for component | F106: Proportion of components using greywater and/or rainwater yield (%) | G106: Maximum permissible demand (L/person/day)
C107: =IF(AND(OR($G$65=$Q$135,$G$65=$Q$137,$G$65=$Q$138),OR($G$91=$Q$135,$G$91=$Q$137,$G$91=$Q$138)),"",IF(E107=$Q$137,"",IF(OR(E107="",F107=""),">",""))) ->  | D107: WC flushing | G107: =IF(E107="no",0,F107*SUM(G28:G29)) -> 0
C108: =IF(B28=R137,"",IF(AND(OR($G$65=$Q$135,$G$65=$Q$137,$G$65=$Q$138),OR($G$91=$Q$135,$G$91=$Q$137,$G$91=$Q$138)),"",IF(E108=$Q$137,"",IF(OR(E108="",F108=""),">","")))) ->  | D108: Urinal flushing | G108: =IF(OR(E108="no",B28=R137),0,F108*SUM(G32:G38)) -> 0
G109: Demand met by yield (L/person/day)
F110: Total | G110: =IF((SUM(G107:G108))>G104,G104,SUM(G107:G108)) -> 0
D111: Other permissible components
C112: =IF(AND(OR($G$65=$Q$135,$G$65=$Q$137,$G$65=$Q$138),OR($G$91=$Q$135,$G$91=$Q$137,$G$91=$Q$138)),"",IF(G112=$Q$135,">","")) ->  | F112: Are there other permissible components present which demand greywater and/or rainwater yield? | G112: Please select
G113: Maximum permissible demand (L/day)
G114: =IF(ISERROR(IF(AND(G112="yes",G110>G104),0,(G104-G110)*O149)),Q145,IF(AND(G112="yes",G110>G104),0,(G104-G110)*O149)) -> Requires building information
C115: =IF(AND(OR($G$65=$Q$135,$G$65=$Q$137,$G$65=$Q$138),OR($G$91=$Q$135,$G$91=$Q$137,$G$91=$Q$138)),"",IF(AND(G112=$Q$136,G115=""),">","")) ->  | F115: Proportion of maximum permissible demand utilised by other permissible components (%)
G116: Demand met by yield (L/person/day)
F117: Total | G117: =IF(ISERROR((G115*G114)/O149),Q145,(G115*G114)/O149) -> Requires building information
G119: Greywater and/or rainwater demand met by yield (L/person/day)
F120: Total | G120: =IF(ISERROR(G110+G117),Q145,G110+G117) -> Requires building information
B122: Water consumption calculation results
F124: Litres/person/day | G124: m3/person/yr
E125: Water consumption - modelled baseline performance benchmark (excludes fixed uses) | F125: =IF(ISERROR(R61),Q145,R61) -> Requires building information | G125: =IF(ISERROR((F125/1000)*$F$11),Q145,(F125/1000)*$F$11) -> Requires building information
E127: Microcomponent Water consumption - modelled performance (excludes fixed uses) | F127: =IF(ISERROR(G61-R64),Q145,G61-R64) -> Requires building information | G127: =IF(ISERROR((F127/1000)*$F$11),Q145,(F127/1000)*$F$11) -> Requires building information | N127: Greywater/rainwater data check
N128: =1-(F127-F129)/F125 ->  | O128: % actual improvement
E129: Modelled water demand met via greywater and rainwater sources | F129: =IF(ISERROR(G120),Q145,G120) -> Requires building information | G129: =IF(ISERROR((F129/1000)*$F$11),Q145,(F129/1000)*$F$11) -> Requires building information
N130: =VLOOKUP(N128,'Activity database'!BC4:BD9,2,TRUE) ->  | O130: Credits achieved
E131: If greywater/rainwater systems specified has the minimum % efficiency improvement for component specifications been met | F131: =IF(ISERROR(IF(AND((OR(G91=Q138,G91=Q137)),((OR(G65=Q138,G65=Q137)))),Q138,IF(OR(N130="1 credit",N130="2 credits",N130="3 credits"),Q143,IF(OR(N130="4 credits",N130="5 credits"),(IF((1-(F127/F125))<0.25,"No","Yes")))))),Q145,IF(AND((OR(G91=Q138,G91=Q137)),((OR(G65=Q138,G65=Q137)))),Q138,IF(OR(N130="1 credit",N130="2 credits",N130="3 credits"),Q143,IF(OR(N130="4 credits",N130="5 credits"),(IF((1-(F127/F125))<0.25,"No","Yes")))))) -> Requires building information
E133: Net modelled water consumption (excludes fixed uses) | F133: =IF(ISERROR(IF(OR(F131="Yes",F131=Q138),F127-F129,(F127-((1-(F127/F125))*F129)))),Q145,IF(OR(F131="Yes",F131=Q138),F127-F129,(F127-((1-(F127/F125))*F129)))) -> Requires building information | G133: =IF(ISERROR((F133/1000)*$F$11),Q145,((F133/1000)*$F$11)) -> Requires building information
E135: Percentage improvement | F135: =IF(OR(F125=Q145,F127=Q145,F129=Q145,F131=Q145),Q145,(ROUNDDOWN(IF(OR(F131="yes",F131=Q143,F131=Q138),N128,(IF(F131="No",1-((F127-(F129*(1-(F127/F125))))/F125)))),4))) -> Requires building information | P135: Please select | Q135: Please select | R135: Please select | S135: Please select | T135: 0
O136: Default occupancy rate | P136: Waterless urinals - specified | Q136: Yes | R136: ='Activity database'!I3 -> WC - male (urinals installed) | S136: BS EN 16941-1 'basic approach' | T136: 0.01
E137: Total Wat 01 BREEAM credits achieved, before checking minimum requirements according to EU taxonomy for sustainable finance. | F137: =IF(F135<0,'Activity database'!BD4,(IF(ISERROR(VLOOKUP(F135,'Activity database'!BC4:BD9,2,TRUE)),Q145,VLOOKUP(F135,'Activity database'!BC4:BD9,2,TRUE)))) -> Requires building information | N137: =B14 -> Requires building type definition in calculator | O137: =IF(F14="Yes",VLOOKUP(B14,'Activity database'!A:BC,3,FALSE)*G14,0) -> 0 | P137: Waterless urinals - not specified | Q137: No | R137: ='Activity database'!J3 -> WC - male (no urinals installed) | S137: BS EN 16941-1 'detailed approach' | T137: 0.02
N138: Education - Staff office and adminstration areas | O138: =IF(F15="Yes",VLOOKUP(B15,'Activity database'!A:BC,3,FALSE)*G15,0) -> 0 | Q138: System not specified | T138: 0.03
E139: Total Wat 01 BREEAM credits achieved | F139: =IF(F137="Requires building information","Requires building information",IF(G87="Yes",F137,IF(F137>="1 credit","1 credit","0 credits"))) -> Requires building information
E141: Total Wat 01 BREEAM Exemplary credits achieved | F141: =IF(F135=Q145,Q145,IF(F135>='Activity database'!BC10,"1 innovation credit achieved","Exemplary level not achieved")) -> Requires building information | N141: =B16 -> Education - Common room | O141: =IF(F16="Yes",VLOOKUP(B16,'Activity database'!A:BC,3,FALSE)*G16,0) -> 0 | R141: Please select | T141: 0.04
N142: Education - dining area | O142: =IF(OR(F17=Q137,F17=Q135),0,IF(OR(B11=R142,B11=R143),IF(O137<300,G17*0.9*2*0.025,IF(O137>=300,G17*0.9*3*0.025)),IF(OR(B11=R144,B11=R145),VLOOKUP(B17,'Activity database'!A:BC,3,FALSE)*G17))) -> 0 | R142: ='Activity database'!A17 -> Education - pre-school or primary school | T142: 0.05
E143: Key performance indicator - use of freshwater resource (includes fixed uses) | F143: =IF(ISERROR(F127+R64-F129),Q145,F127+R64-F129) -> Requires building information | G143: =IF(ISERROR((F143/1000)*$F$11),Q145,(F143/1000)*$F$11) -> Requires building information | N143: Requires building type definition in calculator | O143: =IF(F18="Yes",VLOOKUP(B18,'Activity database'!A:BC,3,FALSE)*G18,0) -> 0 | Q143: Not applicable | R143: ='Activity database'!A18 -> Education - secondary school or academy | T143: 0.06
N144: Education - Lecture theatre | O144: =IF(F19="Yes",VLOOKUP(B19,'Activity database'!A:BC,3,FALSE)*G19,0) -> 0 | R144: ='Activity database'!A19 -> Education - sixth form or further education college | T144: 0.07
N145: Education - Study area | O145: =IF(F20="Yes",VLOOKUP(B20,'Activity database'!A:BC,3,FALSE)*G20,0) -> 0 | Q145: Requires building information | R145: ='Activity database'!A20 -> Education - higher education college | T145: 0.08
N146: Education - Workshop | O146: =IF(F21="Yes",VLOOKUP(B21,'Activity database'!A:BC,3,FALSE)*G21,0) -> 0 | T146: 0.09
N147: Education - Information Technology space | O147: =IF(F22="Yes",VLOOKUP(B22,'Activity database'!A:BC,3,FALSE)*G22,0) -> 0 | T147: 0.1
N148: Education - Laboratory | O148: =IF(F23="Yes",VLOOKUP(B23,'Activity database'!A:BC,3,FALSE)*G23,0) -> 0 | T148: 0.11
N149: Total default occupancy | O149: =SUM(O137:O148) -> 0 | T149: 0.12
T150: 0.13
T151: 0.14
T152: 0.15
T153: 0.16
T154: 0.17
T155: 0.18
T156: 0.19
T157: 0.2
T158: 0.21
N159: Note: If greywater is collected from a component/source not accounted for above i.e. their consumption is not estimated, then the amount of greywater collected can be added here so that it may be accounted for. This can include wastewater from active hygiene flushing, i.e. a regular hygiene flushing programme to minimize poor water quality in a potable cold or hot water system. | T159: 0.22
N160: Note: This consumption total accounts for the ratio of male users for this building type i.e. the ratio of building users who will operate the flush. Where more than one type of urinal flushing control is specified in the building, this consumption figure is adjusted by a ratio of use. the ratio is determined according to the proportion of urinals bowls in the building operated using this type of control. | T160: 0.23
N161: Note: Where waterless urinals are specified in the assessed building, for the purpose of the baseline benchmark standard 1.5 litre flush urinals are assumed. Where waterless urinals and another type of urinal flushing control is specified in the building, the baseline consumption figure calculated using a 1.5 litre default flush is adjusted by a ratio of use. The ratio is determined according to the proportion of urinals bowls in the building that are waterless. | T161: 0.24
N162: Note: Please select the relevant option for waterless urinals specification opposite. | T162: 0.25
T163: 0.26
T164: 0.27
T165: 0.28
T166: 0.29
T167: 0.3
T168: 0.31
T169: 0.32
T170: 0.33
T171: 0.34
T172: 0.35
T173: 0.36
T174: 0.37
T175: 0.38
T176: 0.39
T177: 0.4
T178: 0.41
T179: 0.42
T180: 0.43
T181: 0.44
T182: 0.45
T183: 0.46
T184: 0.47
T185: 0.48
T186: 0.49
T187: 0.5
T188: 0.51
T189: 0.52
T190: 0.53
T191: 0.54
T192: 0.55
T193: 0.56
T194: 0.57
T195: 0.58
T196: 0.59
T197: 0.6
T198: 0.61
T199: 0.62
T200: 0.63
T201: 0.64
T202: 0.65
T203: 0.66
T204: 0.67
T205: 0.68
T206: 0.69
T207: 0.7
T208: 0.71
T209: 0.72
T210: 0.73
T211: 0.74
T212: 0.75
T213: 0.76
T214: 0.77
T215: 0.78
T216: 0.79
T217: 0.8
T218: 0.81
T219: 0.82
T220: 0.83
T221: 0.84
T222: 0.85
T223: 0.86
T224: 0.87
T225: 0.88
T226: 0.89
T227: 0.9
T228: 0.91
... 9 more rows

Sheet Multi-residential calculator (hidden)

Sheet Other building type calculator (hidden)
B2: BREEAM-NOR v6.1 Wat 01 Water consumption: Other building type calculator
A4: =IF(OR(Wat01_building_type="",Wat01_building_type=C151),"→","") -> → | B4: Please select the option that best defines the building type being assessed | D4: Please select | I4: Please specify/describe the building type being assessed: | M4: g | Q4: =IF(AND(M4="",OR(Wat01_building_type=C163,Wat01_building_type=C162)),"←","") -> 
B5: =IF(AND(Wat01_building_type=C163,OR(D5=$H$130,D5="")),"→","") ->  | C5: Are urinals specified in this residential building type? | D5: No | E5: What is the proportion of urinals to WCs (%) | I5: 0 | J5: =IF(AND(Wat01_building_type=C163,I5=""),"←","") -> 
B6: =IF(AND(Wat01_building_type=C163,OR(D6=$H$130,D6="")),"→","") ->  | C6: Please confirm the shower/bath arrangement for this residential building type | D6: Shower only
B8: Water consumption - building microcomponents
D10: WC | E10: Urinal (2 or more urinals) | F10: Urinal (1 urinal only) | G10: Wash hand basin taps | H10: Showers | I10: Baths | J10: Kitchen taps: kitchenette | K10: Domestic sized washing machines | L10: Domestic sized dishwashers | M10: Kitchen taps: restaurant (pre-rinse nozzles only) | N10: Waste disposal unit (commercial kitchens only) | O10: Commercial sized dishwashers | P10: Commercial or industrial sized washing machines
B11: Component assessed for building type (if specified) | D11: =IF(D117="Applicable","Yes","No") -> Yes | E11: =IF(E117="Applicable", "Yes", "No") -> Yes | F11: =IF(F117="Applicable", "Yes", "No") -> Yes | G11: =IF(G117="Applicable","Yes","No") -> Yes | H11: Yes | I11: =IF(I117="Applicable","Yes","No") -> Yes | J11: Yes | K11: Yes | L11: =IF(L117="Applicable","Yes","No") -> Yes | M11: Yes | N11: Yes | O11: Yes | P11: Yes | Q11: Note: Some water consuming microcomponents covered by BREEAM are typically not present in some building types e.g. no baths will be specified in a law court, and therefore these components do not require assessment under Wat01 using this calculation method. The components applicable are indicated opposite. As a result the credits are assessed and awarded on the basis of the performance specification for the components that could potentially be specified (if the methodology confirms the component is applicable, but that component is not specified, then the user must confirm this in the relative cell opposite). In some instances a component may be specified and present but its contribution to overall water consumption may be low, as a result its contribution to achieving BREEAM credits will be low. Likewise, those consuming a significant majority of the water use for a given building type will contribute a greater amount toward achieving BREEAM credits (depending on the component level achieved).This contribution can be checked for each applicable and specified component by referring to the component weighting factors, below. Refer to table - 8.3 in the BREEAM Technical Guide (section 8.0 Water, Wat01 Methodology section) for the performance of the various water efficient component levels.
B12: Please confirm if this component type is specified in the building and will be installed | D12: Please select | E12: Not Specified | F12: Not Specified | G12: Please select | H12: Please select | I12: Not Specified | J12: Please select | K12: Please select | L12: Please select | M12: Please select | N12: Please select | O12: Please select | P12: Please select
B13: Please select the number of different types of specification that you wish to enter for this component type? | D13: Please select | G13: Please select | H13: Please select | J13: Please select | K13: Please select | L13: Please select | M13: Please select | N13: Please select | O13: Please select | P13: Please select
D14: =IF(D12=$H$142,"",IF(AND(D11=$H$131,OR(D12=$H$130,D13=$H$130)),"↑","")) -> ↑ | G14: ↑ | H14: ↑ | J14: ↑ | K14: ↑ | L14: ↑ | M14: ↑ | N14: ↑ | O14: ↑ | P14: ↑
B15: Type 1 | C15: Water component performance - Type 1
C16: Units | D16: litres | E16: litres/bowl/hr | F16: litres/bowl/hr | G16: litres/min | H16: litres/min | I16: litres | J16: litres/min | K16: litres/use | L16: litres/cycle | M16: litres/min | N16: litres/min | O16: litres/rack | P16: litres/kg
C17: Please confirm the no. of type 1 components specified
D18: =IF(OR(D$11=$H$132,D$12=$H$142),"",IF(D15=$H$130,"↑",IF(AND(D$13>1,OR(D15=$H$130,D17="")),"↑",""))) -> ↑ | E18: =IF(OR(E11=$H$132,E12=$H$142),"",IF(E15=$H$130,"↑",IF(AND(E13>1,OR(E15=$H$130,E17="")),"↑",""))) ->  | G18: ↑ | H18: ↑ | J18: ↑ | K18: ↑ | L18: ↑ | M18: ↑ | N18: ↑ | O18: ↑ | P18: ↑
B19: Type 2 | C19: Water component performance - Type 2
C20: Units | D20: litres | E20: litres/bowl/hour | F20: litres/bowl/hour | G20: litres/min | H20: litres/min | I20: litres | J20: litres/min | K20: litres/use | L20: litres/cycle | M20: litres/min | N20: litres/min | O20: litres/rack | P20: litres/kg
C21: Please confirm the no. of type 2 components specified
D22: =IF(OR(D$11=$H$132,D$12=$H$142),"",IF(AND(D$13>1,OR(D19=$H$130,D21="")),"↑","")) -> ↑ | G22: ↑ | H22: ↑ | J22: ↑ | K22: ↑ | L22: ↑ | M22: ↑ | N22: ↑ | O22: ↑ | P22: ↑
B23: Type 3 | C23: Water component perfomance - Type 3
C24: Units | D24: litres | E24: litres/bowl/hour | F24: litres/bowl/hour | G24: litres/min | H24: litres/min | I24: litres | J24: litres/min | K24: litres/use | L24: litres/cycle | M24: litres/min | N24: litres/min | O24: litres/rack | P24: litres/kg
C25: Please confirm the no. of type 3 components specified
D26: =IF(OR(D$11=$H$132,D$12=$H$142),"",IF(AND(D$13>2,OR(D23=$H$130,D25="")),"↑","")) -> ↑ | G26: ↑ | H26: ↑ | J26: ↑ | K26: ↑ | L26: ↑ | M26: ↑ | N26: ↑ | O26: ↑ | P26: ↑
B27: Type 4 | C27: Water component performance - Type 4
C28: Units | D28: litres | E28: litres/bowl/hour | F28: litres/bowl/hour | G28: litres/min | H28: litres/min | I28: litres | J28: litres/min | K28: litres/use | L28: litres/cycle | M28: litres/min | N28: litres/min | O28: litres/rack | P28: litres/kg
C29: Please confirm the no. of type 4 components specified
D30: =IF(OR(D$11=$H$132,D$12=$H$142),"",IF(AND(D$13>3,OR(D27=$H$130,D29="")),"↑","")) -> ↑ | G30: ↑ | H30: ↑ | J30: ↑ | K30: ↑ | L30: ↑ | M30: ↑ | N30: ↑ | O30: ↑ | P30: ↑
B31: Type 5 | C31: Water component performance - Type 5
C32: Units | D32: litres | E32: litres/bowl/hour | F32: litres/bowl/hour | G32: litres/min | H32: litres/min | I32: litres | J32: litres/min | K32: litres/use | L32: litres/cycle | M32: litres/min | N32: litres/min | O32: litres/rack | P32: litres/kg
C33: Please confirm the no. of type 5 components specified
D34: =IF(OR(D$11=$H$132,D$12=$H$142),"",IF(AND(D$13>4,OR(D31=$H$130,D33="")),"↑","")) -> ↑ | G34: ↑ | H34: ↑ | J34: ↑ | K34: ↑ | L34: ↑ | M34: ↑ | N34: ↑ | O34: ↑ | P34: ↑
B35: Type 6 | C35: Water component performance - Type 6
C36: Units | D36: litres | E36: litres/bowl/hour | F36: litres/bowl/hour | G36: litres/min | H36: litres/min | I36: litres | J36: litres/min | K36: litres/use | L36: litres/cycle | M36: litres/min | N36: litres/min | O36: litres/rack | P36: litres/kg
C37: Please confirm the no. of type 6 components specified
D38: =IF(OR(D$11=$H$132,D$12=$H$142),"",IF(AND(D$13>5,OR(D35=$H$130,D37="")),"↑","")) -> ↑ | G38: ↑ | H38: ↑ | J38: ↑ | K38: ↑ | L38: ↑ | M38: ↑ | N38: ↑ | O38: ↑ | P38: ↑
B39: Type 7 | C39: Water component performance - Type 7
C40: Units | D40: litres | E40: litres/bowl/hour | F40: litres/bowl/hour | G40: litres/min | H40: litres/min | I40: litres | J40: litres/min | K40: litres/use | L40: litres/cycle | M40: litres/min | N40: litres/min | O40: litres/rack | P40: litres/kg
C41: Please confirm the no. of type 7 components specified
D42: =IF(OR(D$11=$H$132,D$12=$H$142),"",IF(AND(D$13>7,OR(D39=$H$130,D41="")),"↑","")) -> ↑ | G42: ↑ | H42: ↑ | J42: ↑ | K42: ↑ | L42: ↑ | M42: ↑ | N42: ↑ | O42: ↑ | P42: ↑
B43: Type 8 | C43: Water component performance - Type 8
C44: Units | D44: litres | E44: litres/bowl/hour | F44: litres/bowl/hour | G44: litres/min | H44: litres/min | I44: litres | J44: litres/min | K44: litres/use | L44: litres/cycle | M44: litres/min | N44: litres/min | O44: litres/rack | P44: litres/kg
C45: Please confirm the no. of type 8 components specified
B47: Total number of fittings for water component | D47: =IF(D13=1,D17,IF(D13=2,D17+D21,IF(D13=3,D17+D21+D25,IF(D13=4,D17+D21+D25+D29,IF(D13=5,D17+D21+D25+D29+D33,IF(D13=6,D17+D21+D25+D29+D33+D37,IF(D13=7,D17+D21+D25+D29+D33+D37+D41,IF(D13=8,D17+D21+D25+D29+D33+D37+D41+D45,"-")))))))) -> - | E47: - | F47: - | G47: - | H47: - | I47: - | J47: - | K47: - | L47: - | M47: - | N47: - | O47: - | P47: -
B49: Averaged water components performance | D49: =IFERROR(((D15*D17)+(D19*D21)+(D23*D25)+(D27*D29)+(D31*D33)+(D35*D37)+(D39*D41)+(D43*D45))/D47,0) -> 0 | E49: 0 | F49: 0 | G49: 0 | H49: 0 | I49: 0 | J49: 0 | K49: 0 | L49: 0 | M49: 0 | N49: 0 | O49: 0 | P49: 0
B51: Level achieved for water component type | D51: =IF(D47="-","-",IF(D49>D$123,"-",(IF(D49>D$124,"Baseline",(IF(D49>D$125,$C$124,(IF(D49>D$126,$C$125,(IF(D49>D$127,$C$126,(IF(D49>D$128,$C$127,$C$128)))))))))))) -> - | E51: - | F51: - | G51: - | H51: - | I51: - | J51: - | K51: - | L51: - | M51: - | N51: - | O51: - | P51: -
B53: Component weighting factor for building type | D53: =D120 -> N/A | E53: =E120 -> N/A | F53: =F120 -> N/A | G53: =G120 -> N/A | H53: =H120 -> N/A | I53: =I120 -> N/A | J53: N/A | K53: N/A | L53: N/A | M53: N/A | N53: N/A | O53: N/A | P53: N/A
B55: Contribution to overall component level achieved | D55: =IF(ISERROR(IF(OR(D11=$H$132,D12=$H$142),"-",IF(D53="N/A","-",D51*D53))),"-",IF(OR(D11=$H$132,D12=$H$142),"-",IF(D53="N/A","-",D51*D53))) -> - | E55: - | F55: - | G55: - | H55: - | I55: - | J55: - | K55: - | L55: - | M55: - | N55: - | O55: - | P55: -
B57: Overall component level achieved | D57: =(IF(ISERROR(IF((SUM(D55:P55))<1,$C$123,(SUM(D55:P55)))),C144,IF(ROUND(SUM(D55:P55),3)<1,$C$123,ROUND(SUM(D55:P55),3)))) -> Baseline | E57: Note: for the purpose of awarding credits this figure is rounded down to the nearest whole component level, e.g. if the total from the individual component levels is 0.7, then the component level achieved is 'Baseline', not Level 1.
B59: Minimum requirements according to EU taxonomy for sustainable finance
A60: =IF(OR(G60="",G60="Please select"),"→","") -> → | F60: Do all the installed wash hand basin taps and kitchen taps have a maximum water flow of 6 litres/min? | G60: Please select
A61: =IF(OR(G61="",G61="Please select"),"→","") -> → | F61: Do all the installed showers have a maximum water flow of 8 litres/min? | G61: Please select
A62: → | F62: Do all WCs, including suites, bowls and flushing cisterns, have a full flush volume of a maximum of 6 litres and a maximum average flush volume of 3,5 litres? | G62: Please select
A63: → | F63: Do all urinals use a maximum of 2 litres/bowl/hour and flushing urinals have a maximum full flush volume of 1 litre? | G63: Please select
F64: Is all the EU taxonomy requirements for sanitary equipment met? | G64: =IF(OR(G60="Please select",G60="No"),"No",IF(OR(G61="Please Select",G61="No"),"No",IF(OR(G62="Please Select",G62="No"),"No",IF(OR(G63="Please Select",G63="No"),"No","Yes")))) -> No
B67: Non potable water yield - water recycling
A69: =IF(OR(H69="",H69=$H$130),"→","") -> → | B69: Greywater system specified and installed in compliance with BS8525-1:2010 Greywater Systems - Part 1 Code of Practice | H69: Please select
A71: =IF(OR(H71="",H71=$H$130),"→","") -> → | B71: Rainwater system specified and installed in compliance with BS EN 16941-1:2018 Rainwater Harvesting Systems - Code of practice | H71: Please select
A73: =IF(OR(H73="",H73=$H$130),"→","") -> → | B73: Other permissible source of non potable recycled water | H73: Please select
B74: Please give a brief description of source/system | H74: e.g. waste water from building process
B76: Please select from the drop down list below how you would like to assess performance of the specified system(s) and then enter the relevant % opposite:
A77: =IF(AND(OR(B77=H130,H77=""),OR(H69=H131,H71=H131,H73=H131)),"→","") ->  | B77: Please select | I77: Note: input figure to two decimal places only.
B79: BREEAM component level achieved for water recycling | H79: =IF(H77>=0.75,5,IF(H77>=0.5,4,IF(H77>=0.25,3,IF(OR(H77=0,H77=""),J140,IF(H77<0.25,$J$146))))) -> Baseline | I79: Note: credits only available for achieving BREEAM component level 4 or 5 in the elemental method.
B81: Wat 01 results
E83: Total Wat 01 BREEAM credits achieved, before checking minimum requirements according to EU taxonomy for sustainable finance. | F83: =IF(ISERROR(J150),C144,J150) -> 0
B85: Total Wat 01 BREEAM credits achieved | F85: =IF(Wat01_building_type="Residential - for instance apartment blocks","Not relevant. See above",IF(F83="Requires building information","Requires building information",IF(G64="Yes",F83,IF(F83>=1,1,0)))) -> 0
B87: Total Wat 01 BREEAM Exemplary credits achieved | D87: Total Wat 01 BREEAM Exemplary credits achieved | F87: =IF(AND(D51=5,H77>0.95),1,0) -> 0
C90: Component weighting factors by building type | D90: 2 | E90: 3 | F90: 4 | G90: 5 | H90: 6 | I90: 7 | J90: 8 | K90: 9 | L90: 10 | M90: 11 | N90: 12 | O90: 13 | P90: 14
C91: Building type | D91: WC | E91: Urinal | G91: Basin taps | H91: Shower | I91: Bath | J91: Staff/residents Kitchen taps | K91: Domestic washing machine | L91: Domestic dishwasher | M91: Kitchen taps (pre-rinse nozzle | N91: Waste disposal | O91: Commercial Kitchen dishwasher | P91: Commercial Washing machine | Q91: Total | R91: Units | S91: Information source
D92: 36.35 | E92: 3.5 | G92: 15.42 | H92: 42 | I92: 36 | J92: 4.77 | K92: N/A | L92: 0.34 | M92: 4.94 | N92: 4.08 | O92: 8 | P92: 49.82 | Q92: =SUM(D92:P92) -> 205.22 | R92: L/room/day | S92: BD2683 modelled baseline for building type
C93: Residential institution - Hotel | D93: =D92/$Q$92 -> 0.1771269857 | E93: =E92/$Q$92 -> 0.01705486795 | G93: =G92/$Q$92 -> 0.07513887535 | H93: =H92/$Q$92 -> 0.2046584154 | I93: =I92/$Q$92 -> 0.1754214989 | J93: =J92/$Q$92 -> 0.0232433486 | K93: N/A | L93: =L92/$Q$92 -> 0.001656758601 | M93: =M92/$Q$92 -> 0.0240717279 | N93: =N92/$Q$92 -> 0.01988110321 | O93: =O92/$Q$92 -> 0.03898255531 | P93: =P92/$Q$92 -> 0.2427638632 | Q93: =SUM(D93:P93) -> 1
D94: =D92 -> 36.35 | E94: =E92 -> 3.5 | G94: 15.42 | H94: 42 | I94: 36 | J94: 4.77 | K94: N/A | L94: 0.34 | M94: 4.94 | N94: 4.08 | O94: 8 | P94: 49.82 | Q94: =Q92 -> 205.22 | R94: L/room/day | S94: BD2683 modelled baseline for building type
C95: Prisons - Houseblock | D95: =D93 -> 0.1771269857 | E95: =E93 -> 0.01705486795 | G95: 0.07513887535 | H95: 0.2046584154 | I95: 0.1754214989 | J95: 0.0232433486 | K95: N/A | L95: 0.001656758601 | M95: 0.0240717279 | N95: 0.01988110321 | O95: 0.03898255531 | P95: 0.2427638632 | Q95: =Q93 -> 1
D96: =D92 -> 36.35 | E96: =E92 -> 3.5 | G96: 15.42 | H96: 42 | I96: 36 | J96: 4.77 | K96: N/A | L96: 0.34 | M96: 4.94 | N96: 4.08 | O96: 8 | P96: 49.82 | Q96: =Q92 -> 205.22
C97: Healthcare - hospital | D97: =D93 -> 0.1771269857 | E97: =E93 -> 0.01705486795 | G97: 0.07513887535 | H97: 0.2046584154 | I97: 0.1754214989 | J97: 0.0232433486 | K97: N/A | L97: 0.001656758601 | M97: 0.0240717279 | N97: 0.01988110321 | O97: 0.03898255531 | P97: 0.2427638632 | Q97: =Q93 -> 1 | R97: See information source | S97: No specific data found by type for healthcare, therefore for hospitals data from hotels has been used as, of all building types with data, this is assumed to reflect most closely the breakdown in consumption between the microcomponent type for hospitals
D98: =D112 -> 187.9830696 | E98: =E112 -> 28.19746043 | G98: 121.562385 | H98: 151.26371 | I98: FALSE | J98: 68.17519323 | K98: N/A | L98: 8.521899153 | M98: 77.44902466 | N98: 28.19746043 | O98: 9.649797571 | P98: 0 | Q98: =Q112 -> 681 | R98: See information source
C99: Healthcare - GP surgery or health centre/clinic | D99: =D113 -> 0.2760397497 | E99: =E113 -> 0.04140596246 | G99: 0.1785057048 | H99: 0.2221199853 | I99: N/A | J99: 0.1001104159 | K99: N/A | L99: 0.01251380199 | M99: 0.1137283769 | N99: 0.04140596246 | O99: 0.01417004049 | P99: N/A | Q99: =Q113 -> 1 | S99: No specific data found by type for healthcare, therefore the same splits in component types as that used for 'other non domestic building type' are used.
D100: 3.665 | E100: 0.885 | G100: 2.08 | H100: N/A | I100: N/A | J100: N/A | K100: N/A | L100: N/A | M100: 0.054 | N100: N/A | O100: 0.067 | P100: N/A | Q100: =SUM(D100:P100) -> 6.751
C101: Assembly and leisure - cinema | D101: =D100/$Q$100 -> 0.5428825359 | E101: =E100/$Q$100 -> 0.1310916901 | G101: =G100/$Q$100 -> 0.3081025033 | H101: N/A | I101: N/A | J101: N/A | K101: N/A | L101: N/A | M101: =M100/$Q$100 -> 0.00799881499 | N101: N/A | O101: =O100/$Q$100 -> 0.009924455636 | P101: N/A | Q101: 1 | S101: BD2683 modelled baseline for building type
D102: 3.665 | E102: 0.885 | G102: 2.08 | H102: N/A | I102: N/A | J102: N/A | K102: N/A | L102: N/A | M102: 0.054 | N102: N/A | O102: 0.067 | P102: N/A | Q102: 6.751 | R102: Litres/visitor/day
C103: Assembly and leisure - theatre, music, concert hall | D103: =D100/$Q$100 -> 0.5428825359 | E103: =E100/$Q$100 -> 0.1310916901 | G103: =G100/$Q$100 -> 0.3081025033 | H103: N/A | I103: N/A | J103: N/A | K103: N/A | L103: N/A | M103: =M100/$Q$100 -> 0.00799881499 | N103: N/A | O103: =O100/$Q$100 -> 0.009924455636 | P103: N/A | Q103: 1 | S103: BD2683 modelled baseline for building type
D104: 44.1 | E104: 11 | G104: 7.41 | H104: 74.2 | I104: N/A | J104: 5.87 | K104: N/A | L104: N/A | M104: 2.47 | N104: 3.63 | O104: 4 | P104: N/A | Q104: 152.68 | R104: L/employee or visit/day
C105: Assembly and Leisure - sports and recreation | D105: =D104/$Q$104 -> 0.2888394027 | E105: =E104/$Q$104 -> 0.07204610951 | G105: =G104/$Q$104 -> 0.04853287922 | H105: =H104/$Q$104 -> 0.4859837569 | I105: N/A | J105: =J104/$Q$104 -> 0.03844642389 | K105: N/A | L105: N/A | M105: =M104/$Q$104 -> 0.01617762641 | N105: =N104/$Q$104 -> 0.02377521614 | O105: =O104/$Q$104 -> 0.02619858528 | P105: N/A | Q105: 1 | S105: BD2683 modelled baseline for building type. Data for food preparation components has been taken from restaurant data as no specific data for these components in BD2683 for leisure centres.
D106: =D96*0.4 -> 14.54 | E106: =E96*0.4 -> 1.4 | G106: =G96*0.4 -> 6.168 | H106: N/A | I106: N/A | J106: N/A | K106: N/A | L106: N/A | M106: N/A | N106: N/A | O106: =O96*0.4 -> 3.2 | P106: N/A | Q106: 25.308 | R106: L/employee or visitor/day
C107: Retail - Bar/Public House only (no restaurant) | D107: =D106/$Q$106 -> 0.5745218903 | E107: =E106/$Q$106 -> 0.05531847637 | G107: =G106/$Q$106 -> 0.2437174016 | H107: N/A | I107: N/A | J107: N/A | K107: N/A | L107: N/A | M107: N/A | N107: N/A | O107: =O106/$Q$106 -> 0.1264422317 | P107: N/A | Q107: 1 | S107: BD2683 modelled 'business as usual' approach. Figures are 40% of corresponding component figures for restaurant use (as indicated by table K3)
D108: =D96*0.7 -> 25.445 | E108: =E96*0.7 -> 2.45 | G108: =G96*0.7 -> 10.794 | H108: N/A | I108: N/A | J108: N/A | K108: N/A | L108: N/A | M108: =M96*0.7 -> 3.458 | N108: =N96*0.7 -> 2.856 | O108: =O96*0.7 -> 5.6 | P108: N/A | Q108: 50.603 | R108: L/employee or visitor/day
C109: Retail - Bar/public house with restaurant | D109: =D108/$Q$108 -> 0.5028358002 | E109: =E108/$Q$108 -> 0.04841610181 | G109: =G108/$Q$108 -> 0.2133075114 | H109: N/A | I109: N/A | J109: N/A | K109: N/A | L109: N/A | M109: =M108/$Q$108 -> 0.06833586941 | N109: =N108/$Q$108 -> 0.05643934154 | O109: =O108/$Q$108 -> 0.1106653756 | P109: N/A | Q109: 1 | S109: BD2683 modelled 'business as usual' approach. Figures are 70% of corresponding component figures for restaurant use (as indicated by table K3)
D110: =D112 -> 187.9830696 | E110: =E112 -> 28.19746043 | G110: 121.562385 | H110: 151.26371 | I110: FALSE | J110: 68.17519323 | K110: N/A | L110: 8.521899153 | M110: 77.44902466 | N110: 28.19746043 | O110: 9.649797571 | P110: 0 | Q110: =Q112 -> 681 | R110: See information source
C111: Public - Law Court | D111: =D113 -> 0.2760397497 | E111: =E113 -> 0.04140596246 | G111: 0.1785057048 | H111: 0.2221199853 | I111: N/A | J111: 0.1001104159 | K111: N/A | L111: 0.01251380199 | M111: 0.1137283769 | N111: 0.04140596246 | O111: 0.01417004049 | P111: N/A | Q111: =Q113 -> 1 | S111: No specific data available/found for this building type, therefore it uses the same ratios as that for 'Other non-domestic building type'
D112: 187.9830696 | E112: 28.19746043 | G112: 121.562385 | H112: 151.26371 | I112: =I114 -> FALSE | J112: 68.17519323 | K112: N/A | L112: 8.521899153 | M112: 77.44902466 | N112: 28.19746043 | O112: 9.649797571 | P112: 0 | Q112: =SUM(D112:P112) -> 681 | R112: Mega litres/day | S112: WC, urinals, shower, basin taps and kitchen taps are sourced from BNWat22.
C113: Other Non-Domestic Building Type | D113: =SUM(D112/$Q$112) -> 0.2760397497 | E113: =SUM(E112/$Q$112) -> 0.04140596246 | G113: =SUM(G112/$Q$112) -> 0.1785057048 | H113: =SUM(H112/$Q$112) -> 0.2221199853 | I113: N/A | J113: =SUM(J112/$Q$112) -> 0.1001104159 | K113: N/A | L113: =SUM(L112/$Q$112) -> 0.01251380199 | M113: =SUM(M112/$Q$112) -> 0.1137283769 | N113: =SUM(N112/$Q$112) -> 0.04140596246 | O113: =SUM(O112/$Q$112) -> 0.01417004049 | P113: N/A | Q113: =SUM(D113:P113) -> 1
D114: =IF(E114=C131,2103,2103-E114) -> 2103 | E114: =IF(D5=H131,(2103*0.5/4)*3*I5,"N/A") -> N/A | G114: 1818 | H114: =IF(D6=C167,2151,IF(D6=C166,"N/A",IF(D6=C168,2151*0.89))) -> FALSE | I114: =IF(D6=C166,2151,IF(D6=C167,"N/A",IF(D6=C168,2151*0.11))) -> FALSE | J114: 1191 | K114: 841 | L114: 95 | M114: =8199*M93 -> 197.3640971 | N114: =8199*N93 -> 163.0051652 | O114: =8199*O93 -> 319.617971 | P114: =8199*P93 -> 1990.420914 | Q114: =SUM(D114:P114) -> 8718.408147 | R114: Mega litres/day | S114: See comment.
C115: Residential - for instance apartment blocks | D115: =D114/$Q$114 -> 0.2412137588 | E115: =IF(E114="N/A","N/A",E114/$Q$114) -> N/A | G115: =G114/$Q$114 -> 0.208524305 | H115: =IF(D6=C166,"N/A",H114/$Q$114) -> 0 | I115: =IF(D6=C167,"N/A",I114/$Q$114) -> 0 | J115: =J114/$Q$114 -> 0.1366075068 | K115: 0.09646256355 | L115: 0.01089648459 | M115: 0.02263762991 | N115: 0.018696666 | O115: 0.03666012941 | P115: 0.2283009559 | Q115: =SUM(D115:P115) -> 1
S116: Note: The Baseline scenario utilises devices that comply with current building regulations.
D117: =IF(ISERROR(IF(OR(Wat01_building_type="",Wat01_building_type=$H$130),"Applicable",IF(VLOOKUP(Wat01_building_type,$C$91:$P$115,2,FALSE)="N/A","Not Applicable","Applicable"))),"-",IF(OR(Wat01_building_type="",Wat01_building_type=$H$130),"Applicable",IF(VLOOKUP(Wat01_building_type,$C$91:$P$115,2,FALSE)="N/A","Not Applicable","Applicable"))) -> Applicable | E117: =IF(ISERROR(IF(OR(Wat01_building_type="",Wat01_building_type=$H$130),"Applicable",IF(VLOOKUP(Wat01_building_type,$C$91:$P$115,3,FALSE)="N/A","Not Applicable","Applicable"))),"-",IF(OR(Wat01_building_type="",Wat01_building_type=$H$130),"Applicable",IF(VLOOKUP(Wat01_building_type,$C$91:$P$115,3,FALSE)="N/A","Not Applicable","Applicable"))) -> Applicable | F117: =IF(ISERROR(IF(OR(Wat01_building_type="",Wat01_building_type=$H$130),"Applicable",IF(VLOOKUP(Wat01_building_type,$C$91:$P$115,3,FALSE)="N/A","Not Applicable","Applicable"))),"-",IF(OR(Wat01_building_type="",Wat01_building_type=$H$130),"Applicable",IF(VLOOKUP(Wat01_building_type,$C$91:$P$115,3,FALSE)="N/A","Not Applicable","Applicable"))) -> Applicable | G117: =IF(ISERROR(IF(OR(Wat01_building_type="",Wat01_building_type=$H$130),"Applicable",IF(VLOOKUP(Wat01_building_type,$C$91:$P$115,5,FALSE)="N/A","Not Applicable","Applicable"))),"-",IF(OR(Wat01_building_type="",Wat01_building_type=$H$130),"Applicable",IF(VLOOKUP(Wat01_building_type,$C$91:$P$115,5,FALSE)="N/A","Not Applicable","Applicable"))) -> Applicable | H117: =IF(ISERROR(IF(OR(Wat01_building_type="",Wat01_building_type=$H$130),"Applicable",IF(VLOOKUP(Wat01_building_type,$C$91:$P$115,6,FALSE)="N/A","Not Applicable","Applicable"))),"-",IF(OR(Wat01_building_type="",Wat01_building_type=$H$130),"Applicable",IF(VLOOKUP(Wat01_building_type,$C$91:$P$115,6,FALSE)="N/A","Not Applicable","Applicable"))) -> Applicable | I117: =IF(ISERROR(IF(OR(Wat01_building_type="",Wat01_building_type=$H$130),"Applicable",IF(VLOOKUP(Wat01_building_type,$C$91:$P$115,7,FALSE)="N/A","Not Applicable","Applicable"))),"-",IF(OR(Wat01_building_type="",Wat01_building_type=$H$130),"Applicable",IF(VLOOKUP(Wat01_building_type,$C$91:$P$115,7,FALSE)="N/A","Not Applicable","Applicable"))) -> Applicable | J117: =IF(ISERROR(IF(OR(Wat01_building_type="",Wat01_building_type=$H$130),"Applicable",IF(VLOOKUP(Wat01_building_type,$C$91:$P$115,8,FALSE)="N/A","Not Applicable","Applicable"))),"-",IF(OR(Wat01_building_type="",Wat01_building_type=$H$130),"Applicable",IF(VLOOKUP(Wat01_building_type,$C$91:$P$115,8,FALSE)="N/A","Not Applicable","Applicable"))) -> Applicable | K117: =IF(ISERROR(IF(OR(Wat01_building_type="",Wat01_building_type=$H$130),"Applicable",IF(VLOOKUP(Wat01_building_type,$C$91:$P$115,9,FALSE)="N/A","Not Applicable","Applicable"))),"-",IF(OR(Wat01_building_type="",Wat01_building_type=$H$130),"Applicable",IF(VLOOKUP(Wat01_building_type,$C$91:$P$115,9,FALSE)="N/A","Not Applicable","Applicable"))) -> Applicable | L117: =IF(ISERROR(IF(OR(Wat01_building_type="",Wat01_building_type=$H$130),"Applicable",IF(VLOOKUP(Wat01_building_type,$C$91:$P$115,10,FALSE)="N/A","Not Applicable","Applicable"))),"-",IF(OR(Wat01_building_type="",Wat01_building_type=$H$130),"Applicable",IF(VLOOKUP(Wat01_building_type,$C$91:$P$115,10,FALSE)="N/A","Not Applicable","Applicable"))) -> Applicable | M117: =IF(ISERROR(IF(OR(Wat01_building_type="",Wat01_building_type=$H$130),"Applicable",IF(VLOOKUP(Wat01_building_type,$C$91:$P$115,11,FALSE)="N/A","Not Applicable","Applicable"))),"-",IF(OR(Wat01_building_type="",Wat01_building_type=$H$130),"Applicable",IF(VLOOKUP(Wat01_building_type,$C$91:$P$115,11,FALSE)="N/A","Not Applicable","Applicable"))) -> Applicable | N117: =IF(ISERROR(IF(OR(Wat01_building_type="",Wat01_building_type=$H$130),"Applicable",IF(VLOOKUP(Wat01_building_type,$C$91:$P$115,12,FALSE)="N/A","Not Applicable","Applicable"))),"-",IF(OR(Wat01_building_type="",Wat01_building_type=$H$130),"Applicable",IF(VLOOKUP(Wat01_building_type,$C$91:$P$115,12,FALSE)="N/A","Not Applicable","Applicable"))) -> Applicable | O117: =IF(ISERROR(IF(OR(Wat01_building_type="",Wat01_building_type=$H$130),"Applicable",IF(VLOOKUP(Wat01_building_type,$C$91:$P$115,13,FALSE)="N/A","Not Applicable","Applicable"))),"-",IF(OR(Wat01_building_type="",Wat01_building_type=$H$130),"Applicable",IF(VLOOKUP(Wat01_building_type,$C$91:$P$115,13,FALSE)="N/A","Not Applicable","Applicable"))) -> Applicable | P117: =IF(ISERROR(IF(OR(Wat01_building_type="",Wat01_building_type=$H$130),"Applicable",IF(VLOOKUP(Wat01_building_type,$C$91:$P$115,14,FALSE)="N/A","Not Applicable","Applicable"))),"-",IF(OR(Wat01_building_type="",Wat01_building_type=$H$130),"Applicable",IF(VLOOKUP(Wat01_building_type,$C$91:$P$115,14,FALSE)="N/A","Not Applicable","Applicable"))) -> Applicable | S117: Note: water consumption from ice makers in restaurants, hotels and bars not included in the data
C119: Component weightings for selected building type | D119: =IF(AND(D11=$H$131,D12=$H$141),VLOOKUP(Wat01_building_type,$C$91:$P$115,2,FALSE),"N/A") -> N/A | E119: =IF(AND(E11=$H$131,E12=$H$141),VLOOKUP(Wat01_building_type,$C$91:$P$115,3,FALSE),"N/A") -> N/A | F119: =IF(AND(F11=$H$131,F12=$H$141),VLOOKUP(Wat01_building_type,$C$91:$P$115,3,FALSE),"N/A") -> N/A | G119: =IF(AND(G11=$H$131,G12=$H$141),VLOOKUP(Wat01_building_type,$C$91:$P$115,5,FALSE),"N/A") -> N/A | H119: =IF(AND(H11=$H$131,H12=$H$141),VLOOKUP(Wat01_building_type,$C$91:$P$115,6,FALSE),"N/A") -> N/A | I119: =IF(AND(I11=$H$131,I12=$H$141),VLOOKUP(Wat01_building_type,$C$91:$P$115,7,FALSE),"N/A") -> N/A | J119: =IF(AND(J11=$H$131,J12=$H$141),VLOOKUP(Wat01_building_type,$C$91:$P$115,8,FALSE),"N/A") -> N/A | K119: =IF(AND(K11=$H$131,K12=$H$141),VLOOKUP(Wat01_building_type,$C$91:$P$115,9,FALSE),"N/A") -> N/A | L119: =IF(AND(L11=$H$131,L12=$H$141),VLOOKUP(Wat01_building_type,$C$91:$P$115,10,FALSE),"N/A") -> N/A | M119: =IF(AND(M11=$H$131,M12=$H$141),VLOOKUP(Wat01_building_type,$C$91:$P$115,11,FALSE),"N/A") -> N/A | N119: =IF(AND(N11=$H$131,N12=$H$141),VLOOKUP(Wat01_building_type,$C$91:$P$115,12,FALSE),"N/A") -> N/A | O119: =IF(AND(O11=$H$131,O12=$H$141),VLOOKUP(Wat01_building_type,$C$91:$P$115,13,FALSE),"N/A") -> N/A | P119: =IF(AND(P11=$H$131,P12=$H$141),VLOOKUP(Wat01_building_type,$C$91:$P$115,14,FALSE),"N/A") -> N/A | Q119: =SUM(D119:P119) -> 0
C120: Component weightings adjusted for components specified | D120: =IF(D119="N/A","N/A",D119/$Q$119) -> N/A | E120: =IF(E119="N/A","N/A",E119/$Q$119) -> N/A | F120: =IF(F119="N/A","N/A",F119/$Q$119) -> N/A | G120: N/A | H120: N/A | I120: N/A | J120: N/A | K120: N/A | L120: N/A | M120: N/A | N120: N/A | O120: N/A | P120: N/A | Q120: =SUM(D120:P120) -> 0
D122: =IF($D$117="Applicable","Please select","Not Applicable") -> Please select | E122: =IF($E$117="Applicable","Please select","Not Applicable") -> Please select | F122: =IF($E$117="Applicable","Please select","Not Applicable") -> Please select | G122: =IF($G$117="Applicable","Please select","Not Applicable") -> Please select | H122: =IF($H$117="Applicable","Please select","Not Applicable") -> Please select | I122: =IF($I$117="Applicable","Please select","Not Applicable") -> Please select | J122: =IF($J$117="Applicable","Please select","Not Applicable") -> Please select | K122: =IF($K$117="Applicable","Please select","Not Applicable") -> Please select | L122: =IF($L$117="Applicable","Please select","Not Applicable") -> Please select | M122: =IF($M$117="Applicable","Please select","Not Applicable") -> Please select | N122: =IF($N$117="Applicable","Please select","Not Applicable") -> Please select | O122: =IF($O$117="Applicable","Please select","Not Applicable") -> Please select | P122: =IF($P$117="Applicable","Please select","Not Applicable") -> Please select
C123: Baseline | D123: =IF($D$117="Applicable",6,"") -> 6 | E123: =IF($E$117="Applicable",7.5,"") -> 7.5 | F123: =IF($E$117="Applicable",10,"") -> 10 | G123: =IF($G$117="Applicable",10,"") -> 10 | H123: =IF($H$117="Applicable",12,"") -> 12 | I123: =IF($I$117="Applicable",200,"") -> 200 | J123: =IF($J$117="Applicable",10,"") -> 10 | K123: =IF($K$117="Applicable",90,"") -> 90 | L123: =IF($L$117="Applicable",17,"") -> 17 | M123: =IF($M$117="Applicable",10.3,"") -> 10.3 | N123: =IF($N$117="Applicable",17,"") -> 17 | O123: =IF($O$117="Applicable",8,"") -> 8 | P123: =IF($P$117="Applicable",14,"") -> 14
C124: 1 | D124: =IF($D$117="Applicable",4.5,"") -> 4.5 | E124: =IF($E$117="Applicable",6,"") -> 6 | F124: =IF($E$117="Applicable",8,"") -> 8 | G124: =IF($G$117="Applicable",8,"") -> 8 | H124: =IF($H$117="Applicable",10,"") -> 10 | I124: =IF($I$117="Applicable",180,"") -> 180 | J124: =IF($J$117="Applicable",8,"") -> 8 | K124: =IF($K$117="Applicable",60,"") -> 60 | L124: =IF($L$117="Applicable",13,"") -> 13 | M124: =IF($M$117="Applicable",9,"") -> 9 | N124: =IF($N$117="Applicable",17,"") -> 17 | O124: =IF($O$117="Applicable",7,"") -> 7 | P124: =IF($P$117="Applicable",12,"") -> 12
C125: 2 | D125: =IF($D$117="Applicable",4,"") -> 4 | E125: =IF($E$117="Applicable",3,"") -> 3 | F125: =IF($E$117="Applicable",4,"") -> 4 | G125: =IF($G$117="Applicable",6,"") -> 6 | H125: =IF($H$117="Applicable",8,"") -> 8 | I125: =IF($I$117="Applicable",160,"") -> 160 | J125: =IF($J$117="Applicable",7,"") -> 7 | K125: =IF($K$117="Applicable",50,"") -> 50 | L125: =IF($L$117="Applicable",13,"") -> 13 | M125: =IF($M$117="Applicable",8.3,"") -> 8.3 | N125: =IF($N$117="Applicable",0,"") -> 0 | O125: =IF($O$117="Applicable",6,"") -> 6 | P125: =IF($P$117="Applicable",10,"") -> 10
C126: 3 | D126: =IF($D$117="Applicable",3.75,"") -> 3.75 | E126: =IF($E$117="Applicable",1.5,"") -> 1.5 | F126: =IF($E$117="Applicable",2,"") -> 2 | G126: =IF($G$117="Applicable",5,"") -> 5 | H126: =IF($H$117="Applicable",6,"") -> 6 | I126: =IF($I$117="Applicable",140,"") -> 140 | J126: =IF($J$117="Applicable",6,"") -> 6 | K126: =IF($K$117="Applicable",40,"") -> 40 | L126: =IF($L$117="Applicable",12,"") -> 12 | M126: =IF($M$117="Applicable",7.3,"") -> 7.3 | N126: =IF($N$117="Applicable",0,"") -> 0 | O126: =IF($O$117="Applicable",5,"") -> 5 | P126: =IF($P$117="Applicable",7.5,"") -> 7.5
C127: 4 | D127: =IF($D$117="Applicable",3.5,"") -> 3.5 | E127: =IF($E$117="Applicable",0.75,"") -> 0.75 | F127: =IF($E$117="Applicable",1,"") -> 1 | G127: =IF($G$117="Applicable",4,"") -> 4 | H127: =IF($H$117="Applicable",5,"") -> 5 | I127: =IF($I$117="Applicable",120,"") -> 120 | J127: =IF($J$117="Applicable",5,"") -> 5 | K127: =IF($K$117="Applicable",35,"") -> 35 | L127: =IF($L$117="Applicable",11,"") -> 11 | M127: =IF($M$117="Applicable",6.3,"") -> 6.3 | N127: =IF($N$117="Applicable",0,"") -> 0 | O127: =IF($O$117="Applicable",4,"") -> 4 | P127: =IF($P$117="Applicable",5,"") -> 5
C128: 5 | D128: =IF($D$117="Applicable",3,"") -> 3 | E128: =IF($E$117="Applicable",0,"") -> 0 | F128: =IF($E$117="Applicable",0,"") -> 0 | G128: =IF($G$117="Applicable",3,"") -> 3 | H128: =IF($H$117="Applicable",3.5,"") -> 3.5 | I128: =IF($I$117="Applicable",100,"") -> 100 | J128: =IF($J$117="Applicable",5,"") -> 5 | K128: =IF($K$117="Applicable",30,"") -> 30 | L128: =IF($L$117="Applicable",10,"") -> 10 | M128: =IF($M$117="Applicable",6,"") -> 6 | N128: =IF($N$117="Applicable",0,"") -> 0 | O128: =IF($O$117="Applicable",3,"") -> 3 | P128: =IF($P$117="Applicable",4.5,"") -> 4.5
C130: =COUNTIF(D15:D69,D122) -> 0 | H130: Please select
C131: N/A | H131: Yes | J131: Overall Component level | K131: Credits
H132: No | J132: Baseline | K132: 0 | L132: 1 | M132: 2
C133: Please select | H133: System not specified | J133: 1 | K133: 1 | L133: 2 | M133: 3
C134: 1 | J134: 2 | K134: 2 | L134: 3 | M134: 4
C135: 2 | H135: =IF(Wat01_building_type=C163,"Please select","N/A") -> N/A | J135: 3 | K135: 3 | L135: 4 | M135: 5
C136: 3 | H136: =IF(Wat01_building_type=C163,"Yes","N/A") -> N/A | J136: 4 | K136: 3 | L136: 4 | M136: 5
C137: 4 | H137: =IF(Wat01_building_type=C163,"No","N/A") -> N/A | J137: 5 | K137: 4 | L137: 5 | M137: 5
C138: 5
C139: 6 | J139: Greywater/rainwater component level | K139: Credits
C140: 7 | H140: Please select | J140: Baseline | K140: 0
C141: 8 | H141: Specified | J141: 1 | K141: 0
H142: Not Specified | J142: 2 | K142: 0
J143: 3 | K143: 0
C144: Requires building information | J144: 4 | K144: 1
J145: 5 | K145: 2
C146: Please select | J146: Up to level 2 | K146: 0
C147: Actual/equivalent % of the building's flushing demand to be met using recycled non potable water from the above system(s)
C148: Actual % of the total rainwater run-off from the roof catchment area collected and used to meet flushing/other permissible demand | I148: Component credits | J148: =VLOOKUP(D57,J132:K137,2,TRUE) -> 0
C149: Actual % of the total waste water from taps and showers collected and recycled to meet flushing/other permissible demand | I149: Water recycling credits | J149: =VLOOKUP(H79,J140:K146,2,TRUE) -> 0
I150: Total | J150: =IF(SUM(J148+J149)>5,5,SUM(J148+J149)) -> 0 | K150: Note: 5 credits is the maximum
C151: Please select
C152: Healthcare - Hospital
C153: Healthcare - GP surgery or health centre/clinic
C154: Prisons - Houseblock
C155: Public - Law Court
C156: Residential Institution - Hotel
C157: Assembly and Leisure - Cinema
C158: Assembly and Leisure - Theatre, Music, Concert Hall
C159: Assembly and Leisure - Sports and Recreation
C160: Retail - Bar/Public House only (no restaurant)
C161: Retail - Bar/Public House with restaurant
C162: Other Non-Domestic Building Type
C163: Residential - for instance apartment blocks
C165: =IF(Wat01_building_type=C163,"Please select","N/A") -> N/A
C166: =IF(Wat01_building_type=C163,"Bath only","N/A") -> N/A
C167: =IF(Wat01_building_type=C163,"Shower only","N/A") -> N/A
C168: =IF(Wat01_building_type=C163,"Bath and shower","N/A") -> N/A

Sheet Average flow rate calculator
B2: BREEAM-NOR 6.1 Wat 01 Water consumption: Average flow rate calculator
B4: Building details
B6: Building name | D6: =IF('User Instructions'!D8:F8="","",'User Instructions'!D8:F8) -> 
B8: BRE assessment reference no. | D8: =IF('User Instructions'!D10:F10="","",'User Instructions'!D10:F10) -> 
B10: WCs
B12: WC type | E12: Specification effective flush volume (litres) | F12: Quantity (no.) | H12: Total per fitting type
B13: 1 | H13: =E13*F13 -> 0
B14: 2 | H14: =E14*F14 -> 0
B15: 3 | H15: =E15*F15 -> 0
B16: 4 | H16: =E16*F16 -> 0
B17: 5 | H17: =E17*F17 -> 0
E18: Total | F18: =SUM(F13:F17) -> 0 | H18: =SUM(H13:H17) -> 0
F20: Average effective flushing volume (litres) | H20: =IF(ISERROR(H18/F18),"",H18/F18) ->  | I20: =IF(F18=0,"","Enter this average component consumption figure in to the relevant component specification of the water consumption calculator") -> 
B22: Urinals
B23: Urinals - automatically operated flushing cisterns
B24: Urinal flushing system type | D24: Specification cistern capacity (litres) | E24: Flushing frequency (flushes/hr) | F24: Quantity (no.) | H24: Total per fitting type
B25: 1 | G25: =E25*F25 -> 0 | H25: =D25*F25 -> 0
B26: 2 | G26: =E26*F26 -> 0 | H26: =D26*F26 -> 0
B27: 3 | G27: =E27*F27 -> 0 | H27: =D27*F27 -> 0
B28: 4 | G28: =E28*F28 -> 0 | H28: =D28*F28 -> 0
B29: 5 | G29: =E29*F29 -> 0 | H29: =D29*F29 -> 0
G30: =SUM(G25:G29) -> 0 | H30: =SUM(H25:H29) -> 0
F32: Average cistern capacity (litres) | H32: =IF(ISERROR(H30/H33),"",H30/H33) ->  | I32: =IF(H33=0,"","Enter this average component consumption figure in to the relevant component specification of the water consumption calculator") -> 
F33: No. of cisterns | H33: =SUM(F25:F29) -> 0 | I33: =IF(H33=0,"","Enter this figure in to the 'No. of cisterns' cell in of the water consumption calculator") -> 
F34: Average flushing frequency (flushes/hour) | H34: =IF(ISERROR(G30/H33),"",G30/H33) ->  | I34: =IF(H33=0,"","Enter this figure in to the 'flushing frequency/hour' cell in of the water consumption calculator") -> 
B36: Urinals - Manual or automatically operated pressure flushing valves
B37: Urinal flushing system type | E37: Specification flush volume (litres) | F37: Quantity (no.) | H37: Total per fitting type
B38: 1 | H38: =E38*F38 -> 0
B39: 2 | H39: =E39*F39 -> 0
B40: 3 | H40: =E40*F40 -> 0
